{"text_format":"2","workbook":"xlsx","n_sheets":3,"sheets":["Лист1","Лист2","Лист3"],"not_rendered":{"charts":0,"images":0,"macros":0,"external_links":1,"defined_names":0,"comments":0,"pivot_tables":0},"unopened":[],"bounds":{"document_bytes":16777216,"sheet_cells":100000,"run_cost":"one","rows_first":2000,"rows_last":500,"rows_between":2000,"halvings":0,"cell_chars":16384,"cell_head_chars":4096},"cells_cut":0,"cells_raw":0,"read":"whole","date_system":"1900"}

{"sheet":"Лист1","index":0,"n_rows":576,"n_cols":28,"rows_kept":576,"cut":false,"hidden":false,"merged":[[198,15,199,15],[198,16,199,16],[198,17,199,17],[198,9,199,9],[198,10,199,10],[198,11,199,11],[198,12,199,12],[198,13,199,13],[198,14,199,14],[119,15,120,15],[119,16,120,16],[119,17,120,17],[198,1,199,1],[198,3,199,3],[198,4,199,4],[198,5,199,5],[198,6,199,6],[198,7,199,7],[198,8,199,8],[119,9,120,9],[119,10,120,10],[119,11,120,11],[119,12,120,12],[119,13,120,13],[119,14,120,14],[119,6,120,6],[119,7,120,7],[119,8,120,8],[6,10,7,10],[6,11,7,11],[8,1,8,2],[119,1,120,1],[119,3,120,3],[119,4,120,4],[119,5,120,5],[6,7,7,7],[6,8,7,8],[6,9,7,9],[6,16,7,16],[6,17,7,17],[6,12,7,12],[6,13,7,13],[6,14,7,14],[6,15,7,15],[6,1,7,1],[6,3,7,3],[6,4,7,4],[6,5,7,5],[6,6,7,6],[0,1,0,17],[2,1,4,2],[2,3,4,3],[2,4,2,9],[2,10,3,11],[2,12,2,17],[3,4,3,6],[3,7,3,9],[3,12,3,13],[3,14,4,14],[3,15,4,15],[3,16,3,17]]}
["17","Предварительный реестр расходных обязательств  Шарангского муниципального района на 2020-2022 г.г."]
[]
[null,"Наименование полномочия, расходного обязательства",null,"Наименование  муниципальной услуги (работы),                 код строки","Правовое основание финансового обеспечения и расходования средств                                                                            (нормативные правовые акт, договоры, соглашения)",{"$nulls":5},"Код расхода по БК",null,"Объем средств на исполнение расходного обязательства "]
["ID_Form = 1000368",null,null,null," Российской Федерации",null,null," субъекта Российской Федерации",{"$nulls":4},"отчетный  2018год",null,"текущий \n 2019 год","очередной 2020 год","плановый период"]
["6",null,null,null,"Наименование  номер и дата","Номер статьи (подстатьи), пункта (подпункта )","Дата вступления в силу и срок действия","Наименование  номер и дата","Номер статьи (подстатьи), пункта (подпункта )","Дата вступления в силу и срок действия","раздел","подраздел","по плану","по факту исполнения",null,null,2021,2022]
["8",null,1,2,3,4,5,6,7,8,12,13,14,15,16,17,18,19]
["29","1.                   ","Расходные обязательства, возникшие в результате принятия нормативных правовых актов муниципального района, заключения договоров (соглашений), всего",1000,"х","х","х","х","х","х","х","х",{"$f":"SUM(M10+M76+M120+M180)","v":579543.60000000009},577727.6,636275.5,833287.5,586039.80000000005,572651.80000000005]
["377",null,"из них:",{"$nulls":24},{"$f":"U7","v":0}]
[null,"в том числе субсидии бюджетным учреждениям на финансовое обеспечение муниципального задания на оказание муниципальных услуг (выполнение\nработ)",{"$nulls":10},289096.09999999998,289096.09999999998,322817.7,344942.2,330746.3,341399.7]
[null,"1.1.             ","Расходные обязательства, возникшие в результате принятия нормативных правовых актов муниципального района, заключения договоров (соглашений) в рамках реализации вопросов местного значения муниципального района, всего",1001,"х","х","х","х","х","х","х","х",{"$f":"SUM(M11:M75)","v":240703.3},240331.2,304676.40000000002,506938.39999999997,271168.8,254799.00000000003]
[null,"1.1.1.       ","составление и рассмотрение проекта бюджета муниципального района, утверждение и исполнение бюджета муниципального района, осуществление контроля за его исполнением, составление и утверждение отчета об исполнении бюджета муниципального района",1002]
[null,"1.1.2.       ","установление, изменение и отмена местных налогов и сборов муниципального района",1003]
[null,"1.1.3.       ","владение, пользование и распоряжение имуществом, находящимся в муниципальной собственности муниципального района",1004,"Федеральный закон от 06.10.2003 N 131-ФЗ\n\"Об общих принципах организации местного самоуправления в Российской Федерации\"\n","ст.15п.1п.п.3","06.10.2003           не ограничен",null,null,null,"01                           04","13                           12",{"$f":"SUM([1]УФ!M12+[1]ОК!M12+[1]РОО!M12+[1]УСХ!M12+'[1]З С '!M12+[1]РА!M12)","v":502.9},{"$f":"SUM([1]УФ!N12+[1]ОК!N12+[1]РОО!N12+[1]УСХ!N12+'[1]З С '!N12+[1]РА!N12)","v":502.9},{"$f":"SUM([1]УФ!O12+[1]ОК!O12+[1]РОО!O12+[1]УСХ!O12+'[1]З С '!O12+[1]РА!O12)","v":438.2},{"$f":"SUM([1]УФ!P12+[1]ОК!P12+[1]РОО!P12+[1]УСХ!P12+'[1]З С '!P12+[1]РА!P12)","v":905},{"$f":"SUM([1]УФ!Q12+[1]ОК!Q12+[1]РОО!Q12+[1]УСХ!Q12+'[1]З С '!Q12+[1]РА!Q12)","v":405},{"$f":"SUM([1]УФ!R12+[1]ОК!R12+[1]РОО!R12+[1]УСХ!R12+'[1]З С '!R12+[1]РА!R12)","v":1413.8}]
[null,"1.1.4.       ","организация в границах муниципального района электро- и газоснабжения поселений в пределах полномочий, установленных законодательством Российской Федерации",1005]
[null,"1.1.5.       ","дорожная деятельность в отношении автомобильных дорог местного значения вне границ населенных пунктов в границах муниципального района, осуществление муниципального контроля за сохранностью автомобильных дорог местного значения вне границ населенных пунктов в границах муниципального района, и обеспечение безопасности дорожного движения на них, а также осуществление иных полномочий в области использования автомобильных дорог и осуществления дорожной деятельности в соответствии с законодательством Российской Федерации",1006,"Федеральный закон от 06.10.2003 N 131-ФЗ\n\"Об общих принципах организации местного самоуправления в Российской Федерации\"\n","ст.15п.1 п.п.5","08.11.2007           не ограничен",null,null,null,"04","09",{"$f":"SUM([1]УФ!M14+[1]ОК!M14+[1]РОО!M14+[1]УСХ!M14+'[1]З С '!M14+[1]РА!M14)","v":0},{"$f":"SUM([1]УФ!N14+[1]ОК!N14+[1]РОО!N14+[1]УСХ!N14+'[1]З С '!N14+[1]РА!N14)","v":0},{"$f":"SUM([1]УФ!O14+[1]ОК!O14+[1]РОО!O14+[1]УСХ!O14+'[1]З С '!O14+[1]РА!O14)","v":1241.9000000000001},{"$f":"SUM([1]УФ!P14+[1]ОК!P14+[1]РОО!P14+[1]УСХ!P14+'[1]З С '!P14+[1]РА!P14)","v":15253.4},{"$f":"SUM([1]УФ!Q14+[1]ОК!Q14+[1]РОО!Q14+[1]УСХ!Q14+'[1]З С '!Q14+[1]РА!Q14)","v":2867.2},{"$f":"SUM([1]УФ!R14+[1]ОК!R14+[1]РОО!R14+[1]УСХ!R14+'[1]З С '!R14+[1]РА!R14)","v":2867.2}]
[null,"1.1.6.       ","создание условий для предоставления транспортных услуг населению и организация транспортного обслуживания населения между поселениями в границах муниципального района",1007,"Федеральный закон от 06.10.2003 N 131-ФЗ\n\"Об общих принципах организации местного самоуправления в Российской Федерации\"\n","ст.15п.1п. п.6","06.10.2003           не ограничен",null,null,null,"04","08",{"$f":"SUM([1]УФ!M15+[1]ОК!M15+[1]РОО!M15+[1]УСХ!M15+'[1]З С '!M15+[1]РА!M15)","v":2107.1999999999998},{"$f":"SUM([1]УФ!N15+[1]ОК!N15+[1]РОО!N15+[1]УСХ!N15+'[1]З С '!N15+[1]РА!N15)","v":2107.1999999999998},{"$f":"SUM([1]УФ!O15+[1]ОК!O15+[1]РОО!O15+[1]УСХ!O15+'[1]З С '!O15+[1]РА!O15)","v":5960.8},{"$f":"SUM([1]УФ!P15+[1]ОК!P15+[1]РОО!P15+[1]УСХ!P15+'[1]З С '!P15+[1]РА!P15)","v":3100},{"$f":"SUM([1]УФ!Q15+[1]ОК!Q15+[1]РОО!Q15+[1]УСХ!Q15+'[1]З С '!Q15+[1]РА!Q15)","v":3100},{"$f":"SUM([1]УФ!R15+[1]ОК!R15+[1]РОО!R15+[1]УСХ!R15+'[1]З С '!R15+[1]РА!R15)","v":3100}]
[null,"1.1.7.       ","участие в профилактике терроризма и экстремизма, а также в минимизации и (или) ликвидации последствий проявлений терроризма и экстремизма на территории муниципального района",1008]
[null,"1.1.8.       ","разработка и осуществление мер, направленных на укрепление межнационального и межконфессионального согласия, поддержку и развитие языков и культуры народов Российской Федерации, проживающих на территории муниципального района, реализацию прав национальных меньшинств, обеспечение социальной и культурной адаптации мигрантов, профилактику межнациональных (межэтнических) конфликтов",1009]
[null,"1.1.9.       ","участие в предупреждении и ликвидации последствий чрезвычайных ситуаций на территории муниципального района",1010,"Федеральный закон от 06.10.2003 N 131-ФЗ\n\"Об общих принципах организации местного самоуправления в Российской Федерации\"\n","ст.15п.1п. п.6","06.10.2003           не ограничен",null,null,null,"03                    03                  04","09                    10                        10",{"$f":"SUM([1]УФ!M18+[1]ОК!M18+[1]РОО!M18+[1]УСХ!M18+'[1]З С '!M18+[1]РА!M18)","v":5014.2},{"$f":"SUM([1]УФ!N18+[1]ОК!N18+[1]РОО!N18+[1]УСХ!N18+'[1]З С '!N18+[1]РА!N18)","v":4890.5},{"$f":"SUM([1]УФ!O18+[1]ОК!O18+[1]РОО!O18+[1]УСХ!O18+'[1]З С '!O18+[1]РА!O18)","v":5527.5},{"$f":"SUM([1]УФ!P18+[1]ОК!P18+[1]РОО!P18+[1]УСХ!P18+'[1]З С '!P18+[1]РА!P18)","v":4773.6000000000004},{"$f":"SUM([1]УФ!Q18+[1]ОК!Q18+[1]РОО!Q18+[1]УСХ!Q18+'[1]З С '!Q18+[1]РА!Q18)","v":3769.9},{"$f":"SUM([1]УФ!R18+[1]ОК!R18+[1]РОО!R18+[1]УСХ!R18+'[1]З С '!R18+[1]РА!R18)","v":3796.5}]
[null,"1.1.10.   ","организация охраны общественного порядка на территории муниципального района муниципальной милицией",1011]
[null,"1.1.11.   ","предоставление помещения для работы на обслуживаемом административном участке муниципального района сотруднику, замещающему должность участкового уполномоченного полиции",1012]
[null,"1.1.12.   ","до 1 января 2017 года предоставление сотруднику, замещающему должность участкового уполномоченного полиции, и членам его семьи жилого помещения на период выполнения сотрудником обязанностей по указанной должности",1013]
[null,"1.1.13.   ","организация мероприятий межпоселенческого характера по охране окружающей среды",1014]
[null,"1.1.14.   ","организация предоставления общедоступного и бесплатного дошкольного, начального общего, основного общего, среднего общего образования по основным общеобразовательным программам в муниципальных образовательных организациях (за исключением полномочий по финансовому обеспечению реализации основных общеобразовательных программ в соответствии с федеральными государственными образовательными стандартами), организация предоставления дополнительного образования детей в муниципальных образовательных организациях (за исключением дополнительного образования детей, финансовое обеспечение которого осуществляется органами государственной власти субъекта Российской Федерации), создание условий для осуществления присмотра и ухода за детьми, содержания детей в муниципальных образовательных организациях, а также организация отдыха детей в каникулярное время","1.Присмотр и уход 2.Реализация основных общеобразовательных программ дошкольного образования 3.Реализация основных общеобразовательных программ начального общего образования 4.Реализация основных общеобразовательных программ основного общего образования 5.Реализация основных общеобразовательных программ среднего общего образования 6.Реализация дополнительных общеразвивающих программ                 1015","Федеральный закон от 06.10.2003 N 131-ФЗ\n\"Об общих принципах организации местного самоуправления в Российской Федерации\"\n","ст.15п.1 п. п.11","02.07.2013           не ограничен","Закон Нижегородской области от 28.11.2013 N 160-З\n\"О предоставлении органам местного самоуправления муниципальных районов и городских округов Нижегородской области субвенций на исполнение полномочий в сфере общего образования\"\n",null,"2014-01-01","04                    07                    07                     07                  07","01                     01                        02                       07                        09",{"$f":"SUM([1]УФ!M23+[1]ОК!M23+[1]РОО!M23+[1]УСХ!M23+'[1]З С '!M23+[1]РА!M23)","v":98904.2},{"$f":"SUM([1]УФ!N23+[1]ОК!N23+[1]РОО!N23+[1]УСХ!N23+'[1]З С '!N23+[1]РА!N23)","v":98741.3},{"$f":"SUM([1]УФ!O23+[1]ОК!O23+[1]РОО!O23+[1]УСХ!O23+'[1]З С '!O23+[1]РА!O23)","v":125685},{"$f":"SUM([1]УФ!P23+[1]ОК!P23+[1]РОО!P23+[1]УСХ!P23+'[1]З С '!P23+[1]РА!P23)","v":322575},{"$f":"SUM([1]УФ!Q23+[1]ОК!Q23+[1]РОО!Q23+[1]УСХ!Q23+'[1]З С '!Q23+[1]РА!Q23)","v":144216.29999999999},{"$f":"SUM([1]УФ!R23+[1]ОК!R23+[1]РОО!R23+[1]УСХ!R23+'[1]З С '!R23+[1]РА!R23)","v":120400.49999999999}]
[null,"1.1.15.   ","создание условий для оказания медицинской помощи населению на территории муниципального района (за исключением территорий поселений, включенных в утвержденный Правительством Российской Федерации перечень территорий, население которых обеспечивается медицинской помощью в медицинских организациях, подведомственных федеральному органу исполнительной власти, осуществляющему функции по медико-санитарному обеспечению населения отдельных территорий) в соответствии с территориальной программой государственных гарантий бесплатного оказания гражданам медицинской помощи",1016]
[null,"1.1.16.   ","участие в организации деятельности по сбору (в том числе раздельному сбору), транспортированию, обработке, утилизации, обезвреживанию, захоронению твердых коммунальных отходов на территориях соответствующих муниципальных районов",1017]
[null,"1.1.17.   ","утверждение схем территориального планирования муниципального района, утверждение подготовленной на основе схемы территориального планирования муниципального района документации по планировке территории, ведение информационной системы обеспечения градостроительной деятельности, осуществляемой на территории муниципального района, резервирование и изъятие земельных участков в границах муниципального района для муниципальных нужд",1018]
[null,"1.1.18.   ","утверждение схемы размещения рекламных конструкций, выдача разрешений на установку и эксплуатацию рекламных конструкций на территории муниципального района, аннулирование таких разрешений, выдача предписаний о демонтаже самовольно установленных рекламных конструкций на территории муниципального района, осуществляемые в соответствии с Федеральным законом от 13 марта 2006 года № 38-ФЗ «О рекламе»",1019]
[null,"1.1.19.   ","формирование и содержание муниципального архива, включая хранение архивных фондов поселений",1020]
[null,"1.1.20.   ","содержание на территории муниципального района межпоселенческих мест захоронения, организация ритуальных услуг",1021]
[null,"1.1.21.   ","создание условий для обеспечения поселений, входящих в состав муниципального района, услугами связи, общественного питания, торговли и бытового обслуживания",1022]
[null,"1.1.22.   ","организация библиотечного обслуживания населения межпоселенческими библиотеками, комплектование и обеспечение сохранности их библиотечных фондов","1.Библиографическая обработка документов и создание каталогов    2.Библиотечное, библиографическое и информационное обслуживание пользователей библиотек                 1023","Федеральный закон от 06.10.2003 N 131-ФЗ\n\"Об общих принципах организации местного самоуправления в Российской Федерации\"\n","ст.15 п.1 пп.19","31.12.2005           не ограничен",null,null,null,"08","01",{"$f":"SUM([1]УФ!M31+[1]ОК!M31+[1]РОО!M31+[1]УСХ!M31+'[1]З С '!M31+[1]РА!M31)","v":14258.5},{"$f":"SUM([1]УФ!N31+[1]ОК!N31+[1]РОО!N31+[1]УСХ!N31+'[1]З С '!N31+[1]РА!N31)","v":14258.6},{"$f":"SUM([1]УФ!O31+[1]ОК!O31+[1]РОО!O31+[1]УСХ!O31+'[1]З С '!O31+[1]РА!O31)","v":14486.7},{"$f":"SUM([1]УФ!P31+[1]ОК!P31+[1]РОО!P31+[1]УСХ!P31+'[1]З С '!P31+[1]РА!P31)","v":15377.4},{"$f":"SUM([1]УФ!Q31+[1]ОК!Q31+[1]РОО!Q31+[1]УСХ!Q31+'[1]З С '!Q31+[1]РА!Q31)","v":15301},{"$f":"SUM([1]УФ!R31+[1]ОК!R31+[1]РОО!R31+[1]УСХ!R31+'[1]З С '!R31+[1]РА!R31)","v":15339}]
[null,"1.1.23.   ","создание условий для обеспечения поселений, входящих в состав муниципального района, услугами по организации досуга и услугами организаций культуры","1.Организация деятельности клубных формирований и формирований самодеятельного народного творчества 2.Организация и проведение культурно-массовых мероприятий               1024","Федеральный закон от 06.10.2003 N 131-ФЗ\n\"Об общих принципах организации местного самоуправления в Российской Федерации\"\n","ст.15 п.1 пп.19.1","31.12.2005           не ограничен",null,null,null,"08                   08                  10                   12","01                      04                     03                      01",{"$f":"SUM([1]УФ!M32+[1]ОК!M32+[1]РОО!M32+[1]УСХ!M32+'[1]З С '!M32+[1]РА!M32)","v":60892.7},{"$f":"SUM([1]УФ!N32+[1]ОК!N32+[1]РОО!N32+[1]УСХ!N32+'[1]З С '!N32+[1]РА!N32)","v":60830.2},{"$f":"SUM([1]УФ!O32+[1]ОК!O32+[1]РОО!O32+[1]УСХ!O32+'[1]З С '!O32+[1]РА!O32)","v":47344.7},{"$f":"SUM([1]УФ!P32+[1]ОК!P32+[1]РОО!P32+[1]УСХ!P32+'[1]З С '!P32+[1]РА!P32)","v":48871.7},{"$f":"SUM([1]УФ!Q32+[1]ОК!Q32+[1]РОО!Q32+[1]УСХ!Q32+'[1]З С '!Q32+[1]РА!Q32)","v":46714.5},{"$f":"SUM([1]УФ!R32+[1]ОК!R32+[1]РОО!R32+[1]УСХ!R32+'[1]З С '!R32+[1]РА!R32)","v":47856.6}]
[null,"1.1.24.   ","создание условий для развития местного традиционного народного художественного творчества в поселениях, входящих в состав муниципального района",1025]
[null,"1.1.25.   ","сохранение, использование и популяризация объектов культурного наследия (памятников истории и культуры), находящихся в собственности муниципального района, охрана объектов культурного наследия (памятников истории и культуры) местного (муниципального) значения, расположенных на территории муниципального района","1.Формирование, учет, изучение, обеспечение физического сохранения и безопасности музейных предметов, музейных коллекций               2.Публичный показ музейных предметов, музейных коллекций                 1026","Федеральный закон от 06.10.2003 N 131-ФЗ\n\"Об общих принципах организации местного самоуправления в Российской Федерации\"\n","ст.15 п.1 пп.19.3","22.10.2014          не ограничен",null,null,null,"08","01",{"$f":"SUM([1]УФ!M34+[1]ОК!M34+[1]РОО!M34+[1]УСХ!M34+'[1]З С '!M34+[1]РА!M34)","v":1883.4},{"$f":"SUM([1]УФ!N34+[1]ОК!N34+[1]РОО!N34+[1]УСХ!N34+'[1]З С '!N34+[1]РА!N34)","v":1883.4},{"$f":"SUM([1]УФ!O34+[1]ОК!O34+[1]РОО!O34+[1]УСХ!O34+'[1]З С '!O34+[1]РА!O34)","v":1925.4},{"$f":"SUM([1]УФ!P34+[1]ОК!P34+[1]РОО!P34+[1]УСХ!P34+'[1]З С '!P34+[1]РА!P34)","v":2043.5},{"$f":"SUM([1]УФ!Q34+[1]ОК!Q34+[1]РОО!Q34+[1]УСХ!Q34+'[1]З С '!Q34+[1]РА!Q34)","v":2018.7},{"$f":"SUM([1]УФ!R34+[1]ОК!R34+[1]РОО!R34+[1]УСХ!R34+'[1]З С '!R34+[1]РА!R34)","v":2031}]
[null,"1.1.26.   ","организация и осуществление мероприятий по территориальной обороне и гражданской обороне, защите населения и территории муниципального района от чрезвычайных ситуаций природного и техногенного характера",1027]
[null,"1.1.27.   ","создание, развитие и обеспечение охраны лечебно-оздоровительных местностей и курортов местного значения на территории муниципального района, а также осуществление муниципального контроля в области использования и охраны особо охраняемых природных территорий местного значения",1028]
[null,"1.1.28.   ","организация и осуществление мероприятий по мобилизационной подготовке муниципальных предприятий и учреждений, находящихся на территории муниципального района",1029]
[null,"1.1.29.   ","осуществление мероприятий по обеспечению безопасности людей на водных объектах, охране их жизни и здоровья",1030]
[null,"1.1.30.   ","создание условий для развития сельскохозяйственного производства в поселениях, расширения рынка сельскохозяйственной продукции, сырья и продовольствия, содействие развитию малого и среднего предпринимательства, оказание поддержки социально ориентированным некоммерческим организациям, благотворительной деятельности и добровольчеству",1031,"Федеральный закон от 06.10.2003 N 131-ФЗ\n\"Об общих принципах организации местного самоуправления в Российской Федерации\"\n","ст.15 п.1 пп.25","31.12.2005           не ограничен",null,null,null,"04                    04                           10","05                       12                             06",{"$f":"SUM([1]УФ!M39+[1]ОК!M39+[1]РОО!M39+[1]УСХ!M39+'[1]З С '!M39+[1]РА!M39)","v":770.40000000000009},{"$f":"SUM([1]УФ!N39+[1]ОК!N39+[1]РОО!N39+[1]УСХ!N39+'[1]З С '!N39+[1]РА!N39)","v":770.40000000000009},{"$f":"SUM([1]УФ!O39+[1]ОК!O39+[1]РОО!O39+[1]УСХ!O39+'[1]З С '!O39+[1]РА!O39)","v":968.5},{"$f":"SUM([1]УФ!P39+[1]ОК!P39+[1]РОО!P39+[1]УСХ!P39+'[1]З С '!P39+[1]РА!P39)","v":776.8},{"$f":"SUM([1]УФ!Q39+[1]ОК!Q39+[1]РОО!Q39+[1]УСХ!Q39+'[1]З С '!Q39+[1]РА!Q39)","v":776.8},{"$f":"SUM([1]УФ!R39+[1]ОК!R39+[1]РОО!R39+[1]УСХ!R39+'[1]З С '!R39+[1]РА!R39)","v":776.8}]
[null,"1.1.31.   ","обеспечение условий для развития на территории муниципального района физической культуры, школьного спорта и массового спорта, организация проведения официальных физкультурно-оздоровительных и спортивных мероприятий муниципального района","1.Реализация дополнительных общеразвивающих программ                               2. Реализация дополнительных предпрофессиональных программ в области физической культуры и спорта                               3. Организация и проведение спортивно-оздоровительной работы по развитию физической культуры и спорта среди различных групп населения                                4. Организация и проведение физкультурных и спортивных мероприятий в рамках Всероссийского физкультурно-спортивного комплекса \"Готов к труду и обороне\" (ГТО) (за исключением тестирования выполнения нормативов испытаний комплекса ГТО)                                                  1032","Федеральный закон от 06.10.2003 N 131-ФЗ\n\"Об общих принципах организации местного самоуправления в Российской Федерации\"\n","ст.15п.1 п п.25","06.10.2003          не ограничен",null,null,null,"11","02",{"$f":"SUM([1]УФ!M40+[1]ОК!M40+[1]РОО!M40+[1]УСХ!M40+'[1]З С '!M40+[1]РА!M40)","v":49516.4},{"$f":"SUM([1]УФ!N40+[1]ОК!N40+[1]РОО!N40+[1]УСХ!N40+'[1]З С '!N40+[1]РА!N40)","v":49507.6},{"$f":"SUM([1]УФ!O40+[1]ОК!O40+[1]РОО!O40+[1]УСХ!O40+'[1]З С '!O40+[1]РА!O40)","v":50915.8},{"$f":"SUM([1]УФ!P40+[1]ОК!P40+[1]РОО!P40+[1]УСХ!P40+'[1]З С '!P40+[1]РА!P40)","v":56065.599999999999},{"$f":"SUM([1]УФ!Q40+[1]ОК!Q40+[1]РОО!Q40+[1]УСХ!Q40+'[1]З С '!Q40+[1]РА!Q40)","v":50061.2},{"$f":"SUM([1]УФ!R40+[1]ОК!R40+[1]РОО!R40+[1]УСХ!R40+'[1]З С '!R40+[1]РА!R40)","v":55043.1}]
[null,"1.1.32.   ","организация и осуществление мероприятий межпоселенческого характера по работе с детьми и молодежью",1033]
[null,"1.1.33.   ","осуществление в пределах, установленных водным законодательством Российской Федерации, полномочий собственника водных объектов, установление правил использования водных объектов общего пользования для личных и бытовых нужд, включая обеспечение свободного доступа граждан к водным объектам общего пользования и их береговым полосам",1034]
[null,"1.1.34.   ","осуществление муниципального лесного контроля",1035]
[null,"1.1.35.   ","обеспечение выполнения работ, необходимых для создания искусственных земельных участков для нужд муниципального района, проведение открытого аукциона на право заключить договор о создании искусственного земельного участка в соответствии с федеральным законом",1036]
[null,"1.1.36.   ","осуществление мер по противодействию коррупции в границах муниципального района",1037,"Федеральный закон от 06.10.2003 N 131-ФЗ\n\"Об общих принципах организации местного самоуправления в Российской Федерации\"\n","ст.15 п.1 пп.33","21.11.2011          не ограничен",null,null,null,"01","13",{"$f":"SUM([1]УФ!M45+[1]ОК!M45+[1]РОО!M45+[1]УСХ!M45+'[1]З С '!M45+[1]РА!M45)","v":10.199999999999999},{"$f":"SUM([1]УФ!N45+[1]ОК!N45+[1]РОО!N45+[1]УСХ!N45+'[1]З С '!N45+[1]РА!N45)","v":10.199999999999999},{"$f":"SUM([1]УФ!O45+[1]ОК!O45+[1]РОО!O45+[1]УСХ!O45+'[1]З С '!O45+[1]РА!O45)","v":182.9},{"$f":"SUM([1]УФ!P45+[1]ОК!P45+[1]РОО!P45+[1]УСХ!P45+'[1]З С '!P45+[1]РА!P45)","v":511.1},{"$f":"SUM([1]УФ!Q45+[1]ОК!Q45+[1]РОО!Q45+[1]УСХ!Q45+'[1]З С '!Q45+[1]РА!Q45)","v":511.1},{"$f":"SUM([1]УФ!R45+[1]ОК!R45+[1]РОО!R45+[1]УСХ!R45+'[1]З С '!R45+[1]РА!R45)","v":511.1}]
[null,"1.1.37.   ","присвоение адресов объектам адресации, изменение, аннулирование адресов, присвоение наименований элементам улично-дорожной сети (за исключением автомобильных дорог федерального значения, автомобильных дорог регионального или межмуниципального значения), наименований элементам планировочной структуры в границах межселенной территории муниципального района, изменение, аннулирование таких наименований, размещение информации в государственном адресном реестре",1038]
[null,"1.1.38.   ","осуществление муниципального земельного контроля на межселенной территории муниципального района",1039]
[null,"1.1.39.   ","организация в соответствии с Федеральным законом от 24 июля 2007 года № 221-ФЗ «О государственном кадастре недвижимости» выполнения комплексных кадастровых работ и утверждение карты-плана территории",1040]
[null,"1.1.40.   ","организация в границах сельского поселения электро-, тепло-, газо- и водоснабжения населения, водоотведения, снабжения населения топливом в пределах полномочий, установленных законодательством Российской Федерации",1041,"Федеральный закон от 06.10.2003 N 131-ФЗ\n\"Об общих принципах организации местного самоуправления в Российской Федерации\"\n","ст.15 п.1 пп.4","06.10.2003          не ограничен",null,null,null,"05","02",{"$f":"SUM([1]УФ!M49+[1]ОК!M49+[1]РОО!M49+[1]УСХ!M49+'[1]З С '!M49+[1]РА!M49)","v":4693.3},{"$f":"SUM([1]УФ!N49+[1]ОК!N49+[1]РОО!N49+[1]УСХ!N49+'[1]З С '!N49+[1]РА!N49)","v":4679.8},{"$f":"SUM([1]УФ!O49+[1]ОК!O49+[1]РОО!O49+[1]УСХ!O49+'[1]З С '!O49+[1]РА!O49)","v":40634},{"$f":"SUM([1]УФ!P49+[1]ОК!P49+[1]РОО!P49+[1]УСХ!P49+'[1]З С '!P49+[1]РА!P49)","v":36070.300000000003},{"$f":"SUM([1]УФ!Q49+[1]ОК!Q49+[1]РОО!Q49+[1]УСХ!Q49+'[1]З С '!Q49+[1]РА!Q49)","v":1019.7},{"$f":"SUM([1]УФ!R49+[1]ОК!R49+[1]РОО!R49+[1]УСХ!R49+'[1]З С '!R49+[1]РА!R49)","v":1019.7}]
[null,"1.1.41.   ","дорожная деятельность в отношении автомобильных дорог местного значения в границах населенных пунктов сельского поселения и обеспечение безопасности дорожного движения на них, включая создание и обеспечение функционирования парковок (парковочных мест), осуществление муниципального контроля за сохранностью автомобильных дорог местного значения в границах населенных пунктов сельского поселения, а также осуществление иных полномочий в области использования автомобильных дорог и осуществления дорожной деятельности в соответствии с законодательством Российской Федерации на территории сельского поселения",1042]
[null,"1.1.42.   ","обеспечение проживающих в сельском поселении и нуждающихся в жилых помещениях малоимущих граждан жилыми помещениями, организация строительства и содержания муниципального жилищного фонда, создание условий для жилищного строительства, осуществление муниципального жилищного контроля, а также иных полномочий органов местного самоуправления в соответствии с жилищным законодательством на территории сельского поселения",1043,"Жилищный кодекс РФ 188-ФЗ от 29.12.2004 года","ст.181","29.12.2004            не ограничен",null,null,null,"05                           10","01                               03",{"$f":"SUM([1]УФ!M51+[1]ОК!M51+[1]РОО!M51+[1]УСХ!M51+'[1]З С '!M51+[1]РА!M51)","v":2149.9},{"$f":"SUM([1]УФ!N51+[1]ОК!N51+[1]РОО!N51+[1]УСХ!N51+'[1]З С '!N51+[1]РА!N51)","v":2149.1},{"$f":"SUM([1]УФ!O51+[1]ОК!O51+[1]РОО!O51+[1]УСХ!O51+'[1]З С '!O51+[1]РА!O51)","v":9365},{"$f":"SUM([1]УФ!P51+[1]ОК!P51+[1]РОО!P51+[1]УСХ!P51+'[1]З С '!P51+[1]РА!P51)","v":615},{"$f":"SUM([1]УФ!Q51+[1]ОК!Q51+[1]РОО!Q51+[1]УСХ!Q51+'[1]З С '!Q51+[1]РА!Q51)","v":407.4},{"$f":"SUM([1]УФ!R51+[1]ОК!R51+[1]РОО!R51+[1]УСХ!R51+'[1]З С '!R51+[1]РА!R51)","v":643.70000000000005}]
[null,"1.1.43.   ","создание условий для предоставления транспортных услуг населению и организация транспортного обслуживания населения в границах сельского поселения",1044]
[null,"1.1.44.   ","участие в профилактике терроризма и экстремизма, а также в минимизации и (или) ликвидации последствий проявлений терроризма и экстремизма в границах сельского поселения",1045]
[null,"1.1.45.   ","создание условий для реализации мер, направленных на укрепление межнационального и межконфессионального согласия, сохранение и развитие языков и культуры народов Российской Федерации, проживающих на территории сельского поселения, социальную и культурную адаптацию мигрантов, профилактику межнациональных (межэтнических) конфликтов на территории сельского поселения",1046]
[null,"1.1.46.   ","участие в предупреждении и ликвидации последствий чрезвычайных ситуаций в границах сельского поселения",1047]
[null,"1.1.47.   ","организация библиотечного обслуживания населения, комплектование и обеспечение сохранности библиотечных фондов библиотек сельского поселения",1048]
[null,"1.1.48.   ","сохранение, использование и популяризация объектов культурного наследия (памятников истории и культуры), находящихся в собственности сельского поселения, охрана объектов культурного наследия (памятников истории и культуры) местного (муниципального) значения, расположенных на территории сельского поселения",1049]
[null,"1.1.49.   ","создание условий для массового отдыха жителей сельского поселения и организация обустройства мест массового отдыха населения, включая обеспечение свободного доступа граждан к водным объектам общего пользования и их береговым полосам на территории сельского поселения",1050,"Федеральный закон от 06.10.2003 N 131-ФЗ\n\"Об общих принципах организации местного самоуправления в Российской Федерации\"\n","ст.15 п.1 пп.24","06.10.2003          не ограничен"]
[null,"1.1.50.   ","участие в организации деятельности по сбору (в том числе раздельному сбору), транспортированию, обработке, утилизации, обезвреживанию, захоронению твердых коммунальных отходов на территории сельского поселения",1051]
[null,"1.1.51.   ","использование, охрана, защита, воспроизводство лесов, лесов особо охраняемых природных территорий, расположенных в границах населенных пунктов сельского поселения",1052]
[null,"1.1.52.   ","утверждение генеральных планов сельского поселения, правил землепользования и застройки, утверждение подготовленной на основе генеральных планов сельского поселения документации по планировке территории, выдача разрешений на строительство (за исключением случаев, предусмотренных Градостроительным кодексом Российской Федерации, иными федеральными законами), разрешений на ввод объектов в эксплуатацию при осуществлении строительства, реконструкции объектов капитального строительства, расположенных на территории сельского поселения, утверждение местных нормативов градостроительного проектирования сельских поселений, резервирование земель и изъятие земельных участков в границах сельского поселения для муниципальных нужд, осуществление муниципального земельного контроля в границах сельского поселения, осуществление в случаях, предусмотренных Градостроительным кодексом Российской Федерации, осмотров зданий, сооружений и выдача рекомендаций об устранении выявленных в ходе таких осмотров нарушений на территории сельского поселения",1053]
[null,"1.1.53.   ","организация ритуальных услуг и содержание мест захоронения на территории сельского поселения",1054]
[null,"1.1.54.   ","организация и осуществление мероприятий по территориальной обороне и гражданской обороне, защите населения и территории сельского поселения от чрезвычайных ситуаций природного и техногенного характера на территории сельского поселения",1055]
[null,"1.1.55.   ","создание, содержание и организация деятельности аварийно-спасательных служб и (или) аварийно-спасательных формирований на территории сельского поселения",1056]
[null,"1.1.56.   ","осуществление мероприятий по обеспечению безопасности людей на водных объектах, охране их жизни и здоровья на территории сельского поселения",1057]
[null,"1.1.57.   ","создание, развитие и обеспечение охраны лечебно-оздоровительных местностей и курортов местного значения на территории сельского поселения, а также осуществление муниципального контроля в области использования и охраны особо охраняемых природных территорий местного значения на территории сельского поселения",1058]
[null,"1.1.58.   ","осуществление в пределах, установленных водным законодательством Российской Федерации, полномочий собственника водных объектов, информирование населения об ограничениях их использования на территории сельского поселения",1059]
[null,"1.1.59.   ","осуществление муниципального лесного контроля на территории сельского поселения",1060]
[null,"1.1.60.   ","предоставление помещения для работы на обслуживаемом административном участке сельского поселения сотруднику, замещающему должность участкового уполномоченного полиции на территории сельского поселения",1061]
[null,"1.1.61.   ","до 1 января 2017 года предоставление сотруднику, замещающему должность участкового уполномоченного полиции, и членам его семьи жилого помещения на период выполнения сотрудником обязанностей по указанной должности на территории сельского поселения на территории сельского поселения",1062]
[null,"1.1.62.   ","оказание поддержки социально ориентированным некоммерческим организациям в пределах полномочий, установленных статьями 31.1 и 31.3 Федерального закона от 12 января 1996 года № 7-ФЗ «О некоммерческих организациях» на территории сельского поселения",1063]
[null,"1.1.63.   ","обеспечение выполнения работ, необходимых для создания искусственных земельных участков для нужд сельского поселения, проведение открытого аукциона на право заключить договор о создании искусственного земельного участка в соответствии с федеральным законом на территории сельского поселения",1064]
[null,"1.1.64.   ","осуществление мер по противодействию коррупции в границах сельского поселения",1065]
[null,"1.1.65.   ","участие в соответствии с Федеральным законом от 24 июля 2007 года № 221-ФЗ «О государственном кадастре недвижимости» в выполнении комплексных кадастровых работ на территории сельского поселения",1066]
[null,"1.2.             ","Расходные обязательства, возникшие в результате принятия нормативных правовых актов муниципального района, заключения договоров (соглашений) в рамках реализации полномочий органов местного самоуправления муниципального района по решению вопросов местного значения муниципального района, всего",1100,"х","х","х","х","х","х","х","х",{"$f":"SUM(M77:M119)","v":48082.000000000007},47609.5,52334.400000000001,59162.799999999988,54430.7,56255.9]
[null,"1.2.1.       ","функционирование органов местного самоуправления",1101,"Федеральный закон от 02.03.2007 N 25-ФЗ\n\"О муниципальной службе в Российской Федерации\"\n",null,"02.03.2007           не ограничен","Закон Нижегородской области от 03.08.2007 № 99-З \" О муниципальной службе в Нижегородской области\" ","ст.25","2007-08-03","01                     01                  01            01                   01                    01                  05          10                  10                             ","03                   04                  06                    07                      11                    13                      03                 01                     03                             ",{"$f":"SUM([1]УФ!M76+[1]ОК!M76+[1]РОО!M76+[1]УСХ!M76+'[1]З С '!M76+[1]РА!M76)","v":39204.600000000006},{"$f":"SUM([1]УФ!N76+[1]ОК!N76+[1]РОО!N76+[1]УСХ!N76+'[1]З С '!N76+[1]РА!N76)","v":38732.1},{"$f":"SUM([1]УФ!O76+[1]ОК!O76+[1]РОО!O76+[1]УСХ!O76+'[1]З С '!O76+[1]РА!O76)","v":43382.400000000001},{"$f":"SUM([1]УФ!P76+[1]ОК!P76+[1]РОО!P76+[1]УСХ!P76+'[1]З С '!P76+[1]РА!P76)","v":52367.899999999994},{"$f":"SUM([1]УФ!Q76+[1]ОК!Q76+[1]РОО!Q76+[1]УСХ!Q76+'[1]З С '!Q76+[1]РА!Q76)","v":48508.2},{"$f":"SUM([1]УФ!R76+[1]ОК!R76+[1]РОО!R76+[1]УСХ!R76+'[1]З С '!R76+[1]РА!R76)","v":50285.8}]
[null,"1.2.2.       ","финансирование муниципальных учреждений",1102,{"$nulls":8},{"$f":"SUM([1]УФ!M77+[1]ОК!M77+[1]РОО!M77+[1]УСХ!M77+'[1]З С '!M77+[1]РА!M77)","v":3154.8},{"$f":"SUM([1]УФ!N77+[1]ОК!N77+[1]РОО!N77+[1]УСХ!N77+'[1]З С '!N77+[1]РА!N77)","v":3154.8},{"$f":"SUM([1]УФ!O77+[1]ОК!O77+[1]РОО!O77+[1]УСХ!O77+'[1]З С '!O77+[1]РА!O77)","v":3288.5},{"$f":"SUM([1]УФ!P77+[1]ОК!P77+[1]РОО!P77+[1]УСХ!P77+'[1]З С '!P77+[1]РА!P77)","v":3471.7},{"$f":"SUM([1]УФ!Q77+[1]ОК!Q77+[1]РОО!Q77+[1]УСХ!Q77+'[1]З С '!Q77+[1]РА!Q77)","v":3471.7},{"$f":"SUM([1]УФ!R77+[1]ОК!R77+[1]РОО!R77+[1]УСХ!R77+'[1]З С '!R77+[1]РА!R77)","v":3471.7}]
[null,"1.2.3.       ","принятие устава муниципального образования и внесение в него изменений и дополнений, издание муниципальных правовых актов",1103]
[null,"1.2.4.       ","установление официальных символов муниципального образования",1104]
[null,"1.2.5.       ","создание муниципальных предприятий и учреждений, осуществление финансового обеспечения деятельности муниципальных казенных учреждений и финансового обеспечения выполнения муниципального задания бюджетными и автономными муниципальными учреждениями, а также осуществление закупок товаров, работ, услуг для обеспечения муниципальных нужд","Организация предоставления государственных и муниципальных услуг в многофункциональных центрах предоставления государственных и муниципальных услуг                            1105","Федеральный закон от 06.10.2003 N 131-ФЗ\n\"Об общих принципах организации местного самоуправления в Российской Федерации\"\n","ст.17 п.1 пп.3","08.05.2010         не ограничен",null,null,null,"01",13,{"$f":"SUM([1]УФ!M80+[1]ОК!M80+[1]РОО!M80+[1]УСХ!M80+'[1]З С '!M80+[1]РА!M80)","v":3104.6},{"$f":"SUM([1]УФ!N80+[1]ОК!N80+[1]РОО!N80+[1]УСХ!N80+'[1]З С '!N80+[1]РА!N80)","v":3104.6},{"$f":"SUM([1]УФ!O80+[1]ОК!O80+[1]РОО!O80+[1]УСХ!O80+'[1]З С '!O80+[1]РА!O80)","v":3215.7},{"$f":"SUM([1]УФ!P80+[1]ОК!P80+[1]РОО!P80+[1]УСХ!P80+'[1]З С '!P80+[1]РА!P80)","v":918.1},{"$f":"SUM([1]УФ!Q80+[1]ОК!Q80+[1]РОО!Q80+[1]УСХ!Q80+'[1]З С '!Q80+[1]РА!Q80)","v":0},{"$f":"SUM([1]УФ!R80+[1]ОК!R80+[1]РОО!R80+[1]УСХ!R80+'[1]З С '!R80+[1]РА!R80)","v":0}]
[null,"1.2.6.       ","установление тарифов на услуги, предоставляемые муниципальными предприятиями и учреждениями, и работы, выполняемые муниципальными предприятиями и учреждениями, если иное не предусмотрено федеральными законами",1106]
[null,"1.2.7.       ","регулирование тарифов на подключение к системе коммунальной инфраструктуры, тарифов организаций коммунального комплекса на подключение, надбавок к тарифам на товары и услуги организаций коммунального комплекса, надбавок к ценам (тарифам) для потребителей.",1107]
[null,"1.2.8.       ","полномочиями по организации теплоснабжения, предусмотренными Федеральным законом «О теплоснабжении»",1108]
[null,"1.2.9.       ","полномочиями в сфере водоснабжения и водоотведения, предусмотренными Федеральным законом «О водоснабжении и водоотведении»",1109]
[null,"1.2.10.   ","организационное и материально-техническое обеспечение подготовки и проведения муниципальных выборов, местного референдума, голосования по отзыву депутата, члена выборного органа местного самоуправления, выборного должностного лица местного самоуправления, голосования по вопросам изменения границ муниципального образования, преобразования муниципального образования",1110]
[null,"1.2.11.   ","принятие и организация выполнения планов и программ комплексного социально-экономического развития муниципального образования, а также организация сбора статистических показателей, характеризующих состояние экономики и социальной сферы муниципального образования, и предоставление указанных данных органам государственной власти в порядке, установленном Правительством Российской Федерации",1111]
[null,"1.2.12.   ","разработка и утверждение программ комплексного развития систем коммунальной инфраструктуры поселений, городских округов, программ комплексного развития транспортной инфраструктуры поселений, городских округов, программ комплексного развития социальной инфраструктуры поселений, городских округов, требования к которым устанавливаются Правительством Российской Федерации",1112]
[null,"1.2.13.   ","учреждение печатного средства массовой информации для опубликования муниципальных правовых актов, обсуждения проектов муниципальных правовых актов по вопросам местного значения, доведения до сведения жителей муниципального образования официальной информации о социально-экономическом и культурном развитии муниципального образования, о развитии его общественной инфраструктуры и иной официальной информации",1113,"Федеральный закон от 06.10.2003 N 131-ФЗ\n\"Об общих принципах организации местного самоуправления в Российской Федерации\"\n","ст.17 п.7","31.12.2005         не ограничен",null,null,null,"12","02",{"$f":"SUM([1]УФ!M88+[1]ОК!M88+[1]РОО!M88+[1]УСХ!M88+'[1]З С '!M88+[1]РА!M88)","v":2618},{"$f":"SUM([1]УФ!N88+[1]ОК!N88+[1]РОО!N88+[1]УСХ!N88+'[1]З С '!N88+[1]РА!N88)","v":2618},{"$f":"SUM([1]УФ!O88+[1]ОК!O88+[1]РОО!O88+[1]УСХ!O88+'[1]З С '!O88+[1]РА!O88)","v":2447.8000000000002},{"$f":"SUM([1]УФ!P88+[1]ОК!P88+[1]РОО!P88+[1]УСХ!P88+'[1]З С '!P88+[1]РА!P88)","v":2405.1},{"$f":"SUM([1]УФ!Q88+[1]ОК!Q88+[1]РОО!Q88+[1]УСХ!Q88+'[1]З С '!Q88+[1]РА!Q88)","v":2450.8000000000002},{"$f":"SUM([1]УФ!R88+[1]ОК!R88+[1]РОО!R88+[1]УСХ!R88+'[1]З С '!R88+[1]РА!R88)","v":2498.4}]
[null,"1.2.14.   ","осуществление международных и внешнеэкономических связей в соответствии с федеральными законами",1114]
[null,"1.2.15.   ","организация профессионального образования и дополнительного профессионального образования выборных должностных лиц местного самоуправления, членов выборных органов местного самоуправления, депутатов представительных органов муниципальных образований, муниципальных служащих и работников муниципальных учреждений, организация подготовки кадров для муниципальной службы в порядке, предусмотренном законодательством Российской Федерации об образовании и законодательством Российской Федерации о муниципальной службе",1115]
[null,"1.2.16.   ","утверждение и реализация муниципальных программ в области энергосбережения и повышения энергетической эффективности, организация проведения энергетического обследования многоквартирных домов, помещения в которых составляют муниципальный жилищный фонд в границах муниципального образования, организация и проведение иных мероприятий, предусмотренных законодательством об энергосбережении и о повышении энергетической эффективности",1116]
[null,"1.2.17.   ","…",1117]
[null,"…","…","…"]
[null,"1.2.99.","…",1199]
[null,"1.3.             ","Расходные обязательства, возникшие в результате принятия нормативных правовых актов муниципального района, заключения договоров (соглашений) в рамках реализации органами местного самоуправления муниципального района прав на решение вопросов, не отнесенных к вопросам местного значения муниципального района, всего",1200,"х","х","х","х","х","х","х","х"]
[null,"1.3.1.       ","по перечню, предусмотренному Федеральным законом от 06.10.2003 № 131-ФЗ «Об общих принципах организации местного самоуправления в Российской Федерации», всего",1201,"х","х","х","х","х","х","х","х"]
[null,"1.3.1.1.  ","создание музеев муниципального района",1202]
[null,"1.3.1.2.     ","участие в осуществлении деятельности по опеке и попечительству",1203]
[null,"1.3.1.3.                        ","создание условий для осуществления деятельности, связанной с реализацией прав местных национально-культурных автономий на территории муниципального района",1204]
[null,"1.3.1.4.                        ","оказание содействия национально-культурному развитию народов Российской Федерации и реализации мероприятий в сфере межнациональных отношений на территории муниципального района",1205]
[null,"1.3.1.5.                        ","осуществление функций учредителя муниципальных образовательных организаций высшего образования, находящихся в их ведении по состоянию на 31 декабря 2008 года",1206]
[null,"1.3.1.6.","создание условий для развития туризма",1207]
[null,"1.3.1.7.                        ","оказание поддержки общественным наблюдательным комиссиям, осуществляющим общественный контроль за обеспечением прав человека и содействие лицам, находящимся в местах принудительного содержания",1208]
[null,"1.3.1.8.                        ","оказание поддержки общественным объединениям инвалидов, а также созданным общероссийскими общественными объединениями инвалидов организациям в соответствии с Федеральным законом от 24 ноября 1995 года № 181-ФЗ «О социальной защите инвалидов в Российской Федерации»",1209]
[null,"1.3.1.9.                        ","осуществление мероприятий, предусмотренных Федеральным законом «О донорстве крови и ее компонентов»",1210]
[null,"1.3.1.10.                    ","совершение нотариальных действий, предусмотренных законодательством, в случае отсутствия в расположенном на межселенной территории населенном пункте нотариуса",1211]
[null,"1.3.1.11.                    ","создание условий для организации проведения независимой оценки качества оказания услуг организациями в порядке и на условиях, которые установлены федеральными законами",1212]
[null,"1.3.1.12. ","…",1213]
[null,"…","…","…"]
[null,"1.3.1.98.","…",1299]
[null,"1.3.2.       ","по участию в осуществлении государственных полномочий (не переданных в соответствии со статьей 19 Федерального закона от 06.10.2003 № 131-ФЗ «Об общих принципах организации местного самоуправления в Российской Федерации»), если это участие предусмотрено федеральными законами, всего",1300,"х","х","х","х","х","х","х","х"]
[null,"1.3.2.1.    ","…",1301]
[null,"…","…","…"]
[null,"1.3.2.99","…",1399]
[null,"1.3.3.       ","по реализации вопросов, не отнесенных к компетенции органов местного самоуправления других муниципальных образований, органов государственной власти и не исключенных из их компетенции федеральными законами и законами субъектов Российской Федерации, всего",1400,"х","х","х","х","х","х","х","х"]
[null,"1.3.3.1.  ","…",1401]
[null,"…","…","…"]
[null,"1.3.3.99.","…",1499]
[null,"1.4.             ","Расходные обязательства, возникшие в результате принятия нормативных правовых актов муниципального района, заключения договоров (соглашений) в рамках реализации органами местного самоуправления муниципального района отдельных государственных полномочий, переданных органами государственной власти Российской Федерации и (или) органами государственной власти субъекта Российской",1500,"х","х","х","х","х","х","х","х",{"$f":"SUM(M122)","v":225489.00000000006},224524.09999999998,185030.69999999998,203525.99999999997,202945.90000000002,203006.9]
[null,null,"Федерации, всего"]
[null,"1.4.1.       ","за счет субвенций, предоставленных из федерального бюджета или бюджета субъекта Российской Федерации, всего",1501,"х","х","х","х","х","х","х","х",{"$f":"SUM(M123:M178)","v":225489.00000000006},224524.09999999998,185030.69999999998,203525.99999999997,202945.90000000002,203006.9]
[null,"1.4.1.1.                        ","Субвенции на возмещение части затрат сельскохозяйственных товаропроизводителей на уплату страховой премии, начисленной по договору сельскохозяйственного страхования в области животноводства, за счет средств областного бюджета",1502]
[null,"1.4.1.2.  ","Субвенции на исполнение полномочий в сфере общего образования в муниципальных дошкольных образовательных организациях ","1.Присмотр и уход                           2.Реализация основных общеобразовательных программ дошкольного образования             1503",null,null,null,"Закон Нижегородской области от 28.11.2013 N 160-З\n\"О предоставлении органам местного самоуправления муниципальных районов и городских округов Нижегородской области субвенций на исполнение полномочий в сфере общего образования\"\n","ст.6 п.2","2013-11-28","07","01",{"$f":"SUM([1]УФ!M123+[1]ОК!M123+[1]РОО!M123+[1]УСХ!M123+'[1]З С '!M123+[1]РА!M123)","v":50345.5},{"$f":"SUM([1]УФ!N123+[1]ОК!N123+[1]РОО!N123+[1]УСХ!N123+'[1]З С '!N123+[1]РА!N123)","v":50345.5},{"$f":"SUM([1]УФ!O123+[1]ОК!O123+[1]РОО!O123+[1]УСХ!O123+'[1]З С '!O123+[1]РА!O123)","v":51252.3},{"$f":"SUM([1]УФ!P123+[1]ОК!P123+[1]РОО!P123+[1]УСХ!P123+'[1]З С '!P123+[1]РА!P123)","v":55643.8},{"$f":"SUM([1]УФ!Q123+[1]ОК!Q123+[1]РОО!Q123+[1]УСХ!Q123+'[1]З С '!Q123+[1]РА!Q123)","v":55643.8},{"$f":"SUM([1]УФ!R123+[1]ОК!R123+[1]РОО!R123+[1]УСХ!R123+'[1]З С '!R123+[1]РА!R123)","v":55643.8}]
[null,"1.4.1.3.                        ","Субвенции на исполнение полномочий по финансовому обеспечению получения дошкольного образования  в частных дошкольных образовательных организациях посредством предоставления указанным образовательным организациям субсидий на возмещение затрат, включая расходы на оплату труда, приобретение учебников и учебных пособий, средств обучения, игр, игрушек (за исключением расходов на содержание зданий и оплату коммунальных услуг)  ",1504]
[null,"1.4.1.4.                        ","Субвенции на осуществление полномочий по созданию и организации деятельности муниципальных комиссий по  делам несовершеннолетних и защите их прав",1505,null,null,null,"Закон Нижегородской области от 26.10.2006 N 121-З\n\"О комиссиях по делам несовершеннолетних и защите их прав в Нижегородской области\"\n","ст.7","2006-10-26","01","04",{"$f":"SUM([1]УФ!M125+[1]ОК!M125+[1]РОО!M125+[1]УСХ!M125+'[1]З С '!M125+[1]РА!M125)","v":452.9},{"$f":"SUM([1]УФ!N125+[1]ОК!N125+[1]РОО!N125+[1]УСХ!N125+'[1]З С '!N125+[1]РА!N125)","v":452.9},{"$f":"SUM([1]УФ!O125+[1]ОК!O125+[1]РОО!O125+[1]УСХ!O125+'[1]З С '!O125+[1]РА!O125)","v":458.7},{"$f":"SUM([1]УФ!P125+[1]ОК!P125+[1]РОО!P125+[1]УСХ!P125+'[1]З С '!P125+[1]РА!P125)","v":472},{"$f":"SUM([1]УФ!Q125+[1]ОК!Q125+[1]РОО!Q125+[1]УСХ!Q125+'[1]З С '!Q125+[1]РА!Q125)","v":472},{"$f":"SUM([1]УФ!R125+[1]ОК!R125+[1]РОО!R125+[1]УСХ!R125+'[1]З С '!R125+[1]РА!R125)","v":472}]
[null,"1.4.1.5.                        ","Субвенции на осуществление полномочий по поддержке сельскохозяйственного производства ",1506,null,null,null,"Закон Нижегородской области от 11.11.2005 N 176-З\n\"О наделении органов местного самоуправления Нижегородской области отдельными государственными полномочиями по поддержке сельскохозяйственного производства\"\n","ст.5","2005-11-11","04","05",{"$f":"SUM([1]УФ!M126+[1]ОК!M126+[1]РОО!M126+[1]УСХ!M126+'[1]З С '!M126+[1]РА!M126)","v":3975.3},{"$f":"SUM([1]УФ!N126+[1]ОК!N126+[1]РОО!N126+[1]УСХ!N126+'[1]З С '!N126+[1]РА!N126)","v":3975.3},{"$f":"SUM([1]УФ!O126+[1]ОК!O126+[1]РОО!O126+[1]УСХ!O126+'[1]З С '!O126+[1]РА!O126)","v":4031.1},{"$f":"SUM([1]УФ!P126+[1]ОК!P126+[1]РОО!P126+[1]УСХ!P126+'[1]З С '!P126+[1]РА!P126)","v":4922.2},{"$f":"SUM([1]УФ!Q126+[1]ОК!Q126+[1]РОО!Q126+[1]УСХ!Q126+'[1]З С '!Q126+[1]РА!Q126)","v":4142.2},{"$f":"SUM([1]УФ!R126+[1]ОК!R126+[1]РОО!R126+[1]УСХ!R126+'[1]З С '!R126+[1]РА!R126)","v":4142.2}]
[null,"1.4.1.6.                        ","Субвенции на осуществление полномочий по организационно-техническому и информационно-методическому сопровождению аттестации педагогических работников муниципальных и частных организаций, осуществляющих образовательную деятельность, с целью установления соответствия уровня квалификации требованиям, предъявляемым к первой квалификационной категории",1507,null,null,null,"Закон Нижегородской области от 21.10.2005 N 140-З\n\"О наделении органов местного самоуправления отдельными государственными полномочиями в области образования\"\n","ст.5 п.4","2005-10-21","07","09",{"$f":"SUM([1]УФ!M127+[1]ОК!M127+[1]РОО!M127+[1]УСХ!M127+'[1]З С '!M127+[1]РА!M127)","v":611},{"$f":"SUM([1]УФ!N127+[1]ОК!N127+[1]РОО!N127+[1]УСХ!N127+'[1]З С '!N127+[1]РА!N127)","v":582.20000000000005},{"$f":"SUM([1]УФ!O127+[1]ОК!O127+[1]РОО!O127+[1]УСХ!O127+'[1]З С '!O127+[1]РА!O127)","v":600.5},{"$f":"SUM([1]УФ!P127+[1]ОК!P127+[1]РОО!P127+[1]УСХ!P127+'[1]З С '!P127+[1]РА!P127)","v":619.9},{"$f":"SUM([1]УФ!Q127+[1]ОК!Q127+[1]РОО!Q127+[1]УСХ!Q127+'[1]З С '!Q127+[1]РА!Q127)","v":636.29999999999995},{"$f":"SUM([1]УФ!R127+[1]ОК!R127+[1]РОО!R127+[1]УСХ!R127+'[1]З С '!R127+[1]РА!R127)","v":654.20000000000005}]
[null,"1.4.1.7.                        ","Субвенции на осуществление полномочий по организации и осуществлению деятельности по опеке и попечительству в отношении несовершеннолетних граждан ",1508,null,null,null,"\nЗакон Нижегородской области от 07.09.2007 N 125-З\n\"О наделении органов местного самоуправления муниципальных районов и городских округов Нижегородской области отдельными государственными полномочиями по организации и осуществлению деятельности по опеке и попечительству в отношении несовершеннолетних граждан\"\n",null,"2008-01-01","07","09",{"$f":"SUM([1]УФ!M128+[1]ОК!M128+[1]РОО!M128+[1]УСХ!M128+'[1]З С '!M128+[1]РА!M128)","v":449.8},{"$f":"SUM([1]УФ!N128+[1]ОК!N128+[1]РОО!N128+[1]УСХ!N128+'[1]З С '!N128+[1]РА!N128)","v":414.7},{"$f":"SUM([1]УФ!O128+[1]ОК!O128+[1]РОО!O128+[1]УСХ!O128+'[1]З С '!O128+[1]РА!O128)","v":455.4},{"$f":"SUM([1]УФ!P128+[1]ОК!P128+[1]РОО!P128+[1]УСХ!P128+'[1]З С '!P128+[1]РА!P128)","v":468.7},{"$f":"SUM([1]УФ!Q128+[1]ОК!Q128+[1]РОО!Q128+[1]УСХ!Q128+'[1]З С '!Q128+[1]РА!Q128)","v":468.7},{"$f":"SUM([1]УФ!R128+[1]ОК!R128+[1]РОО!R128+[1]УСХ!R128+'[1]З С '!R128+[1]РА!R128)","v":468.7}]
[null,"1.4.1.8.                        ","Субвенции на исполнение полномочий в сфере общего образования в муниципальных общеобразовательных организациях",1509,null,null,null,"Закон Нижегородской области от 28.11.2013 N 160-З\n\"О предоставлении органам местного самоуправления муниципальных районов и городских округов Нижегородской области субвенций на исполнение полномочий в сфере общего образования\"\n","ст.6 п.2","2013-11-28","07","02",{"$f":"SUM([1]УФ!M129+[1]ОК!M129+[1]РОО!M129+[1]УСХ!M129+'[1]З С '!M129+[1]РА!M129)","v":80099.8},{"$f":"SUM([1]УФ!N129+[1]ОК!N129+[1]РОО!N129+[1]УСХ!N129+'[1]З С '!N129+[1]РА!N129)","v":80099.8},{"$f":"SUM([1]УФ!O129+[1]ОК!O129+[1]РОО!O129+[1]УСХ!O129+'[1]З С '!O129+[1]РА!O129)","v":86365.6},{"$f":"SUM([1]УФ!P129+[1]ОК!P129+[1]РОО!P129+[1]УСХ!P129+'[1]З С '!P129+[1]РА!P129)","v":93582},{"$f":"SUM([1]УФ!Q129+[1]ОК!Q129+[1]РОО!Q129+[1]УСХ!Q129+'[1]З С '!Q129+[1]РА!Q129)","v":93582},{"$f":"SUM([1]УФ!R129+[1]ОК!R129+[1]РОО!R129+[1]УСХ!R129+'[1]З С '!R129+[1]РА!R129)","v":93582}]
[null,"1.4.1.9.                        ","Субвенции бюджету городского округа город Нижний Новгород на осуществление полномочий в области социальной поддержки и социального обслуживания семей, имеющих детей",1510,{"$nulls":8},{"$f":"SUM([1]УФ!M130+[1]ОК!M130+[1]РОО!M130+[1]УСХ!M130+'[1]З С '!M130+[1]РА!M130)","v":0},{"$f":"SUM([1]УФ!N130+[1]ОК!N130+[1]РОО!N130+[1]УСХ!N130+'[1]З С '!N130+[1]РА!N130)","v":0},{"$f":"SUM([1]УФ!O130+[1]ОК!O130+[1]РОО!O130+[1]УСХ!O130+'[1]З С '!O130+[1]РА!O130)","v":0},{"$f":"SUM([1]УФ!P130+[1]ОК!P130+[1]РОО!P130+[1]УСХ!P130+'[1]З С '!P130+[1]РА!P130)","v":0},{"$f":"SUM([1]УФ!Q130+[1]ОК!Q130+[1]РОО!Q130+[1]УСХ!Q130+'[1]З С '!Q130+[1]РА!Q130)","v":0},{"$f":"SUM([1]УФ!R130+[1]ОК!R130+[1]РОО!R130+[1]УСХ!R130+'[1]З С '!R130+[1]РА!R130)","v":0}]
[null,"1.4.1.10.                    ","Субвенции на осуществление выплаты компенсации части родительской платы за присмотр и уход за ребенком в государственных и муниципальных дошкольных образовательных организациях, частных образовательных организациях, реализующих образовательную программу дошкольного образования, в том числе обеспечение организации выплаты компенсации части родительской платы ",1511,null,null,null,"Закон Нижегородской области от 07.09.2007 N 121-З\n\"О наделении органов местного самоуправления муниципальных районов и городских округов Нижегородской области государственными полномочиями по осуществлению денежных выплат и выплат вознаграждения отдельным категориям граждан\"\n","ст.5 п.3","2008-01-01","10","04",{"$f":"SUM([1]УФ!M131+[1]ОК!M131+[1]РОО!M131+[1]УСХ!M131+'[1]З С '!M131+[1]РА!M131)","v":2171},{"$f":"SUM([1]УФ!N131+[1]ОК!N131+[1]РОО!N131+[1]УСХ!N131+'[1]З С '!N131+[1]РА!N131)","v":1837.4},{"$f":"SUM([1]УФ!O131+[1]ОК!O131+[1]РОО!O131+[1]УСХ!O131+'[1]З С '!O131+[1]РА!O131)","v":2370.1999999999998},{"$f":"SUM([1]УФ!P131+[1]ОК!P131+[1]РОО!P131+[1]УСХ!P131+'[1]З С '!P131+[1]РА!P131)","v":2352.3000000000002},{"$f":"SUM([1]УФ!Q131+[1]ОК!Q131+[1]РОО!Q131+[1]УСХ!Q131+'[1]З С '!Q131+[1]РА!Q131)","v":2352.3000000000002},{"$f":"SUM([1]УФ!R131+[1]ОК!R131+[1]РОО!R131+[1]УСХ!R131+'[1]З С '!R131+[1]РА!R131)","v":2352.3000000000002}]
[null,"1.4.1.11.                    ","Субвенции на осуществление органами местного самоуправления муниципальных районов полномочий органов государственной власти Нижегородской области по расчету и предоставлению дотаций бюджетам поселений ",1512]
[null,"1.4.1.12.                    ","Субвенции на возмещение части процентной ставки по инвестиционным  кредитам (займам) на развитие растениеводства, переработки и развития инфраструктуры и логистического обеспечения рынков продукции растениеводства за счет средств областного бюджета ",1513]
[null,"1.4.1.13.                    ","Субвенции на возмещение части затрат на приобретение элитных семян за счет средств областного бюджета",1514,null,null,null,"Закон Нижегородской области от 11.11.2005 N 176-З\n\"О наделении органов местного самоуправления Нижегородской области отдельными государственными полномочиями по поддержке сельскохозяйственного производства\"","пр.27","2006-01-01","04","05",{"$f":"SUM([1]УФ!M134+[1]ОК!M134+[1]РОО!M134+[1]УСХ!M134+'[1]З С '!M134+[1]РА!M134)","v":1237.4000000000001},{"$f":"SUM([1]УФ!N134+[1]ОК!N134+[1]РОО!N134+[1]УСХ!N134+'[1]З С '!N134+[1]РА!N134)","v":1237.4000000000001},{"$f":"SUM([1]УФ!O134+[1]ОК!O134+[1]РОО!O134+[1]УСХ!O134+'[1]З С '!O134+[1]РА!O134)","v":2901.7},{"$f":"SUM([1]УФ!P134+[1]ОК!P134+[1]РОО!P134+[1]УСХ!P134+'[1]З С '!P134+[1]РА!P134)","v":2082.3000000000002},{"$f":"SUM([1]УФ!Q134+[1]ОК!Q134+[1]РОО!Q134+[1]УСХ!Q134+'[1]З С '!Q134+[1]РА!Q134)","v":2070.6999999999998},{"$f":"SUM([1]УФ!R134+[1]ОК!R134+[1]РОО!R134+[1]УСХ!R134+'[1]З С '!R134+[1]РА!R134)","v":2057.5}]
[null,"1.4.1.14.                    ","Субвенции на исполнение полномочий по финансовому обеспечению получения дошкольного, начального общего, основного общего, среднего общего образования в частных общеобразовательных организациях, осуществляющих образовательную деятельность по имеющим государственную аккредитацию основным общеобразовательным программам, посредством предоставления указанным образовательным организациям субсидий на возмещение затрат, включая расходы на оплату труда, приобретение учебников и учебных пособий, средств обучения, игр, игрушек (за исключением расходов на содержание зданий и оплату коммунальных услуг)",1515]
[null,"1.4.1.15.","Субвенции на поддержку племенного животноводства за счет средств областного бюджета  ",1516,null,null,null,"Закон Нижегородской области от 11.11.2005 N 176-З\n\"О наделении органов местного самоуправления Нижегородской области отдельными государственными полномочиями по поддержке сельскохозяйственного производства\"\n",null,"2006-01-01","04","05",{"$f":"SUM([1]УФ!M136+[1]ОК!M136+[1]РОО!M136+[1]УСХ!M136+'[1]З С '!M136+[1]РА!M136)","v":0},{"$f":"SUM([1]УФ!N136+[1]ОК!N136+[1]РОО!N136+[1]УСХ!N136+'[1]З С '!N136+[1]РА!N136)","v":0},{"$f":"SUM([1]УФ!O136+[1]ОК!O136+[1]РОО!O136+[1]УСХ!O136+'[1]З С '!O136+[1]РА!O136)","v":1632.1},{"$f":"SUM([1]УФ!P136+[1]ОК!P136+[1]РОО!P136+[1]УСХ!P136+'[1]З С '!P136+[1]РА!P136)","v":2545.5},{"$f":"SUM([1]УФ!Q136+[1]ОК!Q136+[1]РОО!Q136+[1]УСХ!Q136+'[1]З С '!Q136+[1]РА!Q136)","v":2545.5},{"$f":"SUM([1]УФ!R136+[1]ОК!R136+[1]РОО!R136+[1]УСХ!R136+'[1]З С '!R136+[1]РА!R136)","v":2596.1}]
[null,"1.4.1.16.                    ","Субвенции на возмещение части процентной ставки по долгосрочным, среднесрочным и краткосрочным кредитам, взятым малыми формами хозяйствования, за счет средств областного бюджета",1517,null,null,null,"Закон Нижегородской области от 11.11.2005 N 176-З\n\"О наделении органов местного самоуправления Нижегородской области отдельными государственными полномочиями по поддержке сельскохозяйственного производства\"\n",null,"2006-01-01","04","05",{"$f":"SUM([1]УФ!M137+[1]ОК!M137+[1]РОО!M137+[1]УСХ!M137+'[1]З С '!M137+[1]РА!M137)","v":42.1},{"$f":"SUM([1]УФ!N137+[1]ОК!N137+[1]РОО!N137+[1]УСХ!N137+'[1]З С '!N137+[1]РА!N137)","v":42.1},{"$f":"SUM([1]УФ!O137+[1]ОК!O137+[1]РОО!O137+[1]УСХ!O137+'[1]З С '!O137+[1]РА!O137)","v":25.7},{"$f":"SUM([1]УФ!P137+[1]ОК!P137+[1]РОО!P137+[1]УСХ!P137+'[1]З С '!P137+[1]РА!P137)","v":13.2},{"$f":"SUM([1]УФ!Q137+[1]ОК!Q137+[1]РОО!Q137+[1]УСХ!Q137+'[1]З С '!Q137+[1]РА!Q137)","v":0},{"$f":"SUM([1]УФ!R137+[1]ОК!R137+[1]РОО!R137+[1]УСХ!R137+'[1]З С '!R137+[1]РА!R137)","v":0}]
[null,"1.4.1.17.                    ","Субвенции на поддержку племенного крупного рогатого скота молочного направления за счет средств областного бюджета ",1518,null,null,null,"Закон Нижегородской области от 11.11.2005 N 176-З\n(ред. от 01.06.2016)\n","ст.1 п.44","2006-01-01","04","05",{"$f":"SUM([1]УФ!M138+[1]ОК!M138+[1]РОО!M138+[1]УСХ!M138+'[1]З С '!M138+[1]РА!M138)","v":18864.900000000001},{"$f":"SUM([1]УФ!N138+[1]ОК!N138+[1]РОО!N138+[1]УСХ!N138+'[1]З С '!N138+[1]РА!N138)","v":18864.900000000001},{"$f":"SUM([1]УФ!O138+[1]ОК!O138+[1]РОО!O138+[1]УСХ!O138+'[1]З С '!O138+[1]РА!O138)","v":0},{"$f":"SUM([1]УФ!P138+[1]ОК!P138+[1]РОО!P138+[1]УСХ!P138+'[1]З С '!P138+[1]РА!P138)","v":0},{"$f":"SUM([1]УФ!Q138+[1]ОК!Q138+[1]РОО!Q138+[1]УСХ!Q138+'[1]З С '!Q138+[1]РА!Q138)","v":0},{"$f":"SUM([1]УФ!R138+[1]ОК!R138+[1]РОО!R138+[1]УСХ!R138+'[1]З С '!R138+[1]РА!R138)","v":0}]
[null,"1.4.1.18.                    ","Субвенции на осуществление выплат на возмещение части расходов по приобретению путевок в детские санатории, санаторно-оздоровительные центры (лагеря) круглогодичного действия и иные организации, осуществляющие санаторно-курортное лечение детей в соответствии с имеющейся лицензией, иные организации, осуществляющие санаторно-курортную помощь детям в соответствии с имеющейся лицензией, расположенные на территории Российской Федерации",1519,null,null,null,"Закон Нижегородской области от 07.09.2007 N 121-З\n\"О наделении органов местного самоуправления муниципальных районов и городских округов Нижегородской области государственными полномочиями по осуществлению денежных выплат и выплат вознаграждения отдельным категориям граждан\"\n",null,"2008-01-01","07","07",{"$f":"SUM([1]УФ!M139+[1]ОК!M139+[1]РОО!M139+[1]УСХ!M139+'[1]З С '!M139+[1]РА!M139)","v":293.39999999999998},{"$f":"SUM([1]УФ!N139+[1]ОК!N139+[1]РОО!N139+[1]УСХ!N139+'[1]З С '!N139+[1]РА!N139)","v":293.39999999999998},{"$f":"SUM([1]УФ!O139+[1]ОК!O139+[1]РОО!O139+[1]УСХ!O139+'[1]З С '!O139+[1]РА!O139)","v":317.8},{"$f":"SUM([1]УФ!P139+[1]ОК!P139+[1]РОО!P139+[1]УСХ!P139+'[1]З С '!P139+[1]РА!P139)","v":330.6},{"$f":"SUM([1]УФ!Q139+[1]ОК!Q139+[1]РОО!Q139+[1]УСХ!Q139+'[1]З С '!Q139+[1]РА!Q139)","v":330.6},{"$f":"SUM([1]УФ!R139+[1]ОК!R139+[1]РОО!R139+[1]УСХ!R139+'[1]З С '!R139+[1]РА!R139)","v":330.6}]
[null,"1.4.1.19.                    ","Субвенции на стабилизацию и увеличение поголовья крупного рогатого скота за счет средств областного бюджета",1520,null,null,null,"Закон Нижегородской области от 11.11.2005 N 176-З\n\"О наделении органов местного самоуправления Нижегородской области отдельными государственными полномочиями по поддержке сельскохозяйственного производства\"\n",null,"2006-01-01","04","05"]
[null,"1.4.1.20.                    ","Субвенции для финансового обеспечения стимулирования производства сельскохозяйственной продукции гражданами, ведущими личное подсобное хозяйство, за счет средств областного бюджета ",1521]
[null,"1.4.1.21.                    ","Субвенции на осуществление полномочий по организации проведения мероприятий по предупреждению и ликвидации болезней животных, их лечению, защите населения от болезней, общих для человека и животных, в части обеспечения безопасности сибиреязвенных скотомогильников",1522]
[null,"1.4.1.22.                    ","Субвенции на осуществление полномочий по организации проведения мероприятий по предупреждению и ликвидации болезней животных, их лечению, защите населения от болезней, общих для человека и животных, в части регулирования численности безнадзорных животных ",1523,null,null,null,"Закон Нижегородской области от 03.10.2013 N 129-З\n\"О наделении органов местного самоуправления муниципальных районов и городских округов Нижегородской области отдельными государственными полномочиями по организации проведения мероприятий по предупреждению и ликвидации болезней животных, их лечению, отлову и содержанию безнадзорных животных, защите населения от болезней, общих для человека и животных\"\n",null,"2013-10-03","04","05",{"$f":"SUM([1]УФ!M143+[1]ОК!M143+[1]РОО!M143+[1]УСХ!M143+'[1]З С '!M143+[1]РА!M143)","v":117.7},{"$f":"SUM([1]УФ!N143+[1]ОК!N143+[1]РОО!N143+[1]УСХ!N143+'[1]З С '!N143+[1]РА!N143)","v":117.6},{"$f":"SUM([1]УФ!O143+[1]ОК!O143+[1]РОО!O143+[1]УСХ!O143+'[1]З С '!O143+[1]РА!O143)","v":50.2},{"$f":"SUM([1]УФ!P143+[1]ОК!P143+[1]РОО!P143+[1]УСХ!P143+'[1]З С '!P143+[1]РА!P143)","v":61},{"$f":"SUM([1]УФ!Q143+[1]ОК!Q143+[1]РОО!Q143+[1]УСХ!Q143+'[1]З С '!Q143+[1]РА!Q143)","v":61},{"$f":"SUM([1]УФ!R143+[1]ОК!R143+[1]РОО!R143+[1]УСХ!R143+'[1]З С '!R143+[1]РА!R143)","v":61}]
[null,"1.4.1.23.                    ","Субвенции на возмещение части затрат сельскохозяйственных товаропроизводителей на уплату страховой премии, начисленной по договору сельскохозяйственного страхования в области растениеводства, за счет средств областного бюджета",1524]
[null,"1.4.1.24.                    ","Субвенции на реализацию экономически значимой программы \"Развитие мясного скотоводства в Нижегородской области на 2015-2017 годы\" за счет средств областного бюджета ",1525,null,null,null,"Заакон Нижегородской области от 11.11.2005 N 176-З\n\"О наделении органов местного самоуправления Нижегородской области отдельными государственными полномочиями по поддержке сельскохозяйственного производства\"\n",null,"2005-11-11","04","05",{"$f":"SUM([1]УФ!M145+[1]ОК!M145+[1]РОО!M145+[1]УСХ!M145+'[1]З С '!M145+[1]РА!M145)","v":40784.5},{"$f":"SUM([1]УФ!N145+[1]ОК!N145+[1]РОО!N145+[1]УСХ!N145+'[1]З С '!N145+[1]РА!N145)","v":40784.5},{"$f":"SUM([1]УФ!O145+[1]ОК!O145+[1]РОО!O145+[1]УСХ!O145+'[1]З С '!O145+[1]РА!O145)","v":1225},{"$f":"SUM([1]УФ!P145+[1]ОК!P145+[1]РОО!P145+[1]УСХ!P145+'[1]З С '!P145+[1]РА!P145)","v":1424},{"$f":"SUM([1]УФ!Q145+[1]ОК!Q145+[1]РОО!Q145+[1]УСХ!Q145+'[1]З С '!Q145+[1]РА!Q145)","v":1424},{"$f":"SUM([1]УФ!R145+[1]ОК!R145+[1]РОО!R145+[1]УСХ!R145+'[1]З С '!R145+[1]РА!R145)","v":1424}]
[null,"1.4.1.25.                    ","Субвенции на проведение ремонта жилых помещений, собственниками которых являются дети-сироты и дети, оставшиеся без попечения родителей, а также лица из числа детей-сирот и детей, оставшихся без попечения родителей, либо жилых помещений государственного жилищного фонда, право пользования которыми за ними сохранено, в целях обеспечения надлежащего санитарного и технического состояния этих жилых помещений",1526]
[null,"1.4.1.26.                    ","Субвенция бюджету городского округа город Нижний Новгород на осуществление полномочий по определению перечня должностных лиц органов местного самоуправления, уполномоченных составлять протоколы об административных правонарушениях, и по созданию административных комиссий  ",1527]
[null,"1.4.1.27.                    ","Субвенция на осуществление полномочий по организации и осуществлению деятельности по опеке и попечительству в отношении совершеннолетних граждан",1528,null,null,null,"Приказ минфина Нижегородской области от 23.09.2016 N 175\n\"Об утверждении Порядка планирования бюджетных ассигнований областного бюджета на 2017 год и на плановый период 2018 и 2019 годов\"\n",null,null,"10","06",{"$f":"SUM([1]УФ!M148+[1]ОК!M148+[1]РОО!M148+[1]УСХ!M148+'[1]З С '!M148+[1]РА!M148)","v":381.8},{"$f":"SUM([1]УФ!N148+[1]ОК!N148+[1]РОО!N148+[1]УСХ!N148+'[1]З С '!N148+[1]РА!N148)","v":263.3},{"$f":"SUM([1]УФ!O148+[1]ОК!O148+[1]РОО!O148+[1]УСХ!O148+'[1]З С '!O148+[1]РА!O148)","v":387},{"$f":"SUM([1]УФ!P148+[1]ОК!P148+[1]РОО!P148+[1]УСХ!P148+'[1]З С '!P148+[1]РА!P148)","v":397.9},{"$f":"SUM([1]УФ!Q148+[1]ОК!Q148+[1]РОО!Q148+[1]УСХ!Q148+'[1]З С '!Q148+[1]РА!Q148)","v":397.9},{"$f":"SUM([1]УФ!R148+[1]ОК!R148+[1]РОО!R148+[1]УСХ!R148+'[1]З С '!R148+[1]РА!R148)","v":397.9}]
[null,"1.4.1.28.                    ","Субвенция на оказание несвязанной поддержки сельскохозяйственным товаропроизводителям в области растениеводства за счет средств областного бюджета",1529,null,null,null,"Закон Нижегородской области от 11.11.2005 N 176-З\n\"О наделении органов местного самоуправления Нижегородской области отдельными государственными полномочиями по поддержке сельскохозяйственного производства\"",null,"2005-11-11","04","05",{"$f":"SUM([1]УФ!M149+[1]ОК!M149+[1]РОО!M149+[1]УСХ!M149+'[1]З С '!M149+[1]РА!M149)","v":3968.1},{"$f":"SUM([1]УФ!N149+[1]ОК!N149+[1]РОО!N149+[1]УСХ!N149+'[1]З С '!N149+[1]РА!N149)","v":3968.1},{"$f":"SUM([1]УФ!O149+[1]ОК!O149+[1]РОО!O149+[1]УСХ!O149+'[1]З С '!O149+[1]РА!O149)","v":5114.3999999999996},{"$f":"SUM([1]УФ!P149+[1]ОК!P149+[1]РОО!P149+[1]УСХ!P149+'[1]З С '!P149+[1]РА!P149)","v":6096.8},{"$f":"SUM([1]УФ!Q149+[1]ОК!Q149+[1]РОО!Q149+[1]УСХ!Q149+'[1]З С '!Q149+[1]РА!Q149)","v":6101.7},{"$f":"SUM([1]УФ!R149+[1]ОК!R149+[1]РОО!R149+[1]УСХ!R149+'[1]З С '!R149+[1]РА!R149)","v":6044}]
[null,"1.4.1.29.                    ","Субвенции на обеспечение детей-сирот и детей, оставшихся без попечения родителей, лиц из числа детей-сирот и детей, оставшихся без попечения родителей, жилыми помещениями за счет средств областного бюджета",1530,null,null,null,"Закон Нижегородской области от 30.09.2008 N 116-З\n\"О наделении органов местного самоуправления муниципальных районов и городских округов Нижегородской области отдельными государственными полномочиями в области жилищных отношений\"\n",null,"2008-09-30","10","04",{"$f":"SUM([1]УФ!M150+[1]ОК!M150+[1]РОО!M150+[1]УСХ!M150+'[1]З С '!M150+[1]РА!M150)","v":4907.7},{"$f":"SUM([1]УФ!N150+[1]ОК!N150+[1]РОО!N150+[1]УСХ!N150+'[1]З С '!N150+[1]РА!N150)","v":4907.7},{"$f":"SUM([1]УФ!O150+[1]ОК!O150+[1]РОО!O150+[1]УСХ!O150+'[1]З С '!O150+[1]РА!O150)","v":3513.1},{"$f":"SUM([1]УФ!P150+[1]ОК!P150+[1]РОО!P150+[1]УСХ!P150+'[1]З С '!P150+[1]РА!P150)","v":5145},{"$f":"SUM([1]УФ!Q150+[1]ОК!Q150+[1]РОО!Q150+[1]УСХ!Q150+'[1]З С '!Q150+[1]РА!Q150)","v":5277.9},{"$f":"SUM([1]УФ!R150+[1]ОК!R150+[1]РОО!R150+[1]УСХ!R150+'[1]З С '!R150+[1]РА!R150)","v":6202.5}]
[null,"1.4.1.30.                    ","Субвенции на возмещение части затрат на приобретение зерноуборочных и кормоуборочных комбайнов отечественного производства за счет средств областного бюджета ",1531,null,null,null,"Закон Нижегородской области от 03.04.2012 N 30-З\n\"О внесении изменений в Закон Нижегородской области \"О наделении органов местного самоуправления Нижегородской области отдельными государственными полномочиями по поддержке сельскохозяйственного производства\"\n",null,"2012-04-03","04","05",{"$f":"SUM([1]УФ!M151+[1]ОК!M151+[1]РОО!M151+[1]УСХ!M151+'[1]З С '!M151+[1]РА!M151)","v":0},{"$f":"SUM([1]УФ!N151+[1]ОК!N151+[1]РОО!N151+[1]УСХ!N151+'[1]З С '!N151+[1]РА!N151)","v":0},{"$f":"SUM([1]УФ!O151+[1]ОК!O151+[1]РОО!O151+[1]УСХ!O151+'[1]З С '!O151+[1]РА!O151)","v":2416.5},{"$f":"SUM([1]УФ!P151+[1]ОК!P151+[1]РОО!P151+[1]УСХ!P151+'[1]З С '!P151+[1]РА!P151)","v":3689.4},{"$f":"SUM([1]УФ!Q151+[1]ОК!Q151+[1]РОО!Q151+[1]УСХ!Q151+'[1]З С '!Q151+[1]РА!Q151)","v":3945.2},{"$f":"SUM([1]УФ!R151+[1]ОК!R151+[1]РОО!R151+[1]УСХ!R151+'[1]З С '!R151+[1]РА!R151)","v":3954.6}]
[null,"1.4.1.31.                    ","Субвенции на возмещение части процентной ставки по инвестиционным кредитам на строительство и реконструкцию объектов мясного скотоводства за счет средств областного бюджета",1532]
[null,"1.4.1.32.                    ","Субвенции на возмещение части процентной ставки по инвестиционным кредитам (займам) на строительство и реконструкцию объектов для молочного скотоводства за счет средств областного бюджета",1533]
[null,"1.4.1.33.                    ","Субвенции на возмещение части затрат сельскохозяйственных товаропроизводителей на 1 килограмм реализованного и (или) отгруженного на собственную переработку молока за счет средств областного бюджета",1534,null,null,null,"Закон Нижегородской области от 11.11.2005 N 176-З\n\"О наделении органов местного самоуправления Нижегородской области отдельными государственными полномочиями по поддержке сельскохозяйственного производства\"\n",null,"2005-11-11","04","05",{"$f":"SUM([1]УФ!M154+[1]ОК!M154+[1]РОО!M154+[1]УСХ!M154+'[1]З С '!M154+[1]РА!M154)","v":4229.7},{"$f":"SUM([1]УФ!N154+[1]ОК!N154+[1]РОО!N154+[1]УСХ!N154+'[1]З С '!N154+[1]РА!N154)","v":4229.7},{"$f":"SUM([1]УФ!O154+[1]ОК!O154+[1]РОО!O154+[1]УСХ!O154+'[1]З С '!O154+[1]РА!O154)","v":4992.1000000000004},{"$f":"SUM([1]УФ!P154+[1]ОК!P154+[1]РОО!P154+[1]УСХ!P154+'[1]З С '!P154+[1]РА!P154)","v":5685},{"$f":"SUM([1]УФ!Q154+[1]ОК!Q154+[1]РОО!Q154+[1]УСХ!Q154+'[1]З С '!Q154+[1]РА!Q154)","v":5685},{"$f":"SUM([1]УФ!R154+[1]ОК!R154+[1]РОО!R154+[1]УСХ!R154+'[1]З С '!R154+[1]РА!R154)","v":5685}]
[null,"1.4.1.34.                    ","Субвенции на обеспечение детей-сирот и детей, оставшихся без попечения родителей, лиц из числа детей-сирот и детей, оставшихся без попечения родителей, жилыми помещениями за счет остатков средств федерального бюджета",1535,null,null,null,"Закон Нижегородской области от 30.09.2008 N 116-З\n\"О наделении органов местного самоуправления муниципальных районов и городских округов Нижегородской области отдельными государственными полномочиями в области жилищных отношений\"\n",null,"2008-09-30","10","04",{"$f":"SUM([1]УФ!M155+[1]ОК!M155+[1]РОО!M155+[1]УСХ!M155+'[1]З С '!M155+[1]РА!M155)","v":43},{"$f":"SUM([1]УФ!N155+[1]ОК!N155+[1]РОО!N155+[1]УСХ!N155+'[1]З С '!N155+[1]РА!N155)","v":43},{"$f":"SUM([1]УФ!O155+[1]ОК!O155+[1]РОО!O155+[1]УСХ!O155+'[1]З С '!O155+[1]РА!O155)","v":1460.3},{"$f":"SUM([1]УФ!P155+[1]ОК!P155+[1]РОО!P155+[1]УСХ!P155+'[1]З С '!P155+[1]РА!P155)","v":1251.3},{"$f":"SUM([1]УФ!Q155+[1]ОК!Q155+[1]РОО!Q155+[1]УСХ!Q155+'[1]З С '!Q155+[1]РА!Q155)","v":1118.4000000000001},{"$f":"SUM([1]УФ!R155+[1]ОК!R155+[1]РОО!R155+[1]УСХ!R155+'[1]З С '!R155+[1]РА!R155)","v":1259.9000000000001}]
[null,"1.4.1.35.                    ","Субвенции на обеспечение жильем граждан, страдающих тяжелыми формами хронических заболеваний, перечень которых установлен Правительством РФ",1536,null,null,null,"Закон Нижегородской области от 30.09.2008 N 116-З\n(ред. от 06.05.2016)\n\"О наделении органов местного самоуправления муниципальных районов и городских округов Нижегородской области отдельными государственными полномочиями в области жилищных отношений\"\n(принят постановлением ЗС НО от 25.09.2008 N 1221-IV)\n","Приложение 1.1",null,"10","03",{"$f":"SUM([1]УФ!M156+[1]ОК!M156+[1]РОО!M156+[1]УСХ!M156+'[1]З С '!M156+[1]РА!M156)","v":0},{"$f":"SUM([1]УФ!N156+[1]ОК!N156+[1]РОО!N156+[1]УСХ!N156+'[1]З С '!N156+[1]РА!N156)","v":0},{"$f":"SUM([1]УФ!O156+[1]ОК!O156+[1]РОО!O156+[1]УСХ!O156+'[1]З С '!O156+[1]РА!O156)","v":0},{"$f":"SUM([1]УФ!P156+[1]ОК!P156+[1]РОО!P156+[1]УСХ!P156+'[1]З С '!P156+[1]РА!P156)","v":0},{"$f":"SUM([1]УФ!Q156+[1]ОК!Q156+[1]РОО!Q156+[1]УСХ!Q156+'[1]З С '!Q156+[1]РА!Q156)","v":0},{"$f":"SUM([1]УФ!R156+[1]ОК!R156+[1]РОО!R156+[1]УСХ!R156+'[1]З С '!R156+[1]РА!R156)","v":0}]
[null,"1.4.1.36.                    ","Субвенции на реализацию экономически значимой программы \"Развитие мясного скотоводства в Нижегородской области на 2015-2017 годы\" за счет средств федерального бюджета",1537]
[null,"1.4.1.37.                    ","Субвенции на возмещение части затрат сельскохозяйственных товаропроизводителей на уплату страховой премии, начисленной по договору сельскохозяйственного страхования в области растениеводства, за счет средств федерального бюджета",1538]
[null,"1.4.1.38.                    ","Субвенции на поддержку племенного крупного рогатого скота мясного направления за счет средств федерального бюджета",1539]
[null,"1.4.1.39.                    ","Субвенции на возмещение части процентной ставки по долгосрочным, среднесрочным и краткосрочным кредитам, взятым малыми формами хозяйствования, за счет средств федерального бюджета ",1540,null,null,null,"Закон Нижегородской области от 11.11.2005 N 176-З\n\"О наделении органов местного самоуправления Нижегородской области отдельными государственными полномочиями по поддержке сельскохозяйственного производства\"\n",null,"2015-11-11","04","05",{"$f":"SUM([1]УФ!M160+[1]ОК!M160+[1]РОО!M160+[1]УСХ!M160+'[1]З С '!M160+[1]РА!M160)","v":84.6},{"$f":"SUM([1]УФ!N160+[1]ОК!N160+[1]РОО!N160+[1]УСХ!N160+'[1]З С '!N160+[1]РА!N160)","v":84.6},{"$f":"SUM([1]УФ!O160+[1]ОК!O160+[1]РОО!O160+[1]УСХ!O160+'[1]З С '!O160+[1]РА!O160)","v":50.4},{"$f":"SUM([1]УФ!P160+[1]ОК!P160+[1]РОО!P160+[1]УСХ!P160+'[1]З С '!P160+[1]РА!P160)","v":26.5},{"$f":"SUM([1]УФ!Q160+[1]ОК!Q160+[1]РОО!Q160+[1]УСХ!Q160+'[1]З С '!Q160+[1]РА!Q160)","v":0},{"$f":"SUM([1]УФ!R160+[1]ОК!R160+[1]РОО!R160+[1]УСХ!R160+'[1]З С '!R160+[1]РА!R160)","v":0}]
[null,"1.4.1.40.                    ","Субвенции на возмещение части процентной ставки по инвестиционным кредитам (займам) на развитие животноводства, переработки и развития инфраструктуры и логистического обеспечения рынков продукции животноводства за счет средств федерального бюджета",1541]
[null,"1.4.1.41.                    ","Субвенции на возмещение части процентной ставки по инвестиционным кредитам на строительство и реконструкцию объектов мясного скотоводства за счет средств федерального бюджета",1542]
[null,"1.4.1.42.                    ","Субвенции на возмещение части затрат на приобретение элитных семян за счет средств федерального бюджета",1543,null,null,null,"Закон Нижегородской области от 11.11.2005 N 176-З\n\"О наделении органов местного самоуправления Нижегородской области отдельными государственными полномочиями по поддержке сельскохозяйственного производства\"\n",null,"2005-11-11","04","05",{"$f":"SUM([1]УФ!M163+[1]ОК!M163+[1]РОО!M163+[1]УСХ!M163+'[1]З С '!M163+[1]РА!M163)","v":2080.4},{"$f":"SUM([1]УФ!N163+[1]ОК!N163+[1]РОО!N163+[1]УСХ!N163+'[1]З С '!N163+[1]РА!N163)","v":2080.4},{"$f":"SUM([1]УФ!O163+[1]ОК!O163+[1]РОО!O163+[1]УСХ!O163+'[1]З С '!O163+[1]РА!O163)","v":2278.5},{"$f":"SUM([1]УФ!P163+[1]ОК!P163+[1]РОО!P163+[1]УСХ!P163+'[1]З С '!P163+[1]РА!P163)","v":2437},{"$f":"SUM([1]УФ!Q163+[1]ОК!Q163+[1]РОО!Q163+[1]УСХ!Q163+'[1]З С '!Q163+[1]РА!Q163)","v":2234},{"$f":"SUM([1]УФ!R163+[1]ОК!R163+[1]РОО!R163+[1]УСХ!R163+'[1]З С '!R163+[1]РА!R163)","v":2234}]
[null,"1.4.1.43.                    ","Субвенции на поддержку племенного животноводства за счет средств федерального бюджета",1544]
[null,"1.4.1.44.                    ","Субвенции на обеспечение жильем отдельных категорий граждан, установленных федеральными законами от 12 января 1995 года №5-ФЗ «О ветеранах» и от 24 ноября 1995 года №181-ФЗ «О социальной защите инвалидов в Российской Федерации» ",1545,{"$nulls":8},{"$f":"SUM([1]УФ!M165+[1]ОК!M165+[1]РОО!M165+[1]УСХ!M165+'[1]З С '!M165+[1]РА!M165)","v":0},{"$f":"SUM([1]УФ!N165+[1]ОК!N165+[1]РОО!N165+[1]УСХ!N165+'[1]З С '!N165+[1]РА!N165)","v":0},{"$f":"SUM([1]УФ!O165+[1]ОК!O165+[1]РОО!O165+[1]УСХ!O165+'[1]З С '!O165+[1]РА!O165)","v":0},{"$f":"SUM([1]УФ!P165+[1]ОК!P165+[1]РОО!P165+[1]УСХ!P165+'[1]З С '!P165+[1]РА!P165)","v":944.4},{"$f":"SUM([1]УФ!Q165+[1]ОК!Q165+[1]РОО!Q165+[1]УСХ!Q165+'[1]З С '!Q165+[1]РА!Q165)","v":0},{"$f":"SUM([1]УФ!R165+[1]ОК!R165+[1]РОО!R165+[1]УСХ!R165+'[1]З С '!R165+[1]РА!R165)","v":0}]
[null,"1.4.1.45.                    ","Субвенции на обеспечение жильем отдельных категорий граждан, установленных Федеральным законом от 12 января 1995 года №5-ФЗ \"О ветеранах\", в соответствии с Указом Президента Российской Федерации от 7 мая 2008 года №714 \"Об обеспечении жильем ветеранов Великой Отечественной войны 1941-1945 годов\"",1546,"Федеральным законом от 12 января 1995 года №5-ФЗ \"О ветеранах\", в соответствии с Указом Президента Российской Федерации от 7 мая 2008 года №714 \"Об обеспечении жильем ветеранов Великой Отечественной войны 1941-1945 годов\"",{"$nulls":5},"10","03",{"$f":"SUM([1]УФ!M166+[1]ОК!M166+[1]РОО!M166+[1]УСХ!M166+'[1]З С '!M166+[1]РА!M166)","v":0},{"$f":"SUM([1]УФ!N166+[1]ОК!N166+[1]РОО!N166+[1]УСХ!N166+'[1]З С '!N166+[1]РА!N166)","v":0},{"$f":"SUM([1]УФ!O166+[1]ОК!O166+[1]РОО!O166+[1]УСХ!O166+'[1]З С '!O166+[1]РА!O166)","v":0},{"$f":"SUM([1]УФ!P166+[1]ОК!P166+[1]РОО!P166+[1]УСХ!P166+'[1]З С '!P166+[1]РА!P166)","v":0},{"$f":"SUM([1]УФ!Q166+[1]ОК!Q166+[1]РОО!Q166+[1]УСХ!Q166+'[1]З С '!Q166+[1]РА!Q166)","v":995.4},{"$f":"SUM([1]УФ!R166+[1]ОК!R166+[1]РОО!R166+[1]УСХ!R166+'[1]З С '!R166+[1]РА!R166)","v":0}]
[null,"1.4.1.46.                    ","Субвенции на реализацию переданных исполнительно-распорядительным органам муниципальных образований Нижегородской области государственных полномочий по составлению (изменению, дополнению) списков кандидатов в присяжные заседатели федеральных судов общей юрисдикции в Российской Федерации",1547,null,null,null,"Закон Нижегородской области от 04.08.2010 N 120-З\n\"Об утверждении методики распределения субвенций бюджетам муниципальных районов и городских округов Нижегородской области на реализацию переданных исполнительно-распорядительным органам муниципальных образований Нижегородской области государственных полномочий по составлению (изменению, дополнению) списков кандидатов в присяжные заседатели федеральных судов общей юрисдикции в Российской Федерации\"\n",null,"2010-08-04","01","05",{"$f":"SUM([1]УФ!M167+[1]ОК!M167+[1]РОО!M167+[1]УСХ!M167+'[1]З С '!M167+[1]РА!M167)","v":50},{"$f":"SUM([1]УФ!N167+[1]ОК!N167+[1]РОО!N167+[1]УСХ!N167+'[1]З С '!N167+[1]РА!N167)","v":50},{"$f":"SUM([1]УФ!O167+[1]ОК!O167+[1]РОО!O167+[1]УСХ!O167+'[1]З С '!O167+[1]РА!O167)","v":7.8},{"$f":"SUM([1]УФ!P167+[1]ОК!P167+[1]РОО!P167+[1]УСХ!P167+'[1]З С '!P167+[1]РА!P167)","v":13.7},{"$f":"SUM([1]УФ!Q167+[1]ОК!Q167+[1]РОО!Q167+[1]УСХ!Q167+'[1]З С '!Q167+[1]РА!Q167)","v":14.7},{"$f":"SUM([1]УФ!R167+[1]ОК!R167+[1]РОО!R167+[1]УСХ!R167+'[1]З С '!R167+[1]РА!R167)","v":60.1}]
[null,"1.4.1.47.                    ","Субвенции на оказание несвязанной поддержки сельскохозяйственным товаропроизводителям в области растениеводства за счет средств федерального бюджета",1548,null,null,null,"Закон Нижегородской области от 11.11.2005 N 176-З\n\"О наделении органов местного самоуправления Нижегородской области отдельными государственными полномочиями по поддержке сельскохозяйственного производства\"",null,"2005-11-11","04","05",{"$f":"SUM([1]УФ!M168+[1]ОК!M168+[1]РОО!M168+[1]УСХ!M168+'[1]З С '!M168+[1]РА!M168)","v":7685.2},{"$f":"SUM([1]УФ!N168+[1]ОК!N168+[1]РОО!N168+[1]УСХ!N168+'[1]З С '!N168+[1]РА!N168)","v":7685.2},{"$f":"SUM([1]УФ!O168+[1]ОК!O168+[1]РОО!O168+[1]УСХ!O168+'[1]З С '!O168+[1]РА!O168)","v":8963.1},{"$f":"SUM([1]УФ!P168+[1]ОК!P168+[1]РОО!P168+[1]УСХ!P168+'[1]З С '!P168+[1]РА!P168)","v":8900.2999999999993},{"$f":"SUM([1]УФ!Q168+[1]ОК!Q168+[1]РОО!Q168+[1]УСХ!Q168+'[1]З С '!Q168+[1]РА!Q168)","v":8951.4},{"$f":"SUM([1]УФ!R168+[1]ОК!R168+[1]РОО!R168+[1]УСХ!R168+'[1]З С '!R168+[1]РА!R168)","v":8963.2999999999993}]
[null,"1.4.1.48.                    ","Субвенции на возмещение части процентной ставки по инвестиционным кредитам (займам) на развитие растениеводства, переработки и развития инфраструктуры и логистического обеспечения рынков продукции растениеводства за счет средств федерального бюджета",1549]
[null,"1.4.1.49.                    ","Субвенции на 1 килограмм реализованного и (или) отгруженного на собственную переработку молока за счет средств федерального бюджета",1550,null,null,null,"Закон Нижегородской области от 11.11.2005 N 176-З\n\"О наделении органов местного самоуправления Нижегородской области отдельными государственными полномочиями по поддержке сельскохозяйственного производства\"",null,"2005-11-11","04","05",{"$f":"SUM([1]УФ!M170+[1]ОК!M170+[1]РОО!M170+[1]УСХ!M170+'[1]З С '!M170+[1]РА!M170)","v":1835.3},{"$f":"SUM([1]УФ!N170+[1]ОК!N170+[1]РОО!N170+[1]УСХ!N170+'[1]З С '!N170+[1]РА!N170)","v":1835.3},{"$f":"SUM([1]УФ!O170+[1]ОК!O170+[1]РОО!O170+[1]УСХ!O170+'[1]З С '!O170+[1]РА!O170)","v":2216.4},{"$f":"SUM([1]УФ!P170+[1]ОК!P170+[1]РОО!P170+[1]УСХ!P170+'[1]З С '!P170+[1]РА!P170)","v":2463.5},{"$f":"SUM([1]УФ!Q170+[1]ОК!Q170+[1]РОО!Q170+[1]УСХ!Q170+'[1]З С '!Q170+[1]РА!Q170)","v":2463.5},{"$f":"SUM([1]УФ!R170+[1]ОК!R170+[1]РОО!R170+[1]УСХ!R170+'[1]З С '!R170+[1]РА!R170)","v":2463.5}]
[null,"1.4.1.50.                    ","Субвенции на осуществление отдельных полномочий РФ по подготовке и проведению Всероссийской переписи 2016 года",1551,null,null,null,"Закон Нижегородской области от 02.12.2015 N 178-З\n\"О наделении органов местного самоуправления муниципальных районов и городских округов Нижегородской области отдельными полномочиями Российской Федерации по подготовке и проведению Всероссийской сельскохозяйственной переписи 2016 года\"\n(принят постановлением ЗС НО от 26.11.2015 N 1981-V)\n",null,"2016-01-01","01","13",{"$f":"SUM([1]УФ!M171+[1]ОК!M171+[1]РОО!M171+[1]УСХ!M171+'[1]З С '!M171+[1]РА!M171)","v":0},{"$f":"SUM([1]УФ!N171+[1]ОК!N171+[1]РОО!N171+[1]УСХ!N171+'[1]З С '!N171+[1]РА!N171)","v":0},{"$f":"SUM([1]УФ!O171+[1]ОК!O171+[1]РОО!O171+[1]УСХ!O171+'[1]З С '!O171+[1]РА!O171)","v":0},{"$f":"SUM([1]УФ!P171+[1]ОК!P171+[1]РОО!P171+[1]УСХ!P171+'[1]З С '!P171+[1]РА!P171)","v":0},{"$f":"SUM([1]УФ!Q171+[1]ОК!Q171+[1]РОО!Q171+[1]УСХ!Q171+'[1]З С '!Q171+[1]РА!Q171)","v":0},{"$f":"SUM([1]УФ!R171+[1]ОК!R171+[1]РОО!R171+[1]УСХ!R171+'[1]З С '!R171+[1]РА!R171)","v":0}]
[null,"1.4.1.51.                    ","за счет собственных доходов и источников финансирования дефицита бюджета муниципального района, всего",1552]
[null,"1.4.1.52.","Субвенции на исполнение полномочий по финансовому обеспечению двухразовым бесплатным питанием обучающихся с ограниченными возможностями здоровья, не проживающих в муниципальных организациях, осуществляющих образовательную деятельность по адаптированным основным общеобразовательным программам",1553,null,null,null,"Закон Нижегородской области от 05.10.2017 N 113-З\n\"О внесении изменений в статьи 1 и 5 Закона Нижегородской области \"О наделении органов местного самоуправления отдельными государственными полномочиями в области образования\"\n(принят постановлением ЗС НО от 26.09.2017 N 372-VI)\n",null,"2018-01-01","07","02",{"$f":"SUM([1]УФ!M173+[1]ОК!M173+[1]РОО!M173+[1]УСХ!M173+'[1]З С '!M173+[1]РА!M173)","v":748.2},{"$f":"SUM([1]УФ!N173+[1]ОК!N173+[1]РОО!N173+[1]УСХ!N173+'[1]З С '!N173+[1]РА!N173)","v":318.3},{"$f":"SUM([1]УФ!O173+[1]ОК!O173+[1]РОО!O173+[1]УСХ!O173+'[1]З С '!O173+[1]РА!O173)","v":1039.5},{"$f":"SUM([1]УФ!P173+[1]ОК!P173+[1]РОО!P173+[1]УСХ!P173+'[1]З С '!P173+[1]РА!P173)","v":1171.0999999999999},{"$f":"SUM([1]УФ!Q173+[1]ОК!Q173+[1]РОО!Q173+[1]УСХ!Q173+'[1]З С '!Q173+[1]РА!Q173)","v":1171.0999999999999},{"$f":"SUM([1]УФ!R173+[1]ОК!R173+[1]РОО!R173+[1]УСХ!R173+'[1]З С '!R173+[1]РА!R173)","v":1171.0999999999999}]
[null,"1.4.1.53.","Субвенции на исполнение полномочий по финансовому обеспечению осуществления присмотра и ухода за детьми-инвалидами, детьми-сиротами и детьми, оставшимися без попечения родителей, а также за детьми с туберкулезной интоксикацией, обучающимися в муниципальных образовательных организациях, реализующих образовательные программы дошкольного образования",1554,null,null,null,"Закон Нижегородской области от 05.10.2017 N 113-З\n\"О внесении изменений в статьи 1 и 5 Закона Нижегородской области \"О наделении органов местного самоуправления отдельными государственными полномочиями в области образования\"\n(принят постановлением ЗС НО от 26.09.2017 N 372-VI)\n",null,"2018-01-01","07","01",{"$f":"SUM([1]УФ!M174+[1]ОК!M174+[1]РОО!M174+[1]УСХ!M174+'[1]З С '!M174+[1]РА!M174)","v":29.7},{"$f":"SUM([1]УФ!N174+[1]ОК!N174+[1]РОО!N174+[1]УСХ!N174+'[1]З С '!N174+[1]РА!N174)","v":10.8},{"$f":"SUM([1]УФ!O174+[1]ОК!O174+[1]РОО!O174+[1]УСХ!O174+'[1]З С '!O174+[1]РА!O174)","v":371.9},{"$f":"SUM([1]УФ!P174+[1]ОК!P174+[1]РОО!P174+[1]УСХ!P174+'[1]З С '!P174+[1]РА!P174)","v":483.5},{"$f":"SUM([1]УФ!Q174+[1]ОК!Q174+[1]РОО!Q174+[1]УСХ!Q174+'[1]З С '!Q174+[1]РА!Q174)","v":483.5},{"$f":"SUM([1]УФ!R174+[1]ОК!R174+[1]РОО!R174+[1]УСХ!R174+'[1]З С '!R174+[1]РА!R174)","v":483.5}]
[null,"1.4.1.54","Субвенции на проведение ремонта жилых помещений, собственниками которых являются дети-сироты и дети, оставшиеся без попечения родителей, а также лица из числа детей-сирот и детей, оставшихся без попечения родителей, либо жилых помещений государственного жилищного фонда, право пользования которыми за ними сохранено, в целях обеспечения надлежащего санитарного и технического состояния этих жилых помещений",1555,null,null,null,"Постановление Правительства Нижегородской области от 17.06.2011 N 464\n(ред. от 24.06.2015)\n\"Об утверждении Положения о порядке расходования субвенций из областного бюджета бюджетам муниципальных районов ...\"",null,null,"10","04",{"$f":"SUM([1]УФ!M175+[1]ОК!M175+[1]РОО!M175+[1]УСХ!M175+'[1]З С '!M175+[1]РА!M175)","v":0},{"$f":"SUM([1]УФ!N175+[1]ОК!N175+[1]РОО!N175+[1]УСХ!N175+'[1]З С '!N175+[1]РА!N175)","v":0},{"$f":"SUM([1]УФ!O175+[1]ОК!O175+[1]РОО!O175+[1]УСХ!O175+'[1]З С '!O175+[1]РА!O175)","v":126.8},{"$f":"SUM([1]УФ!P175+[1]ОК!P175+[1]РОО!P175+[1]УСХ!P175+'[1]З С '!P175+[1]РА!P175)","v":0},{"$f":"SUM([1]УФ!Q175+[1]ОК!Q175+[1]РОО!Q175+[1]УСХ!Q175+'[1]З С '!Q175+[1]РА!Q175)","v":74},{"$f":"SUM([1]УФ!R175+[1]ОК!R175+[1]РОО!R175+[1]УСХ!R175+'[1]З С '!R175+[1]РА!R175)","v":0}]
[null,"1.4.1.55","Субвенции на исполнение полномочий по финансовому обеспечению выплаты компенсации педагогическим работникам  за работу по подготовке и проведению государственной итоговой аттестации по образовательным программам основного общего и среднего общего образования",{"$nulls":4},"Закон Нижегородской области от 21.10.2005 N 140-З\n(ред. от 30.04.2019)\n\"О наделении органов местного самоуправления отдельными государственными полномочиями в области образования\"\n(принят постановлением ЗС НО от 06.10.2005 N 1658-III)\n",null,null,"07","02",{"$f":"SUM([1]УФ!M176+[1]ОК!M176+[1]РОО!M176+[1]УСХ!M176+'[1]З С '!M176+[1]РА!M176)","v":0},{"$f":"SUM([1]УФ!N176+[1]ОК!N176+[1]РОО!N176+[1]УСХ!N176+'[1]З С '!N176+[1]РА!N176)","v":0},{"$f":"SUM([1]УФ!O176+[1]ОК!O176+[1]РОО!O176+[1]УСХ!O176+'[1]З С '!O176+[1]РА!O176)","v":405.3},{"$f":"SUM([1]УФ!P176+[1]ОК!P176+[1]РОО!P176+[1]УСХ!P176+'[1]З С '!P176+[1]РА!P176)","v":300.5},{"$f":"SUM([1]УФ!Q176+[1]ОК!Q176+[1]РОО!Q176+[1]УСХ!Q176+'[1]З С '!Q176+[1]РА!Q176)","v":300.5},{"$f":"SUM([1]УФ!R176+[1]ОК!R176+[1]РОО!R176+[1]УСХ!R176+'[1]З С '!R176+[1]РА!R176)","v":300.5}]
[null,"1.4.1.56","Субвенция на осуществление полномочий по созданию административных комиссий в Нижегородской области на осуществление отдельных полномочий в области законодательства об административных правонарушениях",{"$nulls":4},"Закон Нижегородской области от 01.07.2019 N 61-З\n\"О внесении изменений в Закон Нижегородской области \"Об областном бюджете на 2019 год и на плановый период 2020 и 2021 годов\"\n",null,null,"05","05",{"$f":"SUM([1]УФ!M177+[1]ОК!M177+[1]РОО!M177+[1]УСХ!M177+'[1]З С '!M177+[1]РА!M177)","v":0},{"$f":"SUM([1]УФ!N177+[1]ОК!N177+[1]РОО!N177+[1]УСХ!N177+'[1]З С '!N177+[1]РА!N177)","v":0},{"$f":"SUM([1]УФ!O177+[1]ОК!O177+[1]РОО!O177+[1]УСХ!O177+'[1]З С '!O177+[1]РА!O177)","v":1.3},{"$f":"SUM([1]УФ!P177+[1]ОК!P177+[1]РОО!P177+[1]УСХ!P177+'[1]З С '!P177+[1]РА!P177)","v":2.6},{"$f":"SUM([1]УФ!Q177+[1]ОК!Q177+[1]РОО!Q177+[1]УСХ!Q177+'[1]З С '!Q177+[1]РА!Q177)","v":2.6},{"$f":"SUM([1]УФ!R177+[1]ОК!R177+[1]РОО!R177+[1]УСХ!R177+'[1]З С '!R177+[1]РА!R177)","v":2.6}]
[null,"1.4.2.2.    ",null,1602]
[null,"1.5.             ","Расходные обязательства, возникшие в результате принятия нормативных правовых актов муниципального района, заключения соглашений, предусматривающих предоставление межбюджетных трансфертов из бюджета муниципального района другим бюджетам бюджетной системы Российской Федерации, всего",1700,"х","х","х","х","х","х","х","х",{"$f":"SUM(M181+M182+M183+M187)","v":65269.299999999996},65262.799999999996,94234,63660.299999999988,57494.399999999994,58590]
[null,"1.5.1.       ","по предоставлению дотаций на выравнивание бюджетной обеспеченности городских, сельских поселений, всего",1701,"Федеральный закон от 06.10.2003 N 131-ФЗ\n\"Об общих принципах организации местного самоуправления в Российской Федерации\"\n","ст.15 п.20","06.10.2010         не ограничен",null,null,null,"14","01",{"$f":"SUM([1]УФ!M180+[1]ОК!M180+[1]РОО!M180+[1]УСХ!M180+'[1]З С '!M180+[1]РА!M180)","v":32679.5},{"$f":"SUM([1]УФ!N180+[1]ОК!N180+[1]РОО!N180+[1]УСХ!N180+'[1]З С '!N180+[1]РА!N180)","v":32679.5},{"$f":"SUM([1]УФ!O180+[1]ОК!O180+[1]РОО!O180+[1]УСХ!O180+'[1]З С '!O180+[1]РА!O180)","v":33680.6},{"$f":"SUM([1]УФ!P180+[1]ОК!P180+[1]РОО!P180+[1]УСХ!P180+'[1]З С '!P180+[1]РА!P180)","v":33739.199999999997},{"$f":"SUM([1]УФ!Q180+[1]ОК!Q180+[1]РОО!Q180+[1]УСХ!Q180+'[1]З С '!Q180+[1]РА!Q180)","v":33739.599999999999},{"$f":"SUM([1]УФ!R180+[1]ОК!R180+[1]РОО!R180+[1]УСХ!R180+'[1]З С '!R180+[1]РА!R180)","v":33739.800000000003}]
[null,"1.5.2.       ","по предоставлению субсидий в бюджет субъекта Российской Федерации, всего",1702]
[null,"1.5.3.       ","по предоставлению субвенций в бюджеты городских, сельских поселений, предоставленных из федерального бюджета и (или) бюджета субъекта Российской Федерации, в случае наделения федеральным законом и (или) законом субъекта Российской Федерации органов местного самоуправления муниципального района полномочиями органов государственной власти по расчету и предоставлению субвенций бюджетам городских, сельских поселений, всего",1703,"х","х","х","х","х","х","х","х",{"$f":"SUM(M184)","v":793},793,852.5,769.2,779.2,817]
[null,"1.5.3.1.    ","на осуществление государственных полномочий Российской Федерации по первичному воинскому учету на территориях, где отсутствуют военные комиссариаты",1704,"Бюджетный кодекс Российской Федерации от 31.07.1998 N 145-ФЗ",{"$nulls":5},"02","03",{"$f":"SUM([1]УФ!M183+[1]ОК!M183+[1]РОО!M183+[1]УСХ!M183+'[1]З С '!M183+[1]РА!M183)","v":793},{"$f":"SUM([1]УФ!N183+[1]ОК!N183+[1]РОО!N183+[1]УСХ!N183+'[1]З С '!N183+[1]РА!N183)","v":793},{"$f":"SUM([1]УФ!O183+[1]ОК!O183+[1]РОО!O183+[1]УСХ!O183+'[1]З С '!O183+[1]РА!O183)","v":852.5},{"$f":"SUM([1]УФ!P183+[1]ОК!P183+[1]РОО!P183+[1]УСХ!P183+'[1]З С '!P183+[1]РА!P183)","v":769.2},{"$f":"SUM([1]УФ!Q183+[1]ОК!Q183+[1]РОО!Q183+[1]УСХ!Q183+'[1]З С '!Q183+[1]РА!Q183)","v":779.2},{"$f":"SUM([1]УФ!R183+[1]ОК!R183+[1]РОО!R183+[1]УСХ!R183+'[1]З С '!R183+[1]РА!R183)","v":817}]
[null,"…","…","…"]
[null,"1.5.3.96.","…",1799]
[null,"1.5.4.       ","по предоставлению иных межбюджетных трансфертов, всего",1800,"х","х","х","х","х","х","х","х",{"$f":"SUM(M188)","v":31796.799999999996},31790.299999999996,59700.899999999994,29151.899999999998,22975.599999999999,24033.200000000001]
[null,"1.5.4.1.                        ","в бюджет городского, сельского поселения в случае заключения соглашения с органами местного самоуправления отдельных поселений, входящих в состав муниципального района, о передаче им осуществления части своих полномочий по решению вопросов местного значения, всего",1801,"х","х","х","х","х","х","х","х",{"$f":"SUM(M189+M190+M191+M192+M193)","v":31796.799999999996},31790.299999999996,59700.899999999994,29151.899999999998,22975.599999999999,24033.200000000001]
[null,"1.5.4.1.1.  ","на реализацию проекта по поддержке местных инициатив",1802,null,null,null,"Постановление Правительства Нижегородской области от 22.12.2017 N 945\n\"О реализации на территории Нижегородской области проекта по поддержке местных инициатив\"\n",null,"2017-12-22","04                   05                   11","09                       03                       02",{"$f":"SUM([1]УФ!M188+[1]ОК!M188+[1]РОО!M188+[1]УСХ!M188+'[1]З С '!M188+[1]РА!M188)","v":5539.1},{"$f":"SUM([1]УФ!N188+[1]ОК!N188+[1]РОО!N188+[1]УСХ!N188+'[1]З С '!N188+[1]РА!N188)","v":5532.6},{"$f":"SUM([1]УФ!O188+[1]ОК!O188+[1]РОО!O188+[1]УСХ!O188+'[1]З С '!O188+[1]РА!O188)","v":2961.2},{"$f":"SUM([1]УФ!P188+[1]ОК!P188+[1]РОО!P188+[1]УСХ!P188+'[1]З С '!P188+[1]РА!P188)","v":0}]
[null,"1.5.4.1.2","иные межбюджетные трансферты на поддержку мер по обеспечению сбалансированности бюджетов поселений","…",{"$nulls":6},"14","03",{"$f":"SUM([1]УФ!M189+[1]ОК!M189+[1]РОО!M189+[1]УСХ!M189+'[1]З С '!M189+[1]РА!M189)","v":21108.1},{"$f":"SUM([1]УФ!N189+[1]ОК!N189+[1]РОО!N189+[1]УСХ!N189+'[1]З С '!N189+[1]РА!N189)","v":21108.1},{"$f":"SUM([1]УФ!O189+[1]ОК!O189+[1]РОО!O189+[1]УСХ!O189+'[1]З С '!O189+[1]РА!O189)","v":15812.3},{"$f":"SUM([1]УФ!P189+[1]ОК!P189+[1]РОО!P189+[1]УСХ!P189+'[1]З С '!P189+[1]РА!P189)","v":18520.3},{"$f":"SUM([1]УФ!Q189+[1]ОК!Q189+[1]РОО!Q189+[1]УСХ!Q189+'[1]З С '!Q189+[1]РА!Q189)","v":12344},{"$f":"SUM([1]УФ!R189+[1]ОК!R189+[1]РОО!R189+[1]УСХ!R189+'[1]З С '!R189+[1]РА!R189)","v":13394.7}]
[null,"1.5.4.1.3","иных межбюджетных трансфертов",1899,{"$nulls":6},"01         03                03                  04                  05                      11","04                   09                     10                             09                           03                                02",{"$f":"SUM([1]УФ!M190+[1]ОК!M190+[1]РОО!M190+[1]УСХ!M190+'[1]З С '!M190+[1]РА!M190)","v":3236.5},{"$f":"SUM([1]УФ!N190+[1]ОК!N190+[1]РОО!N190+[1]УСХ!N190+'[1]З С '!N190+[1]РА!N190)","v":3236.5},{"$f":"SUM([1]УФ!O190+[1]ОК!O190+[1]РОО!O190+[1]УСХ!O190+'[1]З С '!O190+[1]РА!O190)","v":35952.699999999997},{"$f":"SUM([1]УФ!P190+[1]ОК!P190+[1]РОО!P190+[1]УСХ!P190+'[1]З С '!P190+[1]РА!P190)","v":0},{"$f":"SUM([1]УФ!Q190+[1]ОК!Q190+[1]РОО!Q190+[1]УСХ!Q190+'[1]З С '!Q190+[1]РА!Q190)","v":0}]
[null,null,"формирование современной городской среды",{"$nulls":7},"05","03",{"$f":"SUM([1]УФ!M191)","v":1913.1},{"$f":"SUM([1]УФ!N191)","v":1913.1},{"$f":"SUM([1]УФ!O191)","v":4974.7},{"$f":"SUM([1]УФ!P191)","v":631.6},{"$f":"SUM([1]УФ!Q191)","v":631.6},{"$f":"SUM([1]УФ!R191)","v":638.5}]
[null,null,"ИМБ на компесацию дополнительных расходов, возникших в результате решений, принятых органами власти другого уровня",{"$nulls":7},"05","03",{"$f":"SUM([1]УФ!M192)","v":0},{"$f":"SUM([1]УФ!N192)","v":0},{"$f":"SUM([1]УФ!O192)","v":0},{"$f":"SUM([1]УФ!P192)","v":10000},{"$f":"SUM([1]УФ!Q192)","v":10000},{"$f":"SUM([1]УФ!R192)","v":10000}]
[null,"1.5.4.2.    ","…",1900,"х","х","х","х","х","х","х","х"]
[null,"1.5.4.2.1.","в иных случаях, не связанных с заключением соглашений, предусмотренных в подпункте 1.5.4.1, всего",1901]
[null,"1.5.4.2.2. ","…",1902]
[null,"…","…","…"]
[null,"1.5.1.2.99.","…",1999]
[null,"2.                   ","Расходные обязательства, возникшие в результате принятия нормативных правовых актов городского округа, заключения договоров (соглашений), всего",2000,"х","х","х","х","х","х","х","х"]
[null,null,"из них:"]
[null,"2.1.             ","Расходные обязательства, возникшие в результате принятия нормативных правовых актов городского округа, заключения договоров (соглашений) в рамках реализации вопросов местного значения городского округа, всего",2001,"х","х","х","х","х","х","х","х"]
[null,"2.1.1.       ","составление и рассмотрение проекта бюджета городского округа, утверждение и исполнение бюджета городского округа, осуществление контроля за его исполнением, составление и утверждение отчета об исполнении бюджета городского округа",2002]
[null,"2.1.2.       ","установление, изменение и отмена местных налогов и сборов городского округа",2003]
[null,"2.1.3.       ","владение, пользование и распоряжение имуществом, находящимся в муниципальной собственности городского округа",2004]
[null,"2.1.4.       ","организация в границах городского округа электро-, тепло-, газо- и водоснабжения населения, водоотведения, снабжения населения топливом в пределах полномочий, установленных законодательством Российской Федерации",2005]
[null,"2.1.5.       ","дорожная деятельность в отношении автомобильных дорог местного значения в границах городского округа и обеспечение безопасности дорожного движения на них, включая создание и обеспечение функционирования парковок (парковочных мест), осуществление муниципального контроля за сохранностью автомобильных дорог местного значения в границах городского округа, а также осуществление иных полномочий в области использования автомобильных дорог и осуществления дорожной деятельности в соответствии с законодательством Российской Федерации",2006]
[null,"2.1.6.       ","обеспечение проживающих в городском округе и нуждающихся в жилых помещениях малоимущих граждан жилыми помещениями, организация строительства и содержания муниципального жилищного фонда, создание условий для жилищного строительства, осуществление муниципального жилищного контроля, а также иных полномочий органов местного самоуправления в соответствии с жилищным законодательством",2007]
[null,"2.1.7.       ","создание условий для предоставления транспортных услуг населению и организация транспортного обслуживания населения в границах городского округа",2008]
[null,"2.1.8.       ","участие в профилактике терроризма и экстремизма, а также в минимизации и (или) ликвидации последствий проявлений терроризма и экстремизма в границах городского округа",2009]
[null,"2.1.9.       ","разработка и осуществление мер, направленных на укрепление межнационального и межконфессионального согласия, поддержку и развитие языков и культуры народов Российской Федерации, проживающих на территории городского округа, реализацию прав национальных меньшинств, обеспечение социальной и культурной адаптации мигрантов, профилактику межнациональных (межэтнических) конфликтов",2010]
[null,"2.1.10.   ","участие в предупреждении и ликвидации последствий чрезвычайных ситуаций в границах городского округа",2011]
[null,"2.1.11.   ","организация охраны общественного порядка на территории городского округа муниципальной милицией",2012]
[null,"2.1.12.   ","предоставление помещения для работы на обслуживаемом административном участке городского округа сотруднику, замещающему должность участкового уполномоченного полиции",2013]
[null,"2.1.13.   ","до 1 января 2017 года предоставление сотруднику, замещающему должность участкового уполномоченного полиции, и членам его семьи жилого помещения на период выполнения сотрудником обязанностей по указанной должности",2014]
[null,"2.1.14.   ","обеспечение первичных мер пожарной безопасности в границах городского округа",2015]
[null,"2.1.15.   ","организация мероприятий по охране окружающей среды в границах городского округа",2016]
[null,"2.1.16.   ","организация предоставления общедоступного и бесплатного дошкольного, начального общего, основного общего, среднего общего образования по основным общеобразовательным программам в муниципальных образовательных организациях (за исключением полномочий по финансовому обеспечению реализации основных общеобразовательных программ в соответствии с федеральными государственными образовательными стандартами), организация предоставления дополнительного образования детей в муниципальных образовательных организациях (за исключением дополнительного образования детей, финансовое обеспечение которого осуществляется органами государственной власти субъекта Российской Федерации), создание условий для осуществления присмотра и ухода за детьми, содержания детей в муниципальных образовательных организациях, а также организация отдыха детей в каникулярное время",2017]
[null,"2.1.17.   ","создание условий для оказания медицинской помощи населению на территории городского округа (за исключением территорий городских округов, включенных в утвержденный Правительством Российской Федерации перечень территорий, население которых обеспечивается медицинской помощью в медицинских организациях, подведомственных федеральному органу исполнительной власти, осуществляющему функции по медико-санитарному обеспечению населения отдельных территорий) в соответствии с территориальной программой государственных гарантий бесплатного оказания гражданам медицинской помощи",2018]
[null,"2.1.18.   ","создание условий для обеспечения жителей городского округа услугами связи, общественного питания, торговли и бытового обслуживания",2019]
[null,"2.1.19.   ","организация библиотечного обслуживания населения, комплектование и обеспечение сохранности библиотечных фондов библиотек городского округа",2020]
[null,"2.1.20.   ","создание условий для организации досуга и обеспечения жителей городского округа услугами организаций культуры",2021]
[null,"2.1.21.   ","создание условий для развития местного традиционного народного художественного творчества, участие в сохранении, возрождении и развитии народных художественных промыслов в городском округе",2022]
[null,"2.1.22.   ","сохранение, использование и популяризация объектов культурного наследия (памятников истории и культуры), находящихся в собственности городского округа, охрана объектов культурного наследия (памятников истории и культуры) местного (муниципального) значения, расположенных на территории городского округа",2023]
[null,"2.1.23.   ","обеспечение условий для развития на территории городского округа физической культуры, школьного спорта и массового спорта, организация проведения официальных физкультурно-оздоровительных и спортивных мероприятий городского округа",2024]
[null,"2.1.24.   ","создание условий для массового отдыха жителей городского округа и организация обустройства мест массового отдыха населения",2025]
[null,"2.1.25.   ","формирование и содержание муниципального архива",2026]
[null,"2.1.26.   ","организация ритуальных услуг и содержание мест захоронения",2027]
[null,"2.1.27.   ","участие в организации деятельности по сбору (в том числе раздельному сбору), транспортированию, обработке, утилизации, обезвреживанию, захоронению твердых коммунальных отходов",2028]
[null,"2.1.28.   ","утверждение правил благоустройства территории городского округа, устанавливающих в том числе требования по содержанию зданий (включая жилые дома), сооружений и земельных участков, на которых они расположены, к внешнему виду фасадов и ограждений соответствующих зданий и сооружений, перечень работ по благоустройству и периодичность их выполнения; установление порядка участия собственников зданий (помещений в них) и сооружений в благоустройстве прилегающих территорий; организация благоустройства территории городского округа (включая освещение улиц, озеленение территории, установку указателей с наименованиями улиц и номерами домов, размещение и содержание малых архитектурных форм), а также использования, охраны, защиты, воспроизводства городских лесов, лесов особо охраняемых природных территорий, расположенных в границах городского округа",2029]
[null,"2.1.29.   ","утверждение генеральных планов городского округа, правил землепользования и застройки, утверждение подготовленной на основе генеральных планов городского округа документации по планировке территории, выдача разрешений на строительство (за исключением случаев, предусмотренных Градостроительным кодексом Российской Федерации, иными федеральными законами), разрешений на ввод объектов в эксплуатацию при осуществлении строительства, реконструкции объектов капитального строительства, расположенных на территории городского округа, утверждение местных нормативов градостроительного проектирования городского округа, ведение информационной системы обеспечения градостроительной деятельности, осуществляемой на территории городского округа, резервирование земель и изъятие земельных участков в границах городского округа для муниципальных нужд, осуществление муниципального земельного контроля в границах городского округа, осуществление в случаях, предусмотренных Градостроительным кодексом Российской Федерации, осмотров зданий, сооружений и выдача рекомендаций об устранении выявленных в ходе таких осмотров нарушений",2030]
[null,"2.1.30.   ","утверждение схемы размещения рекламных конструкций, выдача разрешений на установку и эксплуатацию рекламных конструкций на территории городского округа, аннулирование таких разрешений, выдача предписаний о демонтаже самовольно установленных рекламных конструкций на территории городского округа, осуществляемые в соответствии с Федеральным законом «О рекламе»",2031]
[null,"2.1.31.   ","присвоение адресов объектам адресации, изменение, аннулирование адресов, присвоение наименований элементам улично-дорожной сети (за исключением автомобильных дорог федерального значения, автомобильных дорог регионального или межмуниципального значения), наименований элементам планировочной структуры в границах городского округа, изменение, аннулирование таких наименований, размещение информации в государственном адресном реестре",2032]
[null,"2.1.32.   ","организация и осуществление мероприятий по территориальной обороне и гражданской обороне, защите населения и территории городского округа от чрезвычайных ситуаций природного и техногенного характера, включая поддержку в состоянии постоянной готовности к использованию систем оповещения населения об опасности, объектов гражданской обороны, создание и содержание в целях гражданской обороны запасов материально-технических, продовольственных, медицинских и иных средств",2033]
[null,"2.1.33.   ","создание, содержание и организация деятельности аварийно-спасательных служб и (или) аварийно-спасательных формирований на территории городского округа",2034]
[null,"2.1.34.   ","создание, развитие и обеспечение охраны лечебно-оздоровительных местностей и курортов местного значения на территории городского округа, а также осуществление муниципального контроля в области использования и охраны особо охраняемых природных территорий местного значения",2035]
[null,"2.1.35.   ","организация и осуществление мероприятий по мобилизационной подготовке муниципальных предприятий и учреждений, находящихся на территории городского округа",2036]
[null,"2.1.36.   ","осуществление мероприятий по обеспечению безопасности людей на водных объектах, охране их жизни и здоровья",2037]
[null,"2.1.37.   ","создание условий для расширения рынка сельскохозяйственной продукции, сырья и продовольствия, содействие развитию малого и среднего предпринимательства, оказание поддержки социально ориентированным некоммерческим организациям, благотворительной деятельности и добровольчеству",2038]
[null,"2.1.38.   ","организация и осуществление мероприятий по работе с детьми и молодежью в городском округе",2039]
[null,"2.1.39.   ","осуществление в пределах, установленных водным законодательством Российской Федерации, полномочий собственника водных объектов, установление правил использования водных объектов общего пользования для личных и бытовых нужд и информирование населения об ограничениях использования таких водных объектов, включая обеспечение свободного доступа граждан к водным объектам общего пользования и их береговым полосам",2040]
[null,"2.1.40.   ","оказание поддержки гражданам и их объединениям, участвующим в охране общественного порядка, создание условий для деятельности народных дружин",2041]
[null,"2.1.41.   ","осуществление муниципального лесного контроля",2042]
[null,"2.1.42.   ","обеспечение выполнения работ, необходимых для создания искусственных земельных участков для нужд городского округа, проведение открытого аукциона на право заключить договор о создании искусственного земельного участка в соответствии с федеральным законом",2043]
[null,"2.1.43.   ","осуществление мер по противодействию коррупции в границах городского округа",2044]
[null,"2.1.44.   ","организация в соответствии с Федеральным законом от 24 июля 2007 года № 221-ФЗ «О государственном кадастре недвижимости» выполнения комплексных кадастровых работ и утверждение карты-плана территории",2045]
[null,"2.2.             ","Расходные обязательства, возникшие в результате принятия нормативных правовых актов городского округа, заключения договоров (соглашений) в рамках реализации полномочий органов местного самоуправления городского округа по решению вопросов местного значения городского округа, всего",2100,"х","х","х","х","х","х","х","х"]
[null,"2.2.1.       ","функционирование органов местного самоуправления",2101]
[null,"2.2.2.       ","финансирование муниципальных учреждений",2102]
[null,"2.2.3.       ","принятие устава муниципального образования и внесение в него изменений и дополнений, издание муниципальных правовых актов",2103]
[null,"2.2.4.       ","установление официальных символов муниципального образования",2104]
[null,"2.2.5.       ","создание муниципальных предприятий и учреждений, осуществление финансового обеспечения деятельности муниципальных казенных учреждений и финансового обеспечения выполнения муниципального задания бюджетными и автономными муниципальными учреждениями, а также осуществление закупок товаров, работ, услуг для обеспечения муниципальных нужд",2105]
[null,"2.2.6.       ","установление тарифов на услуги, предоставляемые муниципальными предприятиями и учреждениями, и работы, выполняемые муниципальными предприятиями и учреждениями, если иное не предусмотрено федеральными законами",2106]
[null,"2.2.7.       ","регулирование тарифов на подключение к системе коммунальной инфраструктуры, тарифов организаций коммунального комплекса на подключение, надбавок к тарифам на товары и услуги организаций коммунального комплекса, надбавок к ценам (тарифам) для потребителей.",2107]
[null,"2.2.8.       ","полномочиями по организации теплоснабжения, предусмотренными Федеральным закономО теплоснабжении»",2108]
[null,"2.2.9.       ","полномочиями в сфере водоснабжения и водоотведения, предусмотренными Федеральным законом «О водоснабжении и водоотведении»",2109]
[null,"2.2.10.   ","организационное и материально-техническое обеспечение подготовки и проведения муниципальных выборов, местного референдума, голосования по отзыву депутата, члена выборного органа местного самоуправления, выборного должностного лица местного самоуправления, голосования по вопросам изменения границ муниципального образования, преобразования муниципального образования",2110]
[null,"2.2.11.   ","принятие и организация выполнения планов и программ комплексного социально-экономического развития муниципального образования, а также организация сбора статистических показателей, характеризующих состояние экономики и социальной сферы муниципального образования, и предоставление указанных данных органам государственной власти в порядке, установленном Правительством Российской Федерации",2111]
[null,"2.2.12.   ","разработка и утверждение программ комплексного развития систем коммунальной инфраструктуры поселений, городских округов, программ комплексного развития транспортной инфраструктуры поселений, городских округов, программ комплексного развития социальной инфраструктуры поселений, городских округов, требования к которым устанавливаются Правительством Российской Федерации",2112]
[null,"2.2.13.   ","учреждение печатного средства массовой информации для опубликования муниципальных правовых актов, обсуждения проектов муниципальных правовых актов по вопросам местного значения, доведения до сведения жителей муниципального образования официальной информации о социально-экономическом и культурном развитии муниципального образования, о развитии его общественной инфраструктуры и иной официальной информации",2113]
[null,"2.2.14.   ","осуществление международных и внешнеэкономических связей в соответствии с федеральными законами",2114]
[null,"2.2.15.   ","организация профессионального образования и дополнительного профессионального образования выборных должностных лиц местного самоуправления, членов выборных органов местного самоуправления, депутатов представительных органов муниципальных образований, муниципальных служащих и работников муниципальных учреждений, организация подготовки кадров для муниципальной службы в порядке, предусмотренном законодательством Российской Федерации об образовании и законодательством Российской Федерации о муниципальной службе",2115]
[null,"2.2.16.   ","утверждение и реализация муниципальных программ в области энергосбережения и повышения энергетической эффективности, организация проведения энергетического обследования многоквартирных домов, помещения в которых составляют муниципальный жилищный фонд в границах муниципального образования, организация и проведение иных мероприятий, предусмотренных законодательством об энергосбережении и о повышении энергетической эффективности",2116]
[null,"2.2.17.   ","…",2117]
[null,"…","…","…"]
[null,"2.2.99.","…",2199]
[null,"2.3.    ","Расходные обязательства, возникшие в результате принятия нормативных правовых актов городского округа, заключения договоров (соглашений) в рамках реализации органами местного самоуправления городского округа прав на решение вопросов, не отнесенных к вопросам местного значения городского округа, всего",2200,"х","х","х","х","х","х","х","х"]
[null,"2.3.1.       ","по перечню, предусмотренному Федеральным законом от 06.10.2003 № 131-ФЗ «Об общих принципах организации местного самоуправления в Российской Федерации», всего",2201,"х","х","х","х","х","х","х","х"]
[null,"2.3.1.1.                        ","создание музеев городского округа",2202]
[null,"2.3.1.2.                        ","создание муниципальных образовательных организаций высшего образования",2203]
[null,"2.3.1.3.                        ","участие в осуществлении деятельности по опеке и попечительству",2204]
[null,"2.3.1.4.                        ","создание условий для осуществления деятельности, связанной с реализацией прав местных национально-культурных автономий на территории городского округа",2205]
[null,"2.3.1.5.                        ","оказание содействия национально-культурному развитию народов Российской Федерации и реализации мероприятий в сфере межнациональных отношений на территории городского округа",2206]
[null,"2.3.1.6.   ","создание муниципальной пожарной охраны",2207]
[null,"2.3.1.7. ","создание условий для развития туризма",2208]
[null,"2.3.1.8.                        ","оказание поддержки общественным наблюдательным комиссиям, осуществляющим общественный контроль за обеспечением прав человека и содействие лицам, находящимся в местах принудительного содержания",2209]
[null,"2.3.1.9.                        ","оказание поддержки общественным объединениям инвалидов, а также созданным общероссийскими общественными объединениями инвалидов организациям в соответствии с Федеральным законом от 24 ноября 1995 года № 181-ФЗ «О социальной защите инвалидов в Российской Федерации»",2210]
[null,"2.3.1.10.                    ","осуществление мероприятий, предусмотренных Федеральным законом «О донорстве крови и ее компонентов»",2211]
[null,"2.3.1.11.                    ","создание условий для организации проведения независимой оценки качества оказания услуг организациями в порядке и на условиях, которые установлены федеральными законами",2212]
[null,"2.3.1.12.                    ","предоставление гражданам жилых помещений муниципального жилищного фонда по договорам найма жилых помещений жилищного фонда социального использования в соответствии с жилищным законодательством",2213]
[null,"2.3.1.13.                    ","осуществление мероприятий по отлову и содержанию безнадзорных животных, обитающих на территории городского округа",2214]
[null,"2.3.1.14. ","…",2215]
[null,"…","…","…"]
[null,"2.3.1.98.","…",2299]
[null,"2.3.2.       ","по участию в осуществлении государственных полномочий (не переданных в соответствии со статьей 19 Федерального закона от 06.10.2003 № 131-ФЗ «Об общих принципах организации местного самоуправления в Российской Федерации»), если это участие предусмотрено федеральными законами, всего",2300,"х","х","х","х","х","х","х","х"]
[null,"2.3.2.1.  ","…",2301]
[null,"…","…","…"]
[null,"2.3.2.99.","…",2399]
[null,"2.3.3.       ","по реализации вопросов, не отнесенных к компетенции органов местного самоуправления других муниципальных образований, органов государственной власти и не исключенных из их компетенции федеральными законами и законами субъектов Российской Федерации, всего",2400,"х","х","х","х","х","х","х","х"]
[null,"2.3.3.1. ","…",2401]
[null,"…","…","…"]
[null,"2.3.3.99.","…",2499]
[null,"2.4.             ","Расходные обязательства, возникшие в результате принятия нормативных правовых актов городского округа, заключения договоров (соглашений) в рамках реализации органами местного самоуправления городского округа отдельных государственных полномочий, переданных органами государственной власти Российской Федерации и (или) органами государственной власти субъекта Российской Федерации, всего",2500,"х","х","х","х","х","х","х","х"]
[null,"2.4.1.       ","за счет субвенций, предоставленных из федерального бюджета или бюджета субъекта Российской Федерации, всего",2501,"х","х","х","х","х","х","х","х"]
[null,"2.4.1.1.                        ","Субвенции на возмещение части затрат сельскохозяйственных товаропроизводителей на уплату страховой премии, начисленной по договору сельскохозяйственного страхования в области животноводства, за счет средств областного бюджета",2502]
[null,"2.4.1.2.                        ","Субвенции на исполнение полномочий в сфере общего образования в муниципальных дошкольных образовательных организациях ",2503]
[null,"2.4.1.3.                        ","Субвенции на исполнение полномочий по финансовому обеспечению получения дошкольного образования  в частных дошкольных образовательных организациях посредством предоставления указанным образовательным организациям субсидий на возмещение затрат, включая расходы на оплату труда, приобретение учебников и учебных пособий, средств обучения, игр, игрушек (за исключением расходов на содержание зданий и оплату коммунальных услуг)  ",2504]
[null,"2.4.1.4.                        ","Субвенции на осуществление полномочий по созданию и организации деятельности муниципальных комиссий по  делам несовершеннолетних и защите их прав",2505]
[null,"2.4.1.5.                        ","Субвенции на осуществление полномочий по поддержке сельскохозяйственного производства ",2506]
[null,"2.4.1.6.                        ","Субвенции на осуществление полномочий по организационно-техническому и информационно-методическому сопровождению аттестации педагогических работников муниципальных и частных организаций, осуществляющих образовательную деятельность, с целью установления соответствия уровня квалификации требованиям, предъявляемым к первой квалификационной категории",2507]
[null,"2.4.1.7.                        ","Субвенции на осуществление полномочий по организации и осуществлению деятельности по опеке и попечительству в отношении несовершеннолетних граждан ",2508]
[null,"2.4.1.8.                        ","Субвенции на исполнение полномочий в сфере общего образования в муниципальных общеобразовательных организациях",2509]
[null,"2.4.1.9.                        ","Субвенции бюджету городского округа город Нижний Новгород на осуществление полномочий в области социальной поддержки и социального обслуживания семей, имеющих детей",2510]
[null,"2.4.1.10.                    ","Субвенции на осуществление выплаты компенсации части родительской платы за присмотр и уход за ребенком в государственных и муниципальных дошкольных образовательных организациях, частных образовательных организациях, реализующих образовательную программу дошкольного образования, в том числе обеспечение организации выплаты компенсации части родительской платы ",2511]
[null,"2.4.1.11.                    ","Субвенции на осуществление органами местного самоуправления муниципальных районов полномочий органов государственной власти Нижегородской области по расчету и предоставлению дотаций бюджетам поселений ",2512]
[null,"2.4.1.12.                    ","Субвенции на возмещение части процентной ставки по инвестиционным  кредитам (займам) на развитие растениеводства, переработки и развития инфраструктуры и логистического обеспечения рынков продукции растениеводства за счет средств областного бюджета ",2513]
[null,"2.4.1.13.                    ","Субвенции на возмещение части затрат на приобретение элитных семян за счет средств областного бюджета",2514]
[null,"2.4.1.14.                    ","Субвенции на исполнение полномочий по финансовому обеспечению получения дошкольного, начального общего, основного общего, среднего общего образования в частных общеобразовательных организациях, осуществляющих образовательную деятельность по имеющим государственную аккредитацию основным общеобразовательным программам, посредством предоставления указанным образовательным организациям субсидий на возмещение затрат, включая расходы на оплату труда, приобретение учебников и учебных пособий, средств обучения, игр, игрушек (за исключением расходов на содержание зданий и оплату коммунальных услуг)",2515]
[null,"2.4.1.15.                    ","Субвенции на поддержку племенного животноводства за счет средств областного бюджета  ",2516]
[null,"2.4.1.16.                    ","Субвенции на возмещение части процентной ставки по долгосрочным, среднесрочным и краткосрочным кредитам, взятым малыми формами хозяйствования, за счет средств областного бюджета",2517]
[null,"2.4.1.17.                    ","Субвенции на поддержку племенного крупного рогатого скота мясного направления за счет средств областного бюджета ",2518]
[null,"2.4.1.18.                    ","Субвенции на осуществление выплат на возмещение части расходов по приобретению путевок в детские санатории, санаторно-оздоровительные центры (лагеря) круглогодичного действия и иные организации, осуществляющие санаторно-курортное лечение детей в соответствии с имеющейся лицензией, иные организации, осуществляющие санаторно-курортную помощь детям в соответствии с имеющейся лицензией, расположенные на территории Российской Федерации",2519]
[null,"2.4.1.19.                    ","Субвенции на стабилизацию и увеличение поголовья крупного рогатого скота за счет средств областного бюджета",2520]
[null,"2.4.1.20.                    ","Субвенции для финансового обеспечения стимулирования производства сельскохозяйственной продукции гражданами, ведущими личное подсобное хозяйство, за счет средств областного бюджета ",2521]
[null,"2.4.1.21.                    ","Субвенции на осуществление полномочий по организации проведения мероприятий по предупреждению и ликвидации болезней животных, их лечению, защите населения от болезней, общих для человека и животных, в части обеспечения безопасности сибиреязвенных скотомогильников",2522]
[null,"2.4.1.22.                    ","Субвенции на осуществление полномочий по организации проведения мероприятий по предупреждению и ликвидации болезней животных, их лечению, защите населения от болезней, общих для человека и животных, в части регулирования численности безнадзорных животных ",2523]
[null,"2.4.1.23.                    ","Субвенции на возмещение части затрат сельскохозяйственных товаропроизводителей на уплату страховой премии, начисленной по договору сельскохозяйственного страхования в области растениеводства, за счет средств областного бюджета",2524]
[null,"2.4.1.24.                    ","Субвенции на реализацию экономически значимой программы \"Развитие мясного скотоводства в Нижегородской области на 2015-2017 годы\" за счет средств областного бюджета ",2525]
[null,"2.4.1.25.                    ","Субвенции на проведение ремонта жилых помещений, собственниками которых являются дети-сироты и дети, оставшиеся без попечения родителей, а также лица из числа детей-сирот и детей, оставшихся без попечения родителей, либо жилых помещений государственного жилищного фонда, право пользования которыми за ними сохранено, в целях обеспечения надлежащего санитарного и технического состояния этих жилых помещений",2526]
[null,"2.4.1.26.                    ","Субвенция бюджету городского округа город Нижний Новгород на осуществление полномочий по определению перечня должностных лиц органов местного самоуправления, уполномоченных составлять протоколы об административных правонарушениях, и по созданию административных комиссий       ",2527]
[null,"2.4.1.27.                    ","Субвенция на возмещение части процентной ставки по инвестиционным кредитам (займам) на развитие животноводства, переработки и развития инфраструктуры и логистического обеспечения рынков продукции животноводства за счет средств областного бюджета",2528]
[null,"2.4.1.28.                    ","Субвенция на оказание несвязанной поддержки сельскохозяйственным товаропроизводителям в области растениеводства за счет средств областного бюджета",2529]
[null,"2.4.1.29.                    ","Субвенции на обеспечение детей-сирот и детей, оставшихся без попечения родителей, лиц из числа детей-сирот и детей, оставшихся без попечения родителей, жилыми помещениями за счет средств областного бюджета",2530]
[null,"2.4.1.30.                    ","Субвенции на возмещение части затрат на приобретение зерноуборочных и кормоуборочных комбайнов отечественного производства за счет средств областного бюджета ",2531]
[null,"2.4.1.31.                    ","Субвенции на возмещение части процентной ставки по инвестиционным кредитам на строительство и реконструкцию объектов мясного скотоводства за счет средств областного бюджета",2532]
[null,"2.4.1.32.                    ","Субвенции на возмещение части процентной ставки по инвестиционным кредитам (займам) на строительство и реконструкцию объектов для молочного скотоводства за счет средств областного бюджета",2533]
[null,"2.4.1.33.                    ","Субвенции на возмещение части затрат сельскохозяйственных товаропроизводителей на 1 килограмм реализованного и (или) отгруженного на собственную переработку молока за счет средств областного бюджета",2534]
[null,"2.4.1.34.                    ","Субвенции на обеспечение детей-сирот и детей, оставшихся без попечения родителей, лиц из числа детей-сирот и детей, оставшихся без попечения родителей, жилыми помещениями за счет остатков средств федерального бюджета",2535]
[null,"2.4.1.35.                    ","Субвенции на возмещение части процентной ставки по инвестиционным кредитам (займам) на строительство и реконструкцию объектов для молочного скотоводства за счет средств федерального бюджета",2536]
[null,"2.4.1.36.                    ","Субвенции на реализацию экономически значимой программы \"Развитие мясного скотоводства в Нижегородской области на 2015-2017 годы\" за счет средств федерального бюджета",2537]
[null,"2.4.1.37.                    ","Субвенции на возмещение части затрат сельскохозяйственных товаропроизводителей на уплату страховой премии, начисленной по договору сельскохозяйственного страхования в области растениеводства, за счет средств федерального бюджета",2538]
[null,"2.4.1.38.                    ","Субвенции на поддержку племенного крупного рогатого скота мясного направления за счет средств федерального бюджета",2539]
[null,"2.4.1.39.                    ","Субвенции на возмещение части процентной ставки по долгосрочным, среднесрочным и краткосрочным кредитам, взятым малыми формами хозяйствования, за счет средств федерального бюджета ",2540]
[null,"2.4.1.40.                    ","Субвенции на возмещение части процентной ставки по инвестиционным кредитам (займам) на развитие животноводства, переработки и развития инфраструктуры и логистического обеспечения рынков продукции животноводства за счет средств федерального бюджета",2541]
[null,"2.4.1.41.                    ","Субвенции на возмещение части процентной ставки по инвестиционным кредитам на строительство и реконструкцию объектов мясного скотоводства за счет средств федерального бюджета",2542]
[null,"2.4.1.42.                    ","Субвенции на возмещение части затрат на приобретение элитных семян за счет средств федерального бюджета",2543]
[null,"2.4.1.43.                    ","Субвенции на поддержку племенного животноводства за счет средств федерального бюджета",2544]
[null,"2.4.1.44.                    ","Субвенции на обеспечение жильем отдельных категорий граждан, установленных федеральными законами от 12 января 1995 года №5-ФЗ «О ветеранах» и от 24 ноября 1995 года №181-ФЗ «О социальной защите инвалидов в Российской Федерации» ",2545]
[null,"2.4.1.45.                    ","Субвенции на обеспечение жильем отдельных категорий граждан, установленных Федеральным законом от 12 января 1995 года №5-ФЗ \"О ветеранах\", в соответствии с Указом Президента Российской Федерации от 7 мая 2008 года №714 \"Об обеспечении жильем ветеранов Великой Отечественной войны 1941-1945 годов\"",2546]
[null,"2.4.1.46.                    ","Субвенции на реализацию переданных исполнительно-распорядительным органам муниципальных образований Нижегородской области государственных полномочий по составлению (изменению, дополнению) списков кандидатов в присяжные заседатели федеральных судов общей юрисдикции в Российской Федерации",2547]
[null,"2.4.1.47.                    ","Субвенции на оказание несвязанной поддержки сельскохозяйственным товаропроизводителям в области растениеводства за счет средств федерального бюджета",2548]
[null,"2.4.1.48.                    ","Субвенции на возмещение части процентной ставки по инвестиционным кредитам (займам) на развитие растениеводства, переработки и развития инфраструктуры и логистического обеспечения рынков продукции растениеводства за счет средств федерального бюджета",2549]
[null,"2.4.1.49.                    ","Субвенции на 1 килограмм реализованного и (или) отгруженного на собственную переработку молока за счет средств федерального бюджета",2550]
[null,"2.4.1.50.                    ","Субвенции на обеспечение детей-сирот и детей, оставшихся без попечения родителей, лиц из числа детей-сирот и детей, оставшихся без попечения родителей, жилыми помещениями за счет средств федерального бюджета",2551]
[null,"2.4.1.51.                    ","за счет собственных доходов и источников финансирования дефицита бюджета муниципального района, всего",2552]
[null,"2.4.1.98.","…",2599]
[null,"2.4.2.       ","за счет собственных доходов и источников финансирования дефицита бюджета городского округа, всего",2600,"х","х","х","х","х","х","х","х"]
[null,"2.4.2.1.    ","…",2601]
[null,"…","…","…"]
[null,"2.4.2.99.","…",2699]
[null,"2.5.             ","Расходные обязательства, возникшие в результате принятия нормативных правовых актов городского округа, заключения соглашений, предусматривающих предоставление межбюджетных трансфертов из бюджета городского округа другим бюджетам бюджетной системы Российской Федерации, всего",2700,"х","х","х","х","х","х","х","х"]
[null,"2.5.1.       ","по предоставлению субсидий в бюджет субъекта Российской Федерации, всего",2701]
[null,"2.5.2.       ","по предоставлению иных межбюджетных трансфертов, всего",2702,"х","х","х","х","х","х","х","х"]
[null,"2.5.2.1.    ","…",2703]
[null,"…","…","…"]
[null,"2.5.2.97.","…",2799]
[null,"4.                   ","Расходные обязательства, возникшие в результате принятия нормативных правовых актов городского поселения, заключения договоров (соглашений), всего",4000,"х","х","х","х","х","х","х","х",{"$f":"SUM(M357+M397+M443+M452)","v":39713.699999999997},{"$f":"SUM(N357+N397+N443+N452)","v":38780.399999999994},{"$f":"SUM(O357+O443+O452+O397)","v":74100.800000000003},{"$f":"SUM(P357+P443+P452+P397)","v":39677.800000000003},{"$f":"SUM(Q357+Q443+Q452+Q397)","v":38360.800000000003},{"$f":"SUM(R357+R443+R452+R397)","v":39476.9}]
[null,"4.1.             ","Расходные обязательства, возникшие в результате принятия нормативных правовых актов городского поселения, заключения договоров (соглашений) в рамках реализации вопросов местного значения городского поселения, всего",4001,"х","х","х","х","х","х","х","х",{"$f":"SUM(M358:M396)","v":22007.3},21085.399999999998,59552.299999999996,26205.100000000002,25072.800000000003,26080.7]
[null,"4.1.1.       ","составление и рассмотрение проекта бюджета городского поселения, утверждение и исполнение бюджета городского поселения, осуществление контроля за его исполнением, составление и утверждение отчета об исполнении бюджета городского поселения владение, пользование и распоряжение имуществ",4002]
[null,"4.1.2.       ","установление, изменение и отмена местных налогов и сборов городского поселения",4003]
[null,"4.1.3.       ","владение, пользование и распоряжение имуществом, находящимся в муниципальной собственности городского поселения",4004,{"$nulls":6},"04","12"]
[null,"4.1.4.       ","организация в границах городского поселения электро-, тепло-, газо- и водоснабжения населения, водоотведения, снабжения населения топливом в пределах полномочий, установленных законодательством Российской Федерации",4005,"Федеральный закон от 06.10.2003 N 131-ФЗ\n(ред. от 03.07.2016)\n\"Об общих принципах организации местного самоуправления в Российской Федерации\"\n","статья 16, п.1, п.п. 4","06.10.2010         не ограничен",null,null,null,"05","02",{"$f":"SUM([1]Шаранга!M12)","v":3023.2},{"$f":"SUM([1]Шаранга!N12)","v":3009.1},{"$f":"SUM([1]Шаранга!O12)","v":0},{"$f":"SUM([1]Шаранга!P12)","v":0},{"$f":"SUM([1]Шаранга!Q12)","v":0},{"$f":"SUM([1]Шаранга!R12)","v":0}]
[null,"4.1.5.       ","дорожная деятельность в отношении автомобильных дорог местного значения в границах населенных пунктов городского поселения и обеспечение безопасности дорожного движения на них, включая создание и обеспечение функционирования парковок (парковочных мест), осуществление муниципального контроля за сохранностью автомобильных дорог местного значения в границах населенных пунктов городского поселения, а также осуществление иных полномочий в области использования автомобильных дорог и осуществления дорожной деятельности в соответствии с законодательством Российской Федерации",4006,"Федеральный закон от 08.11.2007 N 257-ФЗ\n(ред. от 03.07.2016)\n\"Об автомобильных дорогах и о дорожной деятельности в Российской Федерации и о внесении изменений в отдельные законодательные акты Российской Федерации\"\n(с изм. и доп., вступ. в силу с 15.11.2016)\n","статья 19","08.11.2007         не ограничен",null,null,null,"04","09",{"$f":"SUM([1]Шаранга!M13)","v":2485.8000000000002},{"$f":"SUM([1]Шаранга!N13)","v":2358.1},{"$f":"SUM([1]Шаранга!O13)","v":35932.199999999997},{"$f":"SUM([1]Шаранга!P13)","v":2637.4},{"$f":"SUM([1]Шаранга!Q13)","v":3258.4},{"$f":"SUM([1]Шаранга!R13)","v":3388.7}]
[null,"4.1.6.       ","обеспечение проживающих в городского поселении и нуждающихся в жилых помещениях малоимущих граждан жилыми помещениями, организация строительства и содержания муниципального жилищного фонда, создание условий для жилищного строительства, осуществление муниципального жилищного контроля, а также иных полномочий органов местного самоуправления в соответствии с жилищным законодательством",4007,"Федеральный закон от 06.10.2003 N 131-ФЗ\n(ред. от 03.07.2016)\n\"Об общих принципах организации местного самоуправления в Российской Федерации\"\n","статья 14, п.6","06.10.2010         не ограничен",null,null,null,"05","01",{"$f":"SUM([1]Шаранга!M14)","v":475},{"$f":"SUM([1]Шаранга!N14)","v":475},{"$f":"SUM([1]Шаранга!O14)","v":200.4},{"$f":"SUM([1]Шаранга!P14)","v":475},{"$f":"SUM([1]Шаранга!Q14)","v":475},{"$f":"SUM([1]Шаранга!R14)","v":475}]
[null,"4.1.7.       ","создание условий для предоставления транспортных услуг населению и организация транспортного обслуживания населения в границах городского поселения",4008]
[null,"4.1.8.       ","участие в профилактике терроризма и экстремизма, а также в минимизации и (или) ликвидации последствий проявлений терроризма и экстремизма в границах городского поселения",4009]
[null,"4.1.9.       ","создание условий для реализации мер, направленных на укрепление межнационального и межконфессионального согласия, сохранение и развитие языков и культуры народов Российской Федерации, проживающих на территории городского поселения, социальную и культурную адаптацию мигрантов, профилактику межнациональных (межэтнических) конфликтов",4010]
[null,"4.1.10.   ","участие в предупреждении и ликвидации последствий чрезвычайных ситуаций в границах городского поселения",4011]
[null,"4.1.11.   ","обеспечение первичных мер пожарной безопасности в границах населенных пунктов городского поселения",4012,"Федеральный закон от 21.12.1994 N 69-ФЗ(ред. от 23.06.2016)                \"О пожарной безопасности\"","статья 19","21.12.1994         не ограничен",null,null,null,"03                      03","09                  10",{"$f":"SUM([1]Шаранга!M19)","v":37.5},{"$f":"SUM([1]Шаранга!N19)","v":37.5},{"$f":"SUM([1]Шаранга!O19)","v":29.5},{"$f":"SUM([1]Шаранга!P19)","v":21.5},{"$f":"SUM([1]Шаранга!Q19)","v":21.5},{"$f":"SUM([1]Шаранга!R19)","v":21.5}]
[null,"4.1.12.   ","создание условий для обеспечения жителей городского поселения услугами связи, общественного питания, торговли и бытового обслуживания",4013]
[null,"4.1.13.   ","организация библиотечного обслуживания населения, комплектование и обеспечение сохранности библиотечных фондов библиотек городского поселения",4014]
[null,"4.1.14.   ","создание условий для организации досуга и обеспечения жителей городского поселения услугами организаций культуры",4015,"Закона Российской Федерации от 9 октября 1992 года N 3612-1 \"Основы законодательства Российской Федерации о культуре\"\n","статья 40","09.10.1992         не ограничен",null,null,null,"10","06",{"$f":"SUM([1]Шаранга!M22)","v":293},{"$f":"SUM([1]Шаранга!N22)","v":292.89999999999998},{"$f":"SUM([1]Шаранга!O22)","v":275},{"$f":"SUM([1]Шаранга!P22)","v":268},{"$f":"SUM([1]Шаранга!Q22)","v":268},{"$f":"SUM([1]Шаранга!R22)","v":268}]
[null,"4.1.15.   ","сохранение, использование и популяризация объектов культурного наследия (памятников истории и культуры), находящихся в собственности городского поселения, охрана объектов культурного наследия (памятников истории и культуры) местного (муниципального) значения, расположенных на территории городского поселения",4016]
[null,"4.1.16.   ","создание условий для развития местного традиционного народного художественного творчества, участие в сохранении, возрождении и развитии народных художественных промыслов в городского поселении",4017]
[null,"4.1.17.   ","обеспечение условий для развития на территории городского поселения физической культуры, школьного спорта и массового спорта, организация проведения официальных физкультурно-оздоровительных и спортивных мероприятий городского поселения",4018]
[null,"4.1.18.   ","создание условий для массового отдыха жителей городского поселения и организация обустройства мест массового отдыха населения, включая обеспечение свободного доступа граждан к водным объектам общего пользования и их береговым полосам",4019]
[null,"4.1.19.   ","формирование архивных фондов городского поселения",4020]
[null,"4.1.20.   ","участие в организации деятельности по сбору (в том числе раздельному сбору) и транспортированию твердых коммунальных отходов",4021]
[null,"4.1.21.   ","утверждение правил благоустройства территории городского поселения, устанавливающих в том числе требования по содержанию зданий (включая жилые дома), сооружений и земельных участков, на которых они расположены, к внешнему виду фасадов и ограждений соответствующих зданий и сооружений, перечень работ по благоустройству и периодичность их выполнения; установление порядка участия собственников зданий (помещений в них) и сооружений в благоустройстве прилегающих территорий; организация благоустройства территории городского поселения (включая освещение улиц, озеленение территории, установку указателей с наименованиями улиц и номерами домов, размещение и содержание малых архитектурных форм), а также использования, охраны, защиты, воспроизводства городских лесов, лесов особо охраняемых природных территорий, расположенных в границах населенных пунктов городского поселения",4022,"Федеральный закон от 06.10.2003 N 131-ФЗ\n(ред. от 03.07.2016)\n\"Об общих принципах организации местного самоуправления в Российской Федерации\"\n","статья 14, п.19","06.10.2010         не ограничен",null,null,null,"05","03",{"$f":"SUM([1]Шаранга!M29)","v":15491.7},{"$f":"SUM([1]Шаранга!N29)","v":14712.7},{"$f":"SUM([1]Шаранга!O29)","v":22880.3},{"$f":"SUM([1]Шаранга!P29)","v":22554.7},{"$f":"SUM([1]Шаранга!Q29)","v":20801.400000000001},{"$f":"SUM([1]Шаранга!R29)","v":21679}]
[null,"4.1.22.   ","утверждение генеральных планов городского поселения, правил землепользования и застройки, утверждение подготовленной на основе генеральных планов городского поселения документации по планировке территории, выдача разрешений на строительство (за исключением случаев, предусмотренных Градостроительным кодексом Российской Федерации, иными федеральными законами), разрешений на ввод объектов в эксплуатацию при осуществлении строительства, реконструкции объектов капитального строительства, расположенных на территории городского поселения, утверждение местных нормативов градостроительного проектирования городского поселений, резервирование земель и изъятие земельных участков в границах городского поселения для муниципальных нужд, осуществление муниципального земельного контроля в границах городского поселения, осуществление в случаях, предусмотренных Градостроительным кодексом Российской Федерации, осмотров зданий, сооружений и выдача рекомендаций об устранении выявленных в ходе таких осмотров нарушений",4023]
[null,"4.1.23.   ","присвоение адресов объектам адресации, изменение, аннулирование адресов, присвоение наименований элементам улично-дорожной сети (за исключением автомобильных дорог федерального значения, автомобильных дорог регионального или межмуниципального значения, местного значения муниципального района), наименований элементам планировочной структуры в границах городского поселения, изменение, аннулирование таких наименований, размещение информации в государственном адресном реестре",4024]
[null,"4.1.24.   ","организация ритуальных услуг и содержание мест захоронения",4025,"Федеральный закон от 06.10.2003 N 131-ФЗ\n(ред. от 03.07.2016)\n\"Об общих принципах организации местного самоуправления в Российской Федерации\"\n","статья 14, п.22","06.10.2010         не ограничен",null,null,null,"05","03",{"$f":"SUM([1]Шаранга!M32)","v":201.1},{"$f":"SUM([1]Шаранга!N32)","v":200.1},{"$f":"SUM([1]Шаранга!O32)","v":234.9},{"$f":"SUM([1]Шаранга!P32)","v":248.5},{"$f":"SUM([1]Шаранга!Q32)","v":248.5},{"$f":"SUM([1]Шаранга!R32)","v":248.5}]
[null,"4.1.25.   ","организация и осуществление мероприятий по территориальной обороне и гражданской обороне, защите населения и территории городского поселения от чрезвычайных ситуаций природного и техногенного характера",4026]
[null,"4.1.26.   ","создание, содержание и организация деятельности аварийно-спасательных служб и (или) аварийно-спасательных формирований на территории городского поселения",4027]
[null,"4.1.27.   ","осуществление мероприятий по обеспечению безопасности людей на водных объектах, охране их жизни и здоровья",4028]
[null,"4.1.28.   ","создание, развитие и обеспечение охраны лечебно-оздоровительных местностей и курортов местного значения на территории городского поселения, а также осуществление муниципального контроля в области использования и охраны особо охраняемых природных территорий местного значения",4029]
[null,"4.1.29.   ","содействие в развитии сельскохозяйственного производства, создание условий для развития малого и среднего предпринимательства",4030]
[null,"4.1.30.   ","организация и осуществление мероприятий по работе с детьми и молодежью в городском поселении",4031]
[null,"4.1.31.   ","осуществление в пределах, установленных водным законодательством Российской Федерации, полномочий собственника водных объектов, информирование населения об ограничениях их использования",4032]
[null,"4.1.32.   ","осуществление муниципального лесного контроля",4033]
[null,"4.1.33.   ","оказание поддержки гражданам и их объединениям, участвующим в охране общественного порядка, создание условий для деятельности народных дружин",4034]
[null,"4.1.34.   ","предоставление помещения для работы на обслуживаемом административном участке городского поселения сотруднику, замещающему должность участкового уполномоченного полиции",4035]
[null,"4.1.35.   ","до 1 января 2017 года предоставление сотруднику, замещающему должность участкового уполномоченного полиции, и членам его семьи жилого помещения на период выполнения сотрудником обязанностей по указанной должности",4036]
[null,"4.1.36.   ","оказание поддержки социально ориентированным некоммерческим организациям в пределах полномочий, установленных статьями 31.1 и 31.3 Федерального закона от 12 января 1996 года № 7-ФЗ «О некоммерческих организациях»",4037]
[null,"4.1.37.   ","обеспечение выполнения работ, необходимых для создания искусственных земельных участков для нужд городского поселения, проведение открытого аукциона на право заключить договор о создании искусственного земельного участка в соответствии с федеральным законом",4038]
[null,"4.1.38.   ","осуществление мер по противодействию коррупции в границах городского поселения",4039]
[null,"4.1.39.   ","участие в соответствии с Федеральным законом от 24 июля 2007 года № 221-ФЗ «О государственном кадастре недвижимости» в выполнении комплексных кадастровых работ",4040]
[null,"4.2.             ","Расходные обязательства, возникшие в результате принятия нормативных правовых актов городского поселения, заключения договоров (соглашений) в рамках реализации полномочий органов местного самоуправления городского поселения по решению вопросов местного значения городского поселения, всего",4100,"х","х","х","х","х","х","х","х",{"$f":"SUM(M398:M416)","v":2679},2667.6,3001.6,2814,2701.8,2757.5]
[null,"4.2.1.       ","функционирование органов местного самоуправления",4101,"Федеральный закон от 02.03.2007 N 25-ФЗ\n\"О муниципальной службе в Российской Федерации\", \"Бюджетный кодекс Российской Федерации\" от 31.07.1998 N 145-ФЗ\n(ред. от 03.07.2016)\n(с изм. и доп., вступ. в силу с 01.09.2016)\n","ст.96,9","02.03.2007           не ограничен ","Закон Нижегородской области от 03.08.2007 № 99-З \" О муниципальной службе в Нижегородской области\" ","ст.25","2007-08-03","01                            01                      01","04                           11                     13",{"$f":"SUM([1]Шаранга!M49)","v":2679},{"$f":"SUM([1]Шаранга!N49)","v":2667.6},{"$f":"SUM([1]Шаранга!O49)","v":3001.6},{"$f":"SUM([1]Шаранга!P49)","v":2814},{"$f":"SUM([1]Шаранга!Q49)","v":2701.8},{"$f":"SUM([1]Шаранга!R49)","v":2757.5}]
[null,"4.2.2.       ","финансирование муниципальных учреждений",4102]
[null,"4.2.3.       ","принятие устава муниципального образования и внесение в него изменений и дополнений, издание муниципальных правовых актов",4103]
[null,"4.2.4.       ","установление официальных символов муниципального образования",4104]
[null,"4.2.5.       ","создание муниципальных предприятий и учреждений, осуществление финансового обеспечения деятельности муниципальных казенных учреждений и финансового обеспечения выполнения муниципального задания бюджетными и автономными муниципальными учреждениями, а также осуществление закупок товаров, работ, услуг для обеспечения муниципальных нужд",4105]
[null,"4.2.6.       ","установление тарифов на услуги, предоставляемые муниципальными предприятиями и учреждениями, и работы, выполняемые муниципальными предприятиями и учреждениями, если иное не предусмотрено федеральными законами",4106]
[null,"4.2.7.       ","регулирование тарифов на подключение к системе коммунальной инфраструктуры, тарифов организаций коммунального комплекса на подключение, надбавок к тарифам на товары и услуги организаций коммунального комплекса, надбавок к ценам (тарифам) для потребителей.",4107]
[null,"4.2.8.       ","полномочиями по организации теплоснабжения, предусмотренными Федеральным законом     «О теплоснабжении»",4108]
[null,"4.2.9.       ","полномочиями в сфере водоснабжения и водоотведения, предусмотренными Федеральным законом «О водоснабжении и водоотведении»",4109]
[null,"4.2.10.   ","организационное и материально-техническое обеспечение подготовки и проведения муниципальных выборов, местного референдума, голосования по отзыву депутата, члена выборного органа местного самоуправления, выборного должностного лица местного самоуправления, голосования по вопросам изменения границ муниципального образования, преобразования муниципального образования",4110]
[null,"4.2.11.   ","принятие и организация выполнения планов и программ комплексного социально-экономического развития муниципального образования, а также организация сбора статистических показателей, характеризующих состояние экономики и социальной сферы муниципального образования, и предоставление указанных данных органам государственной власти в порядке, установленном Правительством Российской Федерации",4111]
[null,"4.2.12.   ","разработка и утверждение программ комплексного развития систем коммунальной инфраструктуры поселений, городских округов, программ комплексного развития транспортной инфраструктуры поселений, городских округов, программ комплексного развития социальной инфраструктуры поселений, городских округов, требования к которым устанавливаются Правительством Российской Федерации",4112]
[null,"4.2.13.   ","учреждение печатного средства массовой информации для опубликования муниципальных правовых актов, обсуждения проектов муниципальных правовых актов по вопросам местного значения, доведения до сведения жителей муниципального образования официальной информации о социально-экономическом и культурном развитии муниципального образования, о развитии его общественной инфраструктуры и иной официальной информации",4113]
[null,"4.2.14.   ","осуществление международных и внешнеэкономических связей в соответствии с федеральными законами",4114]
[null,"4.2.15.   ","организация профессионального образования и дополнительного профессионального образования выборных должностных лиц местного самоуправления, членов выборных органов местного самоуправления, депутатов представительных органов муниципальных образований, муниципальных служащих и работников муниципальных учреждений, организация подготовки кадров для муниципальной службы в порядке, предусмотренном законодательством Российской Федерации об образовании и законодательством Российской Федерации о муниципальной службе",4115]
[null,"4.2.16.   ","утверждение и реализация муниципальных программ в области энергосбережения и повышения энергетической эффективности, организация проведения энергетического обследования многоквартирных домов, помещения в которых составляют муниципальный жилищный фонд в границах муниципального образования, организация и проведение иных мероприятий, предусмотренных законодательством об энергосбережении и о повышении энергетической эффективности",4116]
[null,"4.2.17.   ","…",4117]
[null,"…","…","…"]
[null,"4.2.99.","…",4199]
[null,"4.3.             ","Расходные обязательства, возникшие в результате принятия нормативных правовых актов городского поселения, заключения договоров (соглашений) в рамках реализации органами местного самоуправления городского поселения прав на решение вопросов, не отнесенных к вопросам местного значения городского поселения, всего",4200,"х","х","х","х","х","х","х","х"]
[null,"4.3.1.       ","по перечню, предусмотренному Федеральным законом от 06.10.2003 № 131-ФЗ «Об общих принципах организации местного самоуправления в Российской Федерации», всего",4201,"х","х","х","х","х","х","х","х"]
[null,"4.3.1.1.     ","создание музеев городского поселения",4202]
[null,"4.3.1.2.                        ","совершение нотариальных действий, предусмотренных законодательством, в случае отсутствия в городского поселении нотариуса",4203]
[null,"4.3.1.3.                        ","участие в осуществлении деятельности по опеке и попечительству",4204]
[null,"4.3.1.4.                        ","создание условий для осуществления деятельности, связанной с реализацией прав местных национально-культурных автономий на территории городского поселения",4205]
[null,"4.3.1.5.                        ","оказание содействия национально-культурному развитию народов Российской Федерации и реализации мероприятий в сфере межнациональных отношений на территории городского поселения",4206]
[null,"4.3.1.6.                        ","участие в организации и осуществлении мероприятий по мобилизационной подготовке муниципальных предприятий и учреждений, находящихся на территории городского поселения",4207]
[null,"4.3.1.7.","создание муниципальной пожарной охраны",4208]
[null,"4.3.1.8.    ","создание условий для развития туризма",4209]
[null,"4.3.1.9.                        ","оказание поддержки общественным наблюдательным комиссиям, осуществляющим общественный контроль за обеспечением прав человека и содействие лицам, находящимся в местах принудительного содержания",4210]
[null,"4.3.1.10.                    ","оказание поддержки общественным объединениям инвалидов, а также созданным общероссийскими общественными объединениями инвалидов организациям в соответствии с Федеральным законом от 24 ноября 1995 года № 181-ФЗ «О социальной защите инвалидов в Российской Федерации»",4211]
[null,"4.3.1.11.                    ","создание условий для организации проведения независимой оценки качества оказания услуг организациями в порядке и на условиях, которые установлены федеральными законами",4212]
[null,"4.3.1.12.                    ","предоставление гражданам жилых помещений муниципального жилищного фонда по договорам найма жилых помещений жилищного фонда социального использования в соответствии с жилищным законодательством",4213]
[null,"4.3.1.13.                    ","осуществление мероприятий по отлову и содержанию безнадзорных животных, обитающих на территории городского поселения",4214]
[null,"4.3.1.14.  ","…",4215]
[null,"…","…","…"]
[null,"4.3.1.98.","…",4299]
[null,"4.3.2.       ","по участию в осуществлении государственных полномочий (не переданных в соответствии со статьей 19 Федерального закона от 06.10.2003 № 131-ФЗ «Об общих принципах организации местного самоуправления в Российской Федерации»), если это участие предусмотрено федеральными законами, всего",4300,"х","х","х","х","х","х","х","х"]
[null,"4.3.2.1.   ","…",4301]
[null,"…","…","…"]
[null,"4.3.2.99.","…",4399]
[null,"4.3.3.       ","по реализации вопросов, не отнесенных к компетенции органов местного самоуправления других муниципальных образований, органов государственной власти и не исключенных из их компетенции федеральными законами и законами субъектов Российской Федерации, всего",4400,"х","х","х","х","х","х","х","х"]
[null,"4.3.3.1.   ","…",4401]
[null,"…","…","…"]
[null,"4.3.3.99.","…",4499]
[null,"4.4.             ","Расходные обязательства, возникшие в результате принятия нормативных правовых актов городского поселения, заключения договоров (соглашений) в рамках реализации органами местного самоуправления городского поселения отдельных государственных полномочий, переданных органами государственной власти Российской Федерации и (или) органами государственной власти субъекта Российской Федерации, всего",4500,"х","х","х","х","х","х","х","х",{"$f":"SUM(M444)","v":305},{"$f":"SUM(N444)","v":305},327.9,295.8,299.7,314.2]
[null,"4.4.1.       ","за счет субвенций, предоставленных из федерального бюджета или бюджета субъекта Российской Федерации, всего",4501,"х","х","х","х","х","х","х","х",{"$f":"SUM(M445)","v":305},305,327.9,295.8,299.7,314.2]
[null,"4.4.1.1.                        ","Субвенции на обеспечение поселений, входящих в состав муниципальных районов Нижегородской области, субвенциями из областного фонда компенсаций на осуществление государственных полномочий Российской Федерации по первичному воинскому учету на территориях, где отсутствуют военные комиссариаты  ",4502,null,null,null,"Закон Нижегородской области от 17.12.2012                N 164-З (ред. от 18.12.2013) Об областном бюджете на 2013 год(принят постановлением ЗС НО от 06.12.2012 N 735-V)","ст.18 п.2","01.01.2013         не ограничен","02","03",{"$f":"SUM([1]Шаранга!M96)","v":305},{"$f":"SUM([1]Шаранга!N96)","v":305},{"$f":"SUM([1]Шаранга!O96)","v":327.9},{"$f":"SUM([1]Шаранга!P96)","v":295.8},{"$f":"SUM([1]Шаранга!Q96)","v":299.7},{"$f":"SUM([1]Шаранга!R96)","v":314.2}]
[null,"…","…","…"]
[null,"4.4.1.98.","…",4599]
[null,"4.4.2.    ","за счет собственных доходов и источников финансирования дефицита бюджета городского поселения, всего",4600,"х","х","х",null,"х","х","х","х"]
[null,"4.4.2.1.  ","…",4601]
[null,null,"…","…"]
[null,"4.4.2.99.","…",4699]
[null,"4.5.    ","Расходные обязательства, возникшие в результате принятия нормативных правовых актов городского поселения, заключения соглашений, предусматривающих предоставление межбюджетных трансфертов из бюджета городского поселения другим бюджетам бюджетной системы Российской Федерации, всего",4700,"х","х","х","х","х","х","х","х",{"$f":"SUM(M461)","v":14722.4},14722.4,11219,10362.9,10286.5,10324.5]
[null,"4.5.1.       ","по предоставлению субсидий, всего",4701,"х","х","х","х","х","х","х","х"]
[null,"4.5.1.1.   ","в бюджет субъекта Российской Федерации, всего",4702]
[null,"4.5.1.2.   ","в бюджет муниципального района на решение вопросов местного значения межмуниципального характера, всего",4703,"х","х","х","х","х","х","х","х"]
[null,"4.5.1.2.1.  ","…",4704]
[null,"…","…","…"]
[null,"4.5.1.2.96.","…",4799]
[null,"4.5.2.       ","по предоставлению иных межбюджетных трансфертов, всего",4800,"х","х","х","х","х","х","х","х"]
[null,"4.5.2.1.                        ","в бюджет муниципального района в случае заключения соглашения с органами местного самоуправления муниципального района, в состав которого входит городское поселение, о передаче им осуществления части своих полномочий по решению вопросов местного значения, всего",4801,"х","х","х","х","х","х","х","х"]
[null,"4.5.2.1.1. ","в бюджет муниципального района в случае заключения соглашения с органами местного самоуправления муниципального района, в состав которого входит городское поселение, о передаче им осуществления части своих полномочий по решению вопросов местного значения",4802,"Федеральный закон от 06.10.2003 N 131-ФЗ\n\"Об общих принципах организации местного самоуправления в Российской Федерации\"\n","ст.15 п.4 ","06.10.2003          не ограничен",null,null,null,"08","01",{"$f":"SUM([1]Шаранга!M112)","v":14722.4},{"$f":"SUM([1]Шаранга!N112)","v":14722.4},{"$f":"SUM([1]Шаранга!O112)","v":11219},{"$f":"SUM([1]Шаранга!P112)","v":10362.9},{"$f":"SUM([1]Шаранга!Q112)","v":10286.5},{"$f":"SUM([1]Шаранга!R112)","v":10324.5}]
[null,"…","…",4803]
[null,"4.5.2.1.98.","…",4899]
[null,"4.5.2.2. ","в иных случаях, не связанных с заключением соглашений, предусмотренных в подпункте 4.5.2.1, всего",4900,"х","х","х","х","х","х","х","х"]
[null,"4.5.2.2.1.","…",4901]
[null,"…","…","…"]
[null,"4.5.2.2.99","…",4999]
[null,"5.                   ","Расходные обязательства, возникшие в результате принятия нормативных правовых актов сельского поселения, заключения договоров (соглашений), всего из них:",5000,"х","х","х","х","х","х","х","х",{"$f":"SUM(M469+M509+M552+M561)","v":59313.899999999994},58109.5,57756.69999999999,{"$f":"SUM(P469+P552+P561+P509)","v":56898},55818.2,57731.100000000006]
[null,"5.1.             ","Расходные обязательства, возникшие в результате принятия нормативных правовых актов сельского поселения, заключения договоров (соглашений) в рамках реализации вопросов местного значения сельского поселения, всего",5001,"х","х","х","х","х","х","х","х",{"$f":"SUM(M470:M508)","v":28525.200000000001},27704.1,22035.499999999996,20869.900000000001,21919.5,22753.4]
[null,"5.1.1.       ","составление и рассмотрение проекта бюджета сельского поселения, утверждение и исполнение бюджета сельского поселения, осуществление контроля за его исполнением, составление и утверждение отчета об исполнении бюджета сельского поселения",5002]
[null,"5.1.2.       ","установление, изменение и отмена местных налогов и сборов сельского поселения",5003]
[null,"5.1.3.       ","владение, пользование и распоряжение имуществом, находящимся в муниципальной собственности сельского поселения",5004,"\"Гражданский кодекс Российской Федерации (часть первая)\" от 30.11.1994 N 51-ФЗ\n(ред. от 03.07.2016)\n(с изм. и доп., вступ. в силу с 02.10.2016)\n","статья 215","30.11.1994         не ограничен",null,null,null,"01","13",{"$f":"SUM([1]Б.Рудка!M11+[1]Б.Устинск!M11+[1]Кушнур!M11+[1]Роженцово!M11+[1]Ст.Рудка!M11+[1]Черномуж!M11+[1]Щенники!M11)","v":151.80000000000001},{"$f":"SUM([1]Б.Рудка!N11+[1]Б.Устинск!N11+[1]Кушнур!N11+[1]Роженцово!N11+[1]Ст.Рудка!N11+[1]Черномуж!N11+[1]Щенники!N11)","v":151.80000000000001},{"$f":"SUM([1]Б.Рудка!O11+[1]Б.Устинск!O11+[1]Кушнур!O11+[1]Роженцово!O11+[1]Ст.Рудка!O11+[1]Черномуж!O11+[1]Щенники!O11)","v":8},{"$f":"SUM([1]Б.Рудка!P11+[1]Б.Устинск!P11+[1]Кушнур!P11+[1]Роженцово!P11+[1]Ст.Рудка!P11+[1]Черномуж!P11+[1]Щенники!P11)","v":0},{"$f":"SUM([1]Б.Рудка!Q11+[1]Б.Устинск!Q11+[1]Кушнур!Q11+[1]Роженцово!Q11+[1]Ст.Рудка!Q11+[1]Черномуж!Q11+[1]Щенники!Q11)","v":0},{"$f":"SUM([1]Б.Рудка!R11+[1]Б.Устинск!R11+[1]Кушнур!R11+[1]Роженцово!R11+[1]Ст.Рудка!R11+[1]Черномуж!R11+[1]Щенники!R11)","v":0}]
[null,"5.1.4.       ","обеспечение первичных мер пожарной безопасности в границах населенных пунктов сельского поселения",5005,"Федеральный закон от 21.12.1994 N 69-ФЗ(ред. от 23.06.2016)                \"О пожарной безопасности\"","статья 19","21.12.1994         не ограничен",null,null,null,"03              03","09                            10",{"$f":"SUM([1]Б.Рудка!M12+[1]Б.Устинск!M12+[1]Кушнур!M12+[1]Роженцово!M12+[1]Ст.Рудка!M12+[1]Черномуж!M12+[1]Щенники!M12)","v":7296.2},{"$f":"SUM([1]Б.Рудка!N12+[1]Б.Устинск!N12+[1]Кушнур!N12+[1]Роженцово!N12+[1]Ст.Рудка!N12+[1]Черномуж!N12+[1]Щенники!N12)","v":7267.3},{"$f":"SUM([1]Б.Рудка!O12+[1]Б.Устинск!O12+[1]Кушнур!O12+[1]Роженцово!O12+[1]Ст.Рудка!O12+[1]Черномуж!O12+[1]Щенники!O12)","v":7323.9},{"$f":"SUM([1]Б.Рудка!P12+[1]Б.Устинск!P12+[1]Кушнур!P12+[1]Роженцово!P12+[1]Ст.Рудка!P12+[1]Черномуж!P12+[1]Щенники!P12)","v":7740.7999999999993},{"$f":"SUM([1]Б.Рудка!Q12+[1]Б.Устинск!Q12+[1]Кушнур!Q12+[1]Роженцово!Q12+[1]Ст.Рудка!Q12+[1]Черномуж!Q12+[1]Щенники!Q12)","v":7733.6},{"$f":"SUM([1]Б.Рудка!R12+[1]Б.Устинск!R12+[1]Кушнур!R12+[1]Роженцово!R12+[1]Ст.Рудка!R12+[1]Черномуж!R12+[1]Щенники!R12)","v":7737.1}]
[null,"5.1.5.       ","создание условий для обеспечения жителей сельского поселения услугами связи, общественного питания, торговли и бытового обслуживания",5006]
[null,"5.1.6.       ","создание условий для организации досуга и обеспечения жителей сельского поселения услугами организаций культуры",5007]
[null,"5.1.7.       ","обеспечение условий для развития на территории сельского поселения физической культуры, школьного спорта и массового спорта, организация проведения официальных физкультурно-оздоровительных и спортивных мероприятий сельского поселения",5008,"Федеральный закон от 06.10.2003 N 131-ФЗ\n(ред. от 03.07.2016)\n\"Об общих принципах организации местного самоуправления в Российской Федерации\"\n","статья 14, п.14","06.10.2010         не ограничен",null,null,null,"11","02",{"$f":"SUM([1]Б.Рудка!M15+[1]Б.Устинск!M15+[1]Кушнур!M15+[1]Роженцово!M15+[1]Ст.Рудка!M15+[1]Черномуж!M15+[1]Щенники!M15)","v":3656.2999999999997},{"$f":"SUM([1]Б.Рудка!N15+[1]Б.Устинск!N15+[1]Кушнур!N15+[1]Роженцово!N15+[1]Ст.Рудка!N15+[1]Черномуж!N15+[1]Щенники!N15)","v":3647.4},{"$f":"SUM([1]Б.Рудка!O15+[1]Б.Устинск!O15+[1]Кушнур!O15+[1]Роженцово!O15+[1]Ст.Рудка!O15+[1]Черномуж!O15+[1]Щенники!O15)","v":1140.3},{"$f":"SUM([1]Б.Рудка!P15+[1]Б.Устинск!P15+[1]Кушнур!P15+[1]Роженцово!P15+[1]Ст.Рудка!P15+[1]Черномуж!P15+[1]Щенники!P15)","v":868.5},{"$f":"SUM([1]Б.Рудка!Q15+[1]Б.Устинск!Q15+[1]Кушнур!Q15+[1]Роженцово!Q15+[1]Ст.Рудка!Q15+[1]Черномуж!Q15+[1]Щенники!Q15)","v":861.5},{"$f":"SUM([1]Б.Рудка!R15+[1]Б.Устинск!R15+[1]Кушнур!R15+[1]Роженцово!R15+[1]Ст.Рудка!R15+[1]Черномуж!R15+[1]Щенники!R15)","v":865}]
[null,"5.1.8.       ","формирование архивных фондов сельского поселения",5009]
[null,"5.1.9.       ","утверждение правил благоустройства территории сельского поселения, устанавливающих в том числе требования по содержанию зданий (включая жилые дома), сооружений и земельных участков, на которых они расположены, к внешнему виду фасадов и ограждений соответствующих зданий и сооружений, перечень работ по благоустройству и периодичность их выполнения; установление порядка участия собственников зданий (помещений в них) и сооружений в благоустройстве прилегающих территорий; организация благоустройства территории сельского поселения (включая освещение улиц, озеленение территории, установку указателей с наименованиями улиц и номерами домов, размещение и содержание малых архитектурных форм)",5010,"Федеральный закон от 06.10.2003 N 131-ФЗ\n(ред. от 03.07.2016)\n\"Об общих принципах организации местного самоуправления в Российской Федерации\"\n","статья 14, п.19","06.10.2010         не ограничен",null,null,null,"05         04","03          01",{"$f":"SUM([1]Б.Рудка!M17+[1]Б.Устинск!M17+[1]Кушнур!M17+[1]Роженцово!M17+[1]Ст.Рудка!M17+[1]Черномуж!M17+[1]Щенники!M17)","v":6782.6},{"$f":"SUM([1]Б.Рудка!N17+[1]Б.Устинск!N17+[1]Кушнур!N17+[1]Роженцово!N17+[1]Ст.Рудка!N17+[1]Черномуж!N17+[1]Щенники!N17)","v":6661},{"$f":"SUM([1]Б.Рудка!O17+[1]Б.Устинск!O17+[1]Кушнур!O17+[1]Роженцово!O17+[1]Ст.Рудка!O17+[1]Черномуж!O17+[1]Щенники!O17)","v":4918.2},{"$f":"SUM([1]Б.Рудка!P17+[1]Б.Устинск!P17+[1]Кушнур!P17+[1]Роженцово!P17+[1]Ст.Рудка!P17+[1]Черномуж!P17+[1]Щенники!P17)","v":3386.3999999999996},{"$f":"SUM([1]Б.Рудка!Q17+[1]Б.Устинск!Q17+[1]Кушнур!Q17+[1]Роженцово!Q17+[1]Ст.Рудка!Q17+[1]Черномуж!Q17+[1]Щенники!Q17)","v":2568.6999999999998},{"$f":"SUM([1]Б.Рудка!R17+[1]Б.Устинск!R17+[1]Кушнур!R17+[1]Роженцово!R17+[1]Ст.Рудка!R17+[1]Черномуж!R17+[1]Щенники!R17)","v":2979.6}]
[null,"5.1.10.   ","присвоение адресов объектам адресации, изменение, аннулирование адресов, присвоение наименований элементам улично-дорожной сети (за исключением автомобильных дорог федерального значения, автомобильных дорог регионального или межмуниципального значения, местного значения муниципального района), наименований элементам планировочной структуры в границах сельского поселения, изменение, аннулирование таких наименований, размещение информации в государственном адресном реестре",5011]
[null,"5.1.11.   ","содействие в развитии сельскохозяйственного производства, создание условий для развития малого и среднего предпринимательства на территории сельского поселения",5012]
[null,"5.1.12.   ","организация и осуществление мероприятий по работе с детьми и молодежью в сельском поселении",5013]
[null,"5.1.13.   ","оказание поддержки гражданам и их объединениям, участвующим в охране общественного порядка, создание условий для деятельности народных дружин на территории сельского поселения",5014]
[null,"5.1.14.   ","организация в границах сельского поселения электро-, тепло-, газо- и водоснабжения населения, водоотведения, снабжения населения топливом в пределах полномочий, установленных законодательством Российской Федерации",5015,"Федеральный закон от 06.10.2003 N 131-ФЗ\n(ред. от 03.07.2016)\n\"Об общих принципах организации местного самоуправления в Российской Федерации\"\n","статья 14, п.1,п.п.4","06.10.2010         не ограничен",null,null,null,"05","02",{"$f":"SUM([1]Б.Рудка!M22+[1]Б.Устинск!M22+[1]Кушнур!M22+[1]Роженцово!M22+[1]Ст.Рудка!M22+[1]Черномуж!M22+[1]Щенники!M22)","v":40},{"$f":"SUM([1]Б.Рудка!N22+[1]Б.Устинск!N22+[1]Кушнур!N22+[1]Роженцово!N22+[1]Ст.Рудка!N22+[1]Черномуж!N22+[1]Щенники!N22)","v":40},{"$f":"SUM([1]Б.Рудка!O22+[1]Б.Устинск!O22+[1]Кушнур!O22+[1]Роженцово!O22+[1]Ст.Рудка!O22+[1]Черномуж!O22+[1]Щенники!O22)","v":0},{"$f":"SUM([1]Б.Рудка!P22+[1]Б.Устинск!P22+[1]Кушнур!P22+[1]Роженцово!P22+[1]Ст.Рудка!P22+[1]Черномуж!P22+[1]Щенники!P22)","v":0},{"$f":"SUM([1]Б.Рудка!Q22+[1]Б.Устинск!Q22+[1]Кушнур!Q22+[1]Роженцово!Q22+[1]Ст.Рудка!Q22+[1]Черномуж!Q22+[1]Щенники!Q22)","v":0},{"$f":"SUM([1]Б.Рудка!R22+[1]Б.Устинск!R22+[1]Кушнур!R22+[1]Роженцово!R22+[1]Ст.Рудка!R22+[1]Черномуж!R22+[1]Щенники!R22)","v":0}]
[null,"5.1.15.   ","дорожная деятельность в отношении автомобильных дорог местного значения в границах населенных пунктов сельского поселения и обеспечение безопасности дорожного движения на них, включая создание и обеспечение функционирования парковок (парковочных мест), осуществление муниципального контроля за сохранностью автомобильных дорог местного значения в границах населенных пунктов сельского поселения, а также осуществление иных полномочий в области использования автомобильных дорог и осуществления дорожной деятельности в соответствии с законодательством Российской Федерации",5016,"Федеральный закон от 08.11.2007 N 257-ФЗ\n(ред. от 03.07.2016)\n\"Об автомобильных дорогах и о дорожной деятельности в Российской Федерации и о внесении изменений в отдельные законодательные акты Российской Федерации\"\n(с изм. и доп., вступ. в силу с 15.11.2016)\n","статья 19","08.11.2007         не ограничен",null,null,null,"04","09",{"$f":"SUM([1]Б.Рудка!M23+[1]Б.Устинск!M23+[1]Кушнур!M23+[1]Роженцово!M23+[1]Ст.Рудка!M23+[1]Черномуж!M23+[1]Щенники!M23)","v":10134.1},{"$f":"SUM([1]Б.Рудка!N23+[1]Б.Устинск!N23+[1]Кушнур!N23+[1]Роженцово!N23+[1]Ст.Рудка!N23+[1]Черномуж!N23+[1]Щенники!N23)","v":9547.5999999999985},{"$f":"SUM([1]Б.Рудка!O23+[1]Б.Устинск!O23+[1]Кушнур!O23+[1]Роженцово!O23+[1]Ст.Рудка!O23+[1]Черномуж!O23+[1]Щенники!O23)","v":7890.0999999999995},{"$f":"SUM([1]Б.Рудка!P23+[1]Б.Устинск!P23+[1]Кушнур!P23+[1]Роженцово!P23+[1]Ст.Рудка!P23+[1]Черномуж!P23+[1]Щенники!P23)","v":8517.3000000000011},{"$f":"SUM([1]Б.Рудка!Q23+[1]Б.Устинск!Q23+[1]Кушнур!Q23+[1]Роженцово!Q23+[1]Ст.Рудка!Q23+[1]Черномуж!Q23+[1]Щенники!Q23)","v":10398.799999999999},{"$f":"SUM([1]Б.Рудка!R23+[1]Б.Устинск!R23+[1]Кушнур!R23+[1]Роженцово!R23+[1]Ст.Рудка!R23+[1]Черномуж!R23+[1]Щенники!R23)","v":10814.8}]
[null,"5.1.16.   ","обеспечение проживающих в сельском поселении и нуждающихся в жилых помещениях малоимущих граждан жилыми помещениями, организация строительства и содержания муниципального жилищного фонда, создание условий для жилищного строительства, осуществление муниципального жилищного контроля, а также иных полномочий органов местного самоуправления в соответствии с жилищным законодательством",5017,"Федеральный закон от 06.10.2003 N 131-ФЗ\n(ред. от 03.07.2016)\n\"Об общих принципах организации местного самоуправления в Российской Федерации\"\n","статья 14, п.6, ч.1","06.10.2010         не ограничен",null,null,null,"05","01",{"$f":"SUM([1]Б.Рудка!M24+[1]Б.Устинск!M24+[1]Кушнур!M24+[1]Роженцово!M24+[1]Ст.Рудка!M24+[1]Черномуж!M24+[1]Щенники!M24)","v":289.5},{"$f":"SUM([1]Б.Рудка!N24+[1]Б.Устинск!N24+[1]Кушнур!N24+[1]Роженцово!N24+[1]Ст.Рудка!N24+[1]Черномуж!N24+[1]Щенники!N24)","v":214.3},{"$f":"SUM([1]Б.Рудка!O24+[1]Б.Устинск!O24+[1]Кушнур!O24+[1]Роженцово!O24+[1]Ст.Рудка!O24+[1]Черномуж!O24+[1]Щенники!O24)","v":644.5},{"$f":"SUM([1]Б.Рудка!P24+[1]Б.Устинск!P24+[1]Кушнур!P24+[1]Роженцово!P24+[1]Ст.Рудка!P24+[1]Черномуж!P24+[1]Щенники!P24)","v":310.90000000000003},{"$f":"SUM([1]Б.Рудка!Q24+[1]Б.Устинск!Q24+[1]Кушнур!Q24+[1]Роженцово!Q24+[1]Ст.Рудка!Q24+[1]Черномуж!Q24+[1]Щенники!Q24)","v":310.90000000000003},{"$f":"SUM([1]Б.Рудка!R24+[1]Б.Устинск!R24+[1]Кушнур!R24+[1]Роженцово!R24+[1]Ст.Рудка!R24+[1]Черномуж!R24+[1]Щенники!R24)","v":310.90000000000003}]
[null,"5.1.17.   ","создание условий для предоставления транспортных услуг населению и организация транспортного обслуживания населения в границах сельского поселения",5018]
[null,"5.1.18.   ","участие в профилактике терроризма и экстремизма, а также в минимизации и (или) ликвидации последствий проявлений терроризма и экстремизма в границах сельского поселения",5019]
[null,"5.1.19.   ","создание условий для реализации мер, направленных на укрепление межнационального и межконфессионального согласия, сохранение и развитие языков и культуры народов Российской Федерации, проживающих на территории сельского поселения, социальную и культурную адаптацию мигрантов, профилактику межнациональных (межэтнических) конфликтов",5020]
[null,"5.1.20.   ","участие в предупреждении и ликвидации последствий чрезвычайных ситуаций в границах сельского поселения",5021]
[null,"5.1.21.   ","организация библиотечного обслуживания населения, комплектование и обеспечение сохранности библиотечных фондов библиотек сельского поселения",5022]
[null,"5.1.22.   ","сохранение, использование и популяризация объектов культурного наследия (памятников истории и культуры), находящихся в собственности сельского поселения, охрана объектов культурного наследия (памятников истории и культуры) местного (муниципального) значения, расположенных на территории сельского поселения",5023]
[null,"5.1.23.   ","создание условий для развития местного традиционного народного художественного творчества, участие в сохранении, возрождении и развитии народных художественных промыслов в сельского поселении",5024]
[null,"5.1.24.   ","создание условий для массового отдыха жителей сельского поселения и организация обустройства мест массового отдыха населения, включая обеспечение свободного доступа граждан к водным объектам общего пользования и их береговым полосам",5025,"Закона Российской Федерации от 9 октября 1992 года N 3612-1 \"Основы законодательства Российской Федерации о культуре\"\n","статья 40","09.10.1992         не ограничен",null,null,null,"             10","                              06",{"$f":"SUM([1]Б.Рудка!M32+[1]Б.Устинск!M32+[1]Кушнур!M32+[1]Роженцово!M32+[1]Ст.Рудка!M32+[1]Черномуж!M32+[1]Щенники!M32)","v":94.7},{"$f":"SUM([1]Б.Рудка!N32+[1]Б.Устинск!N32+[1]Кушнур!N32+[1]Роженцово!N32+[1]Ст.Рудка!N32+[1]Черномуж!N32+[1]Щенники!N32)","v":94.7},{"$f":"SUM([1]Б.Рудка!O32+[1]Б.Устинск!O32+[1]Кушнур!O32+[1]Роженцово!O32+[1]Ст.Рудка!O32+[1]Черномуж!O32+[1]Щенники!O32)","v":110.5},{"$f":"SUM([1]Б.Рудка!P32+[1]Б.Устинск!P32+[1]Кушнур!P32+[1]Роженцово!P32+[1]Ст.Рудка!P32+[1]Черномуж!P32+[1]Щенники!P32)","v":46},{"$f":"SUM([1]Б.Рудка!Q32+[1]Б.Устинск!Q32+[1]Кушнур!Q32+[1]Роженцово!Q32+[1]Ст.Рудка!Q32+[1]Черномуж!Q32+[1]Щенники!Q32)","v":46},{"$f":"SUM([1]Б.Рудка!R32+[1]Б.Устинск!R32+[1]Кушнур!R32+[1]Роженцово!R32+[1]Ст.Рудка!R32+[1]Черномуж!R32+[1]Щенники!R32)","v":46}]
[null,"5.1.25.   ","участие в организации деятельности по сбору (в том числе раздельному сбору) и транспортированию твердых коммунальных отходов",5026]
[null,"5.1.26.   ","утверждение генеральных планов сельского поселения, правил землепользования и застройки, утверждение подготовленной на основе генеральных планов сельского поселения документации по планировке территории, выдача разрешений на строительство (за исключением случаев, предусмотренных Градостроительным кодексом Российской Федерации, иными федеральными законами), разрешений на ввод объектов в эксплуатацию при осуществлении строительства, реконструкции объектов капитального строительства, расположенных на территории сельского поселения, утверждение местных нормативов градостроительного проектирования сельского поселений, резервирование земель и изъятие земельных участков в границах сельского поселения для муниципальных нужд, осуществление муниципального земельного контроля в границах сельского поселения, осуществление в случаях, предусмотренных Градостроительным кодексом Российской Федерации, осмотров зданий, сооружений и выдача рекомендаций об устранении выявленных в ходе таких осмотров нарушений",5027,"\"Градостроительный кодекс Российской Федерации\" от 29.12.2004 N 190-ФЗ\n(ред. от 03.07.2016)\n(с изм. и доп., вступ. в силу с 01.09.2016)\n","статья 14, п.22","29.12.2004         не ограничен",null,null,null,"04","12",{"$f":"SUM([1]Б.Рудка!M34+[1]Б.Устинск!M34+[1]Кушнур!M34+[1]Роженцово!M34+[1]Ст.Рудка!M34+[1]Черномуж!M34+[1]Щенники!M34)","v":80},{"$f":"SUM([1]Б.Рудка!N34+[1]Б.Устинск!N34+[1]Кушнур!N34+[1]Роженцово!N34+[1]Ст.Рудка!N34+[1]Черномуж!N34+[1]Щенники!N34)","v":80},{"$f":"SUM([1]Б.Рудка!O34+[1]Б.Устинск!O34+[1]Кушнур!O34+[1]Роженцово!O34+[1]Ст.Рудка!O34+[1]Черномуж!O34+[1]Щенники!O34)","v":0},{"$f":"SUM([1]Б.Рудка!P34+[1]Б.Устинск!P34+[1]Кушнур!P34+[1]Роженцово!P34+[1]Ст.Рудка!P34+[1]Черномуж!P34+[1]Щенники!P34)","v":0},{"$f":"SUM([1]Б.Рудка!Q34+[1]Б.Устинск!Q34+[1]Кушнур!Q34+[1]Роженцово!Q34+[1]Ст.Рудка!Q34+[1]Черномуж!Q34+[1]Щенники!Q34)","v":0},{"$f":"SUM([1]Б.Рудка!R34+[1]Б.Устинск!R34+[1]Кушнур!R34+[1]Роженцово!R34+[1]Ст.Рудка!R34+[1]Черномуж!R34+[1]Щенники!R34)","v":0}]
[null,"5.1.27.   ","организация ритуальных услуг и содержание мест захоронения",5028,"Федеральный закон от 06.10.2003 N 131-ФЗ\n(ред. от 03.07.2016)\n\"Об общих принципах организации местного самоуправления в Российской Федерации\"\n","статья 18, п.6","06.10.2010         не ограничен",null,null,null,"05","03",{"$f":"SUM([1]Б.Рудка!M35+[1]Б.Устинск!M35+[1]Кушнур!M35+[1]Роженцово!M35+[1]Ст.Рудка!M35+[1]Черномуж!M35+[1]Щенники!M35)","v":0},{"$f":"SUM([1]Б.Рудка!N35+[1]Б.Устинск!N35+[1]Кушнур!N35+[1]Роженцово!N35+[1]Ст.Рудка!N35+[1]Черномуж!N35+[1]Щенники!N35)","v":0},{"$f":"SUM([1]Б.Рудка!O35+[1]Б.Устинск!O35+[1]Кушнур!O35+[1]Роженцово!O35+[1]Ст.Рудка!O35+[1]Черномуж!O35+[1]Щенники!O35)","v":0},{"$f":"SUM([1]Б.Рудка!P35+[1]Б.Устинск!P35+[1]Кушнур!P35+[1]Роженцово!P35+[1]Ст.Рудка!P35+[1]Черномуж!P35+[1]Щенники!P35)","v":0},{"$f":"SUM([1]Б.Рудка!Q35+[1]Б.Устинск!Q35+[1]Кушнур!Q35+[1]Роженцово!Q35+[1]Ст.Рудка!Q35+[1]Черномуж!Q35+[1]Щенники!Q35)","v":0},{"$f":"SUM([1]Б.Рудка!R35+[1]Б.Устинск!R35+[1]Кушнур!R35+[1]Роженцово!R35+[1]Ст.Рудка!R35+[1]Черномуж!R35+[1]Щенники!R35)","v":0}]
[null,"5.1.28.   ","организация и осуществление мероприятий по территориальной обороне и гражданской обороне, защите населения и территории сельского поселения от чрезвычайных ситуаций природного и техногенного характера",5029]
[null,"5.1.29.   ","создание, содержание и организация деятельности аварийно-спасательных служб и (или) аварийно-спасательных формирований на территории сельского поселения",5030]
[null,"5.1.30.   ","осуществление мероприятий по обеспечению безопасности людей на водных объектах, охране их жизни и здоровья",5031]
[null,"5.1.31.   ","создание, развитие и обеспечение охраны лечебно-оздоровительных местностей и курортов местного значения на территории сельского поселения, а также осуществление муниципального контроля в области использования и охраны особо охраняемых природных территорий местного значения",5032]
[null,"5.1.32.   ","осуществление в пределах, установленных водным законодательством Российской Федерации, полномочий собственника водных объектов, информирование населения об ограничениях их использования",5033]
[null,"5.1.33.   ","осуществление муниципального лесного контроля",5034]
[null,"5.1.34.   ","предоставление помещения для работы на обслуживаемом административном участке сельского поселения сотруднику, замещающему должность участкового уполномоченного полиции",5035]
[null,"5.1.35.   ","до 1 января 2017 года предоставление сотруднику, замещающему должность участкового уполномоченного полиции, и членам его семьи жилого помещения на период выполнения сотрудником обязанностей по указанной должности",5036]
[null,"5.1.36.   ","оказание поддержки социально ориентированным некоммерческим организациям в пределах полномочий, установленных статьями 31.1 и 31.3 Федерального закона от 12 января 1996 года № 7-ФЗ «О некоммерческих организациях»",5037]
[null,"5.1.37.   ","обеспечение выполнения работ, необходимых для создания искусственных земельных участков для нужд сельского поселения, проведение открытого аукциона на право заключить договор о создании искусственного земельного участка в соответствии с федеральным законом",5038]
[null,"5.1.38.   ","осуществление мер по противодействию коррупции в границах сельского поселения",5039]
[null,"5.1.39.   ","участие в соответствии с Федеральным законом от 24 июля 2007 года № 221-ФЗ «О государственном кадастре недвижимости» в выполнении комплексных кадастровых работ",5040]
[null,"5.2.             ","Расходные обязательства, возникшие в результате принятия нормативных правовых актов сельского поселения, заключения договоров (соглашений) в рамках реализации полномочий органов местного самоуправления сельского поселения по решению вопросов местного значения сельского поселения, всего",5100,"х","х","х","х","х","х","х","х",{"$f":"SUM(M510:M528)","v":11880.9},11497.599999999999,13467.599999999999,11743.099999999999,11635,11683.800000000001]
[null,"5.2.1.       ","функционирование органов местного самоуправления",5101,"Федеральный закон от 02.03.2007 N 25-ФЗ\n\"О муниципальной службе в Российской Федерации\", \"Бюджетный кодекс Российской Федерации\" от 31.07.1998 N 145-ФЗ\n(ред. от 03.07.2016)\n(с изм. и доп., вступ. в силу с 01.09.2016)\n","ст.96,9","02.03.2007           не ограничен ","Закон Нижегородской области от 03.08.2007 № 99-З \" О муниципальной службе в Нижегородской области\" ","ст.25","2007-08-03","01             01","04                 13",{"$f":"SUM([1]Б.Рудка!M49+[1]Б.Устинск!M49+[1]Кушнур!M49+[1]Роженцово!M49+[1]Ст.Рудка!M49+[1]Черномуж!M49+[1]Щенники!M49)","v":11880.9},{"$f":"SUM([1]Б.Рудка!N49+[1]Б.Устинск!N49+[1]Кушнур!N49+[1]Роженцово!N49+[1]Ст.Рудка!N49+[1]Черномуж!N49+[1]Щенники!N49)","v":11497.599999999999},{"$f":"SUM([1]Б.Рудка!O49+[1]Б.Устинск!O49+[1]Кушнур!O49+[1]Роженцово!O49+[1]Ст.Рудка!O49+[1]Черномуж!O49+[1]Щенники!O49)","v":13467.599999999999},{"$f":"SUM([1]Б.Рудка!P49+[1]Б.Устинск!P49+[1]Кушнур!P49+[1]Роженцово!P49+[1]Ст.Рудка!P49+[1]Черномуж!P49+[1]Щенники!P49)","v":11743.099999999999},{"$f":"SUM([1]Б.Рудка!Q49+[1]Б.Устинск!Q49+[1]Кушнур!Q49+[1]Роженцово!Q49+[1]Ст.Рудка!Q49+[1]Черномуж!Q49+[1]Щенники!Q49)","v":11635},{"$f":"SUM([1]Б.Рудка!R49+[1]Б.Устинск!R49+[1]Кушнур!R49+[1]Роженцово!R49+[1]Ст.Рудка!R49+[1]Черномуж!R49+[1]Щенники!R49)","v":11683.800000000001}]
[null,"5.2.2.       ","финансирование муниципальных учреждений",5102]
[null,"5.2.3.       ","принятие устава муниципального образования и внесение в него изменений и дополнений, издание муниципальных правовых актов",5103]
[null,"5.2.4.       ","установление официальных символов муниципального образования",5104]
[null,"5.2.5.       ","создание муниципальных предприятий и учреждений, осуществление финансового обеспечения деятельности муниципальных казенных учреждений и финансового обеспечения выполнения муниципального задания бюджетными и автономными муниципальными учреждениями, а также осуществление закупок товаров, работ, услуг для обеспечения муниципальных нужд",5105]
[null,"5.2.6.       ","установление тарифов на услуги, предоставляемые муниципальными предприятиями и учреждениями, и работы, выполняемые муниципальными предприятиями и учреждениями, если иное не предусмотрено федеральными законами",5106]
[null,"5.2.7.       ","регулирование тарифов на подключение к системе коммунальной инфраструктуры, тарифов организаций коммунального комплекса на подключение, надбавок к тарифам на товары и услуги организаций коммунального комплекса, надбавок к ценам (тарифам) для потребителей.",5107]
[null,"5.2.8.       ","полномочиями по организации теплоснабжения, предусмотренными Федеральным законом «О теплоснабжении»",5108]
[null,"5.2.9.       ","полномочиями в сфере водоснабжения и водоотведения, предусмотренными Федеральным законом «О водоснабжении и водоотведении»",5109]
[null,"5.2.10.   ","организационное и материально-техническое обеспечение подготовки и проведения муниципальных выборов, местного референдума, голосования по отзыву депутата, члена выборного органа местного самоуправления, выборного должностного лица местного самоуправления, голосования по вопросам изменения границ муниципального образования, преобразования муниципального образования",5110]
[null,"5.2.11.   ","принятие и организация выполнения планов и программ комплексного социально-экономического развития муниципального образования, а также организация сбора статистических показателей, характеризующих состояние экономики и социальной сферы муниципального образования, и предоставление указанных данных органам государственной власти в порядке, установленном Правительством Российской Федерации",5111]
[null,"5.2.12.   ","разработка и утверждение программ комплексного развития систем коммунальной инфраструктуры поселений, городских округов, программ комплексного развития транспортной инфраструктуры поселений, городских округов, программ комплексного развития социальной инфраструктуры поселений, городских округов, требования к которым устанавливаются Правительством Российской Федерации",5112]
[null,"5.2.13.   ","учреждение печатного средства массовой информации для опубликования муниципальных правовых актов, обсуждения проектов муниципальных правовых актов по вопросам местного значения, доведения до сведения жителей муниципального образования официальной информации о социально-экономическом и культурном развитии муниципального образования, о развитии его общественной инфраструктуры и иной официальной информации",5113]
[null,"5.2.14.   ","осуществление международных и внешнеэкономических связей в соответствии с федеральными законами",5114]
[null,"5.2.15.   ","организация профессионального образования и дополнительного профессионального образования выборных должностных лиц местного самоуправления, членов выборных органов местного самоуправления, депутатов представительных органов муниципальных образований, муниципальных служащих и работников муниципальных учреждений, организация подготовки кадров для муниципальной службы в порядке, предусмотренном законодательством Российской Федерации об образовании и законодательством Российской Федерации о муниципальной службе",5115]
[null,"5.2.16.   ","утверждение и реализация муниципальных программ в области энергосбережения и повышения энергетической эффективности, организация проведения энергетического обследования многоквартирных домов, помещения в которых составляют муниципальный жилищный фонд в границах муниципального образования, организация и проведение иных мероприятий, предусмотренных законодательством об энергосбережении и о повышении энергетической эффективности",5116]
[null,"5.2.17.   ","…",5117]
[null,"…","…","…"]
[null,"5.2.99.","…",5199]
[null,"5.3.             ","Расходные обязательства, возникшие в результате принятия нормативных правовых актов сельского поселения, заключения договоров (соглашений) в рамках реализации органами местного самоуправления сельского поселения прав на решение вопросов, не отнесенных к вопросам местного значения сельского поселения, всего",5200,"х","х","х","х","х","х","х","х"]
[null,"5.3.1.       ","по перечню, предусмотренному Федеральным законом от 06.10.2003 № 131-ФЗ «Об общих принципах организации местного самоуправления в Российской Федерации»,  всего",5201,"х","х","х","х","х","х","х","х"]
[null,"5.3.1.1.    ","создание музеев сельского поселения",5202]
[null,"5.3.1.2. ","совершение нотариальных действий, предусмотренных законодательством, в случае отсутствия в сельском поселении нотариуса",5203]
[null,"5.3.1.3.  ","участие в осуществлении деятельности по опеке и попечительству",5204]
[null,"5.3.1.4.                        ","создание условий для осуществления деятельности, связанной с реализацией прав местных национально-культурных автономий на территории сельского поселения",5205]
[null,"5.3.1.5.                        ","оказание содействия национально-культурному развитию народов Российской Федерации и реализации мероприятий в сфере межнациональных отношений на территории сельского поселения",5206]
[null,"5.3.1.6.                        ","участие в организации и осуществлении мероприятий по мобилизационной подготовке муниципальных предприятий и учреждений, находящихся на территории сельского поселения",5207]
[null,"5.3.1.7.","создание муниципальной пожарной охраны",5208]
[null,"5.3.1.8.   ","создание условий для развития туризма",5209]
[null,"5.3.1.9.                        ","оказание поддержки общественным наблюдательным комиссиям, осуществляющим общественный контроль за обеспечением прав человека и содействие лицам, находящимся в местах принудительного содержания",5210]
[null,"5.3.1.10.                    ","оказание поддержки общественным объединениям инвалидов, а также созданным общероссийскими общественными объединениями инвалидов организациям в соответствии с Федеральным законом от 24 ноября 1995 года № 181-ФЗ «О социальной защите инвалидов в Российской Федерации»",5211]
[null,"5.3.1.11.                    ","создание условий для организации проведения независимой оценки качества оказания услуг организациями в порядке и на условиях, которые установлены федеральными законами",5212]
[null,"5.3.1.12.                    ","предоставление гражданам жилых помещений муниципального жилищного фонда по договорам найма жилых помещений жилищного фонда социального использования в соответствии с жилищным законодательством",5213]
[null,"5.3.1.13.                    ","осуществление мероприятий по отлову и содержанию безнадзорных животных, обитающих на территории сельского поселения",5214]
[null,"5.3.2.       ","по участию в осуществлении государственных полномочий (не переданных в соответствии со статьей 19 Федерального закона от 06.10.2003 № 131-ФЗ «Об общих принципах организации местного самоуправления в Российской Федерации»), если это участие предусмотрено федеральными законами, всего",5300,"х","х","х","х","х","х","х","х"]
[null,"5.3.2.1. ","…",5301]
[null,"…","…","…"]
[null,"5.3.2.99.","…",5399]
[null,"5.3.3.       ","по реализации вопросов, не отнесенных к компетенции органов местного самоуправления других муниципальных образований, органов государственной власти и не исключенных из их компетенции федеральными законами и законами субъектов Российской Федерации, всего",5400,"х","х","х","х","х","х","х","х"]
[null,"5.3.3.1.  ","…",5401]
[null,"…","…","…"]
[null,"5.3.3.99.","…",5499]
[null,"5.4.             ","Расходные обязательства, возникшие в результате принятия нормативных правовых актов сельского поселения, заключения договоров (соглашений) в рамках реализации органами местного самоуправления сельского поселения отдельных государственных полномочий, переданных органами государственной власти Российской Федерации и (или) органами государственной власти субъекта Российской Федерации, всего",5500,"х","х","х","х","х","х","х","х",{"$f":"SUM(M553)","v":488},{"$f":"SUM(N553)","v":488},524.6,473.4,479.49999999999994,502.8]
[null,"5.4.1.       ","за счет субвенций, предоставленных из федерального бюджета или бюджета субъекта Российской Федерации, всего",5501,"х","х","х","х","х","х","х","х",{"$f":"SUM(M554)","v":488},488,524.6,473.4,479.49999999999994,502.8]
[null,"5.4.1.1.                        ","Субвенции на обеспечение поселений, входящих в состав муниципальных районов Нижегородской области, субвенциями из областного фонда компенсаций на осуществление государственных полномочий Российской Федерации по первичному воинскому учету на территориях, где отсутствуют военные комиссариаты  ",5502,null,null,null,"Закон Нижегородской области от 17.12.2012                N 164-З (ред. от 18.12.2013) Об областном бюджете на 2013 год(принят постановлением ЗС НО от 06.12.2012 N 735-V)","ст.18 п.2","01.01.2013         не ограничен","02","03",{"$f":"SUM([1]Б.Рудка!M93+[1]Б.Устинск!M93+[1]Кушнур!M93+[1]Роженцово!M93+[1]Ст.Рудка!M93+[1]Черномуж!M93+[1]Щенники!M93)","v":488},{"$f":"SUM([1]Б.Рудка!N93+[1]Б.Устинск!N93+[1]Кушнур!N93+[1]Роженцово!N93+[1]Ст.Рудка!N93+[1]Черномуж!N93+[1]Щенники!N93)","v":488},{"$f":"SUM([1]Б.Рудка!O93+[1]Б.Устинск!O93+[1]Кушнур!O93+[1]Роженцово!O93+[1]Ст.Рудка!O93+[1]Черномуж!O93+[1]Щенники!O93)","v":524.6},{"$f":"SUM([1]Б.Рудка!P93+[1]Б.Устинск!P93+[1]Кушнур!P93+[1]Роженцово!P93+[1]Ст.Рудка!P93+[1]Черномуж!P93+[1]Щенники!P93)","v":473.4},{"$f":"SUM([1]Б.Рудка!Q93+[1]Б.Устинск!Q93+[1]Кушнур!Q93+[1]Роженцово!Q93+[1]Ст.Рудка!Q93+[1]Черномуж!Q93+[1]Щенники!Q93)","v":479.49999999999994},{"$f":"SUM([1]Б.Рудка!R93+[1]Б.Устинск!R93+[1]Кушнур!R93+[1]Роженцово!R93+[1]Ст.Рудка!R93+[1]Черномуж!R93+[1]Щенники!R93)","v":502.8}]
[null,"…","…","…"]
[null,"5.4.1.98.","…",5599]
[null,"5.4.2.       ","за счет собственных доходов и источников финансирования дефицита бюджета сельского поселения, всего",5600,"х","х","х","х","х","х","х","х"]
[null,"5.4.2.1.  ","…",5601]
[null,"…","…","…"]
[null,"5.4.2.99.","…",5699]
[null,"5.5.             ","Расходные обязательства, возникшие в результате принятия нормативных правовых актов сельского поселения, заключения соглашений, предусматривающих предоставление межбюджетных трансфертов из бюджета сельского поселения другим бюджетам бюджетной системы Российской Федерации, всего",5700,"х","х","х","х","х","х","х","х",{"$f":"SUM(M568)","v":18419.8},18419.8,21729,23811.599999999999,21784.199999999997,22791.1]
[null,"5.5.1.       ","по предоставлению субсидий, всего",5701,"х","х","х","х","х","х","х","х"]
[null,"5.5.1.1.   ","в бюджет субъекта Российской Федерации, всего",5702]
[null,"5.5.1.2.  ","в бюджет муниципального района на решение вопросов местного значения межмуниципального характера, всего",5703,"х","х","х","х","х","х","х","х"]
[null,"5.5.1.2.1.  ","…",5704]
[null,"…","…","…"]
[null,"5.5.1.2.96.","…",5799]
[null,"5.5.2.       ","по предоставлению иных межбюджетных трансфертов, всего",5800,"х","х","х","х","х","х","х","х",{"$f":"SUM(M569)","v":18419.8},18419.8,21729,23811.599999999999,21784.199999999997,22791.1]
[null,"5.5.2.1.                        ","в бюджет муниципального района в случае заключения соглашения с органами местного самоуправления муниципального района, в состав которого входит сельское поселение, о передаче им осуществления части своих полномочий по решению вопросов местного значения, всего",5801,"х","х","х","х","х","х","х","х",{"$f":"SUM(M570:M571)","v":18419.8},18419.8,21729,23811.599999999999,21784.199999999997,22791.1]
[null,"5.5.2.1.1. ","в бюджет муниципального района в случае заключения соглашения с органами местного самоуправления муниципального района, в состав которого входит сельское поселение, о передаче им осуществления части своих полномочий по решению вопросов местного значения",5802,"Федеральный закон от 06.10.2003 N 131-ФЗ\n\"Об общих принципах организации местного самоуправления в Российской Федерации\"\n","ст.15 п.4 ","06.10.2003          не ограничен",null,null,null,"08","01",{"$f":"SUM([1]Б.Рудка!M109+[1]Б.Устинск!M109+[1]Кушнур!M109+[1]Роженцово!M109+[1]Ст.Рудка!M109+[1]Черномуж!M109+[1]Щенники!M109)","v":18408.599999999999},{"$f":"SUM([1]Б.Рудка!N109+[1]Б.Устинск!N109+[1]Кушнур!N109+[1]Роженцово!N109+[1]Ст.Рудка!N109+[1]Черномуж!N109+[1]Щенники!N109)","v":18408.599999999999},{"$f":"SUM([1]Б.Рудка!O109+[1]Б.Устинск!O109+[1]Кушнур!O109+[1]Роженцово!O109+[1]Ст.Рудка!O109+[1]Черномуж!O109+[1]Щенники!O109)","v":21729},{"$f":"SUM([1]Б.Рудка!P109+[1]Б.Устинск!P109+[1]Кушнур!P109+[1]Роженцово!P109+[1]Ст.Рудка!P109+[1]Черномуж!P109+[1]Щенники!P109)","v":23811.599999999999},{"$f":"SUM([1]Б.Рудка!Q109+[1]Б.Устинск!Q109+[1]Кушнур!Q109+[1]Роженцово!Q109+[1]Ст.Рудка!Q109+[1]Черномуж!Q109+[1]Щенники!Q109)","v":21784.199999999997},{"$f":"SUM([1]Б.Рудка!R109+[1]Б.Устинск!R109+[1]Кушнур!R109+[1]Роженцово!R109+[1]Ст.Рудка!R109+[1]Черномуж!R109+[1]Щенники!R109)","v":22791.1}]
[null,"5.5.2.1.98.","Отрицательные трансферты",5899,{"$nulls":6},"14","03",{"$f":"SUM([1]Б.Рудка!M110+[1]Б.Устинск!M110+[1]Кушнур!M110+[1]Роженцово!M110+[1]Ст.Рудка!M110+[1]Черномуж!M110+[1]Щенники!M110)","v":11.2},{"$f":"SUM([1]Б.Рудка!N110+[1]Б.Устинск!N110+[1]Кушнур!N110+[1]Роженцово!N110+[1]Ст.Рудка!N110+[1]Черномуж!N110+[1]Щенники!N110)","v":11.2},{"$f":"SUM([1]Б.Рудка!O110+[1]Б.Устинск!O110+[1]Кушнур!O110+[1]Роженцово!O110+[1]Ст.Рудка!O110+[1]Черномуж!O110+[1]Щенники!O110)","v":0},{"$f":"SUM([1]Б.Рудка!P110+[1]Б.Устинск!P110+[1]Кушнур!P110+[1]Роженцово!P110+[1]Ст.Рудка!P110+[1]Черномуж!P110+[1]Щенники!P110)","v":0},{"$f":"SUM([1]Б.Рудка!Q110+[1]Б.Устинск!Q110+[1]Кушнур!Q110+[1]Роженцово!Q110+[1]Ст.Рудка!Q110+[1]Черномуж!Q110+[1]Щенники!Q110)","v":0},{"$f":"SUM([1]Б.Рудка!R110+[1]Б.Устинск!R110+[1]Кушнур!R110+[1]Роженцово!R110+[1]Ст.Рудка!R110+[1]Черномуж!R110+[1]Щенники!R110)","v":0}]
[null,"5.5.2.2.   ","в иных случаях, не связанных с заключением соглашений, предусмотренных в подпункте 5.5.2.1, всего из них:",5900,"х","х","х","х","х","х","х","х"]
[null,"5.5.2.2.1.","…",5901]
[null,"…","…","…"]
[null,"5.5.2.2.99.","…",5999]
[null,"8.","Итого расходных обязательств муниципальных образований",8000,{"$nulls":8},{"$f":"SUM(M7+M356+M468)","v":678571.20000000007},674617.5,768133,929863.3,680218.8,669859.80000000005]

{"sheet":"Лист2","index":1,"n_rows":0,"n_cols":0,"rows_kept":0,"cut":false,"hidden":false,"merged":[]}

{"sheet":"Лист3","index":2,"n_rows":0,"n_cols":0,"rows_kept":0,"cut":false,"hidden":false,"merged":[]}